OrganisationNameLabel,OrganisationURI,EffectiveDate,Directorate/ServiceWhereExpenditureIncurred,ServiceCategoryLabel,ServiceCategoryURI,Supplier,SupplierRegisteredCompany Number,PaymentDate,TransactionNumber,NetAmount,IrrecoverableVAT,PurposeOfSpend,ProcurementClassification:ProclassLabel,ProcrementClassification:ProClassCode
South Lakeland District Council,http://opendatacommunities.org/id/district-council/south-lakeland,31/07/2014,Democratic Services,Central Services,http://opendatacommunities.org/def/concept/finance/sercop/objective/102,Sedbergh Office Services,,14-07-2014,0000040832,15,0,Cabinet 9 April,192110,Facilities Room Hire
South Lakeland District Council,http://opendatacommunities.org/id/district-council/south-lakeland,31/07/2014,Policy & Partnerships,Cultural Environmental Regulatory & Planning Services,http://opendatacommunities.org/def/concept/finance/sercop/objective/104,Kendal Mountain Festival CIC,06597071,04-08-2014,0000041077,3500,0,year 2 grant payment,291400,Arts & Leisure Services Sport & Fitness
South Lakeland District Council,http://opendatacommunities.org/id/district-council/south-lakeland,31/07/2014,Research and Intelligence,Central Services,http://opendatacommunities.org/def/concept/finance/sercop/objective/102,CIVICA UK LTD,01628868,23-07-2014,0000041241,3494,0,Civica GMS Software License (LLPG Only),271600,ICT Software Customised & Bespoke
South Lakeland District Council,http://opendatacommunities.org/id/district-council/south-lakeland,31/07/2014,Social Enterprise Admin,Cultural Environmental Regulatory & Planning Services,http://opendatacommunities.org/def/concept/finance/sercop/objective/104,Cleartrack (EvL) Ltd,03881690,09-07-2014,0000041323,1040,0,Clear vegetation at Stockghyll,199999,Facilities Not Elsewhere Classified
South Lakeland District Council,http://opendatacommunities.org/id/district-council/south-lakeland,31/07/2014,Social Enterprise Admin,Highways & Transport Services,http://opendatacommunities.org/def/concept/finance/sercop/objective/107,CONTINENTAL LANDSCAPES LTD,2108452,02-07-2014,0000041327,11.89,0,Grounds maintenance 14-15,391310,Construction Open Spaces Construction
South Lakeland District Council,http://opendatacommunities.org/id/district-council/south-lakeland,31/07/2014,Social Enterprise Admin,Highways & Transport Services,http://opendatacommunities.org/def/concept/finance/sercop/objective/107,CONTINENTAL LANDSCAPES LTD,2108452,02-07-2014,0000041327,11.89,0,Grounds maintenance 14-15,391310,Construction Open Spaces Construction
South Lakeland District Council,http://opendatacommunities.org/id/district-council/south-lakeland,31/07/2014,Social Enterprise Admin,Highways & Transport Services,http://opendatacommunities.org/def/concept/finance/sercop/objective/107,CONTINENTAL LANDSCAPES LTD,2108452,02-07-2014,0000041327,1.19,0,Grounds maintenance 14-15,391310,Construction Open Spaces Construction
South Lakeland District Council,http://opendatacommunities.org/id/district-council/south-lakeland,31/07/2014,Social Enterprise Admin,Highways & Transport Services,http://opendatacommunities.org/def/concept/finance/sercop/objective/107,CONTINENTAL LANDSCAPES LTD,2108452,02-07-2014,0000041327,11.89,0,Grounds maintenance 14-15,391310,Construction Open Spaces Construction
South Lakeland District Council,http://opendatacommunities.org/id/district-council/south-lakeland,31/07/2014,Social Enterprise Admin,Highways & Transport Services,http://opendatacommunities.org/def/concept/finance/sercop/objective/107,CONTINENTAL LANDSCAPES LTD,2108452,02-07-2014,0000041327,11.89,0,Grounds maintenance 14-15,391310,Construction Open Spaces Construction
South Lakeland District Council,http://opendatacommunities.org/id/district-council/south-lakeland,31/07/2014,Social Enterprise Admin,Highways & Transport Services,http://opendatacommunities.org/def/concept/finance/sercop/objective/107,CONTINENTAL LANDSCAPES LTD,2108452,02-07-2014,0000041327,11.89,0,Grounds maintenance 14-15,391310,Construction Open Spaces Construction
South Lakeland District Council,http://opendatacommunities.org/id/district-council/south-lakeland,31/07/2014,Social Enterprise Admin,Highways & Transport Services,http://opendatacommunities.org/def/concept/finance/sercop/objective/107,CONTINENTAL LANDSCAPES LTD,2108452,02-07-2014,0000041327,35.67,0,Grounds maintenance 14-15,391310,Construction Open Spaces Construction
South Lakeland District Council,http://opendatacommunities.org/id/district-council/south-lakeland,31/07/2014,Social Enterprise Admin,Highways & Transport Services,http://opendatacommunities.org/def/concept/finance/sercop/objective/107,CONTINENTAL LANDSCAPES LTD,2108452,02-07-2014,0000041327,237.8,0,Grounds maintenance 14-15,391310,Construction Open Spaces Construction
South Lakeland District Council,http://opendatacommunities.org/id/district-council/south-lakeland,31/07/2014,Social Enterprise Admin,Highways & Transport Services,http://opendatacommunities.org/def/concept/finance/sercop/objective/107,CONTINENTAL LANDSCAPES LTD,2108452,02-07-2014,0000041327,148.62,0,Grounds maintenance 14-15,391310,Construction Open Spaces Construction
South Lakeland District Council,http://opendatacommunities.org/id/district-council/south-lakeland,31/07/2014,Social Enterprise Admin,Highways & Transport Services,http://opendatacommunities.org/def/concept/finance/sercop/objective/107,CONTINENTAL LANDSCAPES LTD,2108452,02-07-2014,0000041327,5.94,0,Grounds maintenance 14-15,391310,Construction Open Spaces Construction
South Lakeland District Council,http://opendatacommunities.org/id/district-council/south-lakeland,31/07/2014,Social Enterprise Admin,Highways & Transport Services,http://opendatacommunities.org/def/concept/finance/sercop/objective/107,CONTINENTAL LANDSCAPES LTD,2108452,02-07-2014,0000041327,59.45,0,Grounds maintenance 14-15,391310,Construction Open Spaces Construction
South Lakeland District Council,http://opendatacommunities.org/id/district-council/south-lakeland,31/07/2014,Social Enterprise Admin,Highways & Transport Services,http://opendatacommunities.org/def/concept/finance/sercop/objective/107,CONTINENTAL LANDSCAPES LTD,2108452,02-07-2014,0000041327,59.45,0,Grounds maintenance 14-15,391310,Construction Open Spaces Construction
South Lakeland District Council,http://opendatacommunities.org/id/district-council/south-lakeland,31/07/2014,Social Enterprise Admin,Highways & Transport Services,http://opendatacommunities.org/def/concept/finance/sercop/objective/107,CONTINENTAL LANDSCAPES LTD,2108452,02-07-2014,0000041327,118.9,0,Grounds maintenance 14-15,391310,Construction Open Spaces Construction
South Lakeland District Council,http://opendatacommunities.org/id/district-council/south-lakeland,31/07/2014,Social Enterprise Admin,Highways & Transport Services,http://opendatacommunities.org/def/concept/finance/sercop/objective/107,CONTINENTAL LANDSCAPES LTD,2108452,02-07-2014,0000041327,47.56,0,Grounds maintenance 14-15,391310,Construction Open Spaces Construction
South Lakeland District Council,http://opendatacommunities.org/id/district-council/south-lakeland,31/07/2014,Social Enterprise Admin,Highways & Transport Services,http://opendatacommunities.org/def/concept/finance/sercop/objective/107,CONTINENTAL LANDSCAPES LTD,2108452,02-07-2014,0000041327,5.94,0,Grounds maintenance 14-15,391310,Construction Open Spaces Construction
South Lakeland District Council,http://opendatacommunities.org/id/district-council/south-lakeland,31/07/2014,Social Enterprise Admin,Highways & Transport Services,http://opendatacommunities.org/def/concept/finance/sercop/objective/107,CONTINENTAL LANDSCAPES LTD,2108452,02-07-2014,0000041327,5.94,0,Grounds maintenance 14-15,391310,Construction Open Spaces Construction
South Lakeland District Council,http://opendatacommunities.org/id/district-council/south-lakeland,31/07/2014,Social Enterprise Admin,Highways & Transport Services,http://opendatacommunities.org/def/concept/finance/sercop/objective/107,CONTINENTAL LANDSCAPES LTD,2108452,02-07-2014,0000041327,2.97,0,Grounds maintenance 14-15,391310,Construction Open Spaces Construction
South Lakeland District Council,http://opendatacommunities.org/id/district-council/south-lakeland,31/07/2014,Social Enterprise Admin,Highways & Transport Services,http://opendatacommunities.org/def/concept/finance/sercop/objective/107,CONTINENTAL LANDSCAPES LTD,2108452,02-07-2014,0000041327,59.45,0,Grounds maintenance 14-15,391310,Construction Open Spaces Construction
South Lakeland District Council,http://opendatacommunities.org/id/district-council/south-lakeland,31/07/2014,Social Enterprise Admin,Highways & Transport Services,http://opendatacommunities.org/def/concept/finance/sercop/objective/107,CONTINENTAL LANDSCAPES LTD,2108452,02-07-2014,0000041327,53.5,0,Grounds maintenance 14-15,391310,Construction Open Spaces Construction
South Lakeland District Council,http://opendatacommunities.org/id/district-council/south-lakeland,31/07/2014,Social Enterprise Admin,Highways & Transport Services,http://opendatacommunities.org/def/concept/finance/sercop/objective/107,CONTINENTAL LANDSCAPES LTD,2108452,02-07-2014,0000041327,65.39,0,Grounds maintenance 14-15,391310,Construction Open Spaces Construction
South Lakeland District Council,http://opendatacommunities.org/id/district-council/south-lakeland,31/07/2014,Social Enterprise Admin,Highways & Transport Services,http://opendatacommunities.org/def/concept/finance/sercop/objective/107,CONTINENTAL LANDSCAPES LTD,2108452,02-07-2014,0000041327,124.84,0,Grounds maintenance 14-15,391310,Construction Open Spaces Construction
South Lakeland District Council,http://opendatacommunities.org/id/district-council/south-lakeland,31/07/2014,Social Enterprise Admin,Highways & Transport Services,http://opendatacommunities.org/def/concept/finance/sercop/objective/107,CONTINENTAL LANDSCAPES LTD,2108452,02-07-2014,0000041327,118.9,0,Grounds maintenance 14-15,391310,Construction Open Spaces Construction
South Lakeland District Council,http://opendatacommunities.org/id/district-council/south-lakeland,31/07/2014,Social Enterprise Admin,Highways & Transport Services,http://opendatacommunities.org/def/concept/finance/sercop/objective/107,CONTINENTAL LANDSCAPES LTD,2108452,02-07-2014,0000041327,11.89,0,Grounds maintenance 14-15,391310,Construction Open Spaces Construction
South Lakeland District Council,http://opendatacommunities.org/id/district-council/south-lakeland,31/07/2014,Social Enterprise Admin,Highways & Transport Services,http://opendatacommunities.org/def/concept/finance/sercop/objective/107,CONTINENTAL LANDSCAPES LTD,2108452,02-07-2014,0000041327,11.89,0,Grounds maintenance 14-15,391310,Construction Open Spaces Construction
South Lakeland District Council,http://opendatacommunities.org/id/district-council/south-lakeland,31/07/2014,Social Enterprise Admin,Highways & Transport Services,http://opendatacommunities.org/def/concept/finance/sercop/objective/107,CONTINENTAL LANDSCAPES LTD,2108452,02-07-2014,0000041327,35.67,0,Grounds maintenance 14-15,391310,Construction Open Spaces Construction
South Lakeland District Council,http://opendatacommunities.org/id/district-council/south-lakeland,31/07/2014,Social Enterprise Admin,Highways & Transport Services,http://opendatacommunities.org/def/concept/finance/sercop/objective/107,CONTINENTAL LANDSCAPES LTD,2108452,02-07-2014,0000041327,59.45,0,Grounds maintenance 14-15,391310,Construction Open Spaces Construction
South Lakeland District Council,http://opendatacommunities.org/id/district-council/south-lakeland,31/07/2014,Social Enterprise Admin,Highways & Transport Services,http://opendatacommunities.org/def/concept/finance/sercop/objective/107,CONTINENTAL LANDSCAPES LTD,2108452,02-07-2014,0000041327,105.76,0,Grounds maintenance 14-15,391310,Construction Open Spaces Construction
South Lakeland District Council,http://opendatacommunities.org/id/district-council/south-lakeland,31/07/2014,Social Enterprise Admin,Highways & Transport Services,http://opendatacommunities.org/def/concept/finance/sercop/objective/107,CONTINENTAL LANDSCAPES LTD,2108452,02-07-2014,0000041327,118.9,0,Grounds maintenance 14-15,391310,Construction Open Spaces Construction
South Lakeland District Council,http://opendatacommunities.org/id/district-council/south-lakeland,31/07/2014,Social Enterprise Admin,Highways & Transport Services,http://opendatacommunities.org/def/concept/finance/sercop/objective/107,CONTINENTAL LANDSCAPES LTD,2108452,02-07-2014,0000041327,219.96,0,Grounds maintenance 14-15,391310,Construction Open Spaces Construction
South Lakeland District Council,http://opendatacommunities.org/id/district-council/south-lakeland,31/07/2014,Social Enterprise Admin,Highways & Transport Services,http://opendatacommunities.org/def/concept/finance/sercop/objective/107,CONTINENTAL LANDSCAPES LTD,2108452,02-07-2014,0000041327,118.9,0,Grounds maintenance 14-15,391310,Construction Open Spaces Construction
South Lakeland District Council,http://opendatacommunities.org/id/district-council/south-lakeland,31/07/2014,Social Enterprise Admin,Highways & Transport Services,http://opendatacommunities.org/def/concept/finance/sercop/objective/107,CONTINENTAL LANDSCAPES LTD,2108452,02-07-2014,0000041327,178.35,0,Grounds maintenance 14-15,391310,Construction Open Spaces Construction
South Lakeland District Council,http://opendatacommunities.org/id/district-council/south-lakeland,31/07/2014,Social Enterprise Admin,Cultural Environmental Regulatory & Planning Services,http://opendatacommunities.org/def/concept/finance/sercop/objective/104,CONTINENTAL LANDSCAPES LTD,2108452,02-07-2014,0000041327,9511.8,0,Grounds maintenance 14-15,391310,Construction Open Spaces Construction
South Lakeland District Council,http://opendatacommunities.org/id/district-council/south-lakeland,31/07/2014,Social Enterprise Admin,Cultural Environmental Regulatory & Planning Services,http://opendatacommunities.org/def/concept/finance/sercop/objective/104,CONTINENTAL LANDSCAPES LTD,2108452,02-07-2014,0000041327,1376.6,0,Grounds maintenance 14-15,391310,Construction Open Spaces Construction
South Lakeland District Council,http://opendatacommunities.org/id/district-council/south-lakeland,31/07/2014,Social Enterprise Admin,Cultural Environmental Regulatory & Planning Services,http://opendatacommunities.org/def/concept/finance/sercop/objective/104,CONTINENTAL LANDSCAPES LTD,2108452,02-07-2014,0000041327,23.78,0,Grounds maintenance 14-15,391310,Construction Open Spaces Construction
South Lakeland District Council,http://opendatacommunities.org/id/district-council/south-lakeland,31/07/2014,Social Enterprise Admin,Cultural Environmental Regulatory & Planning Services,http://opendatacommunities.org/def/concept/finance/sercop/objective/104,CONTINENTAL LANDSCAPES LTD,2108452,02-07-2014,0000041327,45478.3,0,Grounds maintenance 14-15,391310,Construction Open Spaces Construction
South Lakeland District Council,http://opendatacommunities.org/id/district-council/south-lakeland,31/07/2014,Social Enterprise Admin,Cultural Environmental Regulatory & Planning Services,http://opendatacommunities.org/def/concept/finance/sercop/objective/104,CONTINENTAL LANDSCAPES LTD,2108452,02-07-2014,0000041327,2259.05,0,Grounds maintenance 14-15,391310,Construction Open Spaces Construction
South Lakeland District Council,http://opendatacommunities.org/id/district-council/south-lakeland,31/07/2014,Social Enterprise Admin,External Trading Accounts,,CONTINENTAL LANDSCAPES LTD,2108452,02-07-2014,0000041327,104.04,0,Grounds maintenance 14-15,391310,Construction Open Spaces Construction
South Lakeland District Council,http://opendatacommunities.org/id/district-council/south-lakeland,31/07/2014,Development Implementation,Cultural Environmental Regulatory & Planning Services,http://opendatacommunities.org/def/concept/finance/sercop/objective/104,SCK WEB WORKS LTD,06994365,23-07-2014,0000041344,480,0,Work to put Land & Premises onto Invest,271515,ICT Website Development
South Lakeland District Council,http://opendatacommunities.org/id/district-council/south-lakeland,31/07/2014,Business Support Community Services,Internal Trading Accounts,,DENNIS EAGLE LTD,03794455,09-07-2014,0000041447,46.03,0,Pipe,381300,Vehicle Mgt Industrial
South Lakeland District Council,http://opendatacommunities.org/id/district-council/south-lakeland,31/07/2014,Business Support Community Services,Internal Trading Accounts,,DENNIS EAGLE LTD,03794455,09-07-2014,0000041474,46.03,0,Pipe,381300,Vehicle Mgt Industrial
South Lakeland District Council,http://opendatacommunities.org/id/district-council/south-lakeland,31/07/2014,Financial Services,Central Services,http://opendatacommunities.org/def/concept/finance/sercop/objective/102,BOTTOMLINE TECHNOLOGIES EUROPE LTD,03693514,14-07-2014,0000041673,1482.8,0,C-Series install and setup on new server,271600,ICT Software Customised & Bespoke
South Lakeland District Council,http://opendatacommunities.org/id/district-council/south-lakeland,31/07/2014,Business Support Community Services,Transport Planning Policy,http://opendatacommunities.org/def/concept/finance/sercop/objective/107,KENDAL SECURITY CENTRE LTD,03179893,07-07-2014,0000041783,15,0,Keys,192212,Facilities Security Equipment
South Lakeland District Council,http://opendatacommunities.org/id/district-council/south-lakeland,31/07/2014,Business Support Community Services,Internal Trading Accounts,,COMPASS COMPONENTS,,02-07-2014,0000041803,135.82,0,Consumables 01/04/14 - 31/03/15,101400,Building General Materials
South Lakeland District Council,http://opendatacommunities.org/id/district-council/south-lakeland,31/07/2014,Lake Wardens,Cultural Environmental Regulatory & Planning Services,http://opendatacommunities.org/def/concept/finance/sercop/objective/104,CUMBRIA WASTE RECYCLING LTD,03162439,07-07-2014,0000041840,212.18,0,Monthly Emptying of Refuse Wheelie Bins,182012,Environment Waste Management Recycling
South Lakeland District Council,http://opendatacommunities.org/id/district-council/south-lakeland,31/07/2014,Business Support Community Services,Transport Planning Policy,http://opendatacommunities.org/def/concept/finance/sercop/objective/107,BUNZL CLEANING & HYGIENE SUPPLIES,2902454,02-07-2014,0000041870,162.14,0,Toilet brushes,131011,Cleaning & Janitorial Cleaning Materials
South Lakeland District Council,http://opendatacommunities.org/id/district-council/south-lakeland,31/07/2014,Business Support Community Services,Transport Planning Policy,http://opendatacommunities.org/def/concept/finance/sercop/objective/107,BUNZL CLEANING & HYGIENE SUPPLIES,2902454,02-07-2014,0000041871,7.98,0,Toilet brushes,131011,Cleaning & Janitorial Cleaning Materials
South Lakeland District Council,http://opendatacommunities.org/id/district-council/south-lakeland,31/07/2014,Social Enterprise Admin,Highways & Transport Services,http://opendatacommunities.org/def/concept/finance/sercop/objective/107,HYGIENE CLEANING SUPPLIES LTD,04753934,07-07-2014,0000041890,35.06,0,Jangro c-fold hand towels AE101,131011,Cleaning & Janitorial Cleaning Materials
South Lakeland District Council,http://opendatacommunities.org/id/district-council/south-lakeland,31/07/2014,Social Enterprise Admin,Cultural Environmental Regulatory & Planning Services,http://opendatacommunities.org/def/concept/finance/sercop/objective/104,CAPITA SYMONDS LTD,03173410,07-07-2014,0000041900,1590,0,ARBORICULTURE SERVICES FOR ADVICE RE,390000,Construction
South Lakeland District Council,http://opendatacommunities.org/id/district-council/south-lakeland,31/07/2014,ICT Group,Central Services,http://opendatacommunities.org/def/concept/finance/sercop/objective/102,PROBRAND LTD,02653446,09-07-2014,0000041924,265.32,0,PAM353/85619-01 Plantronics - Blackwire,271600,ICT Software Customised & Bespoke
South Lakeland District Council,http://opendatacommunities.org/id/district-council/south-lakeland,31/07/2014,Social Enterprise Admin,Highways & Transport Services,http://opendatacommunities.org/def/concept/finance/sercop/objective/107,BEMROSE BOOTH PARAGON LTD,04891375,09-07-2014,0000041931,2941.12,0,"300,000 Hi-co Reflex Tickets.  Tickets",191600,Facilities Printing
South Lakeland District Council,http://opendatacommunities.org/id/district-council/south-lakeland,31/07/2014,Lake Wardens,Cultural Environmental Regulatory & Planning Services,http://opendatacommunities.org/def/concept/finance/sercop/objective/104,DOUGLAS GILL INTERNATIOAL LTD,,09-07-2014,0000041932,46.5,0,1 x Pair of Tall Yachting Boots,141000,Clothing Childrens & Adults
South Lakeland District Council,http://opendatacommunities.org/id/district-council/south-lakeland,31/07/2014,Social Enterprise Admin,Transport,http://opendatacommunities.org/def/concept/finance/sercop/objective/107,NPS NORTH WEST LTD,06614601,07-07-2014,0000041952,2500,0,Project Management of bridge widening at,391110,Construction Buildings Construction
South Lakeland District Council,http://opendatacommunities.org/id/district-council/south-lakeland,31/07/2014,Development Implementation,Central Services,http://opendatacommunities.org/def/concept/finance/sercop/objective/102,EVERSHEDS LLP,OC304065,14-07-2014,0000041954,850,0,Berners Close. Grange over Sands,281200,Legal Services General Support
South Lakeland District Council,http://opendatacommunities.org/id/district-council/south-lakeland,31/07/2014,Social Enterprise Admin,Cultural Environmental Regulatory & Planning Services,http://opendatacommunities.org/def/concept/finance/sercop/objective/104,Matchtech,02526418,07-07-2014,0000041980,1068.19,0,TO SUPPLY DEVELOPMENT CONTROL TEAM,261300,HR Recruitment & Assessment
South Lakeland District Council,http://opendatacommunities.org/id/district-council/south-lakeland,31/07/2014,Business Support Community Services,Cultural Environmental Regulatory & Planning Services,http://opendatacommunities.org/def/concept/finance/sercop/objective/104,UNITED UTILITIES WATER PLC,2366678,09-07-2014,0000041981,2191.7,0,Private Water Analysis - May 2014,371300,Utilities Water
South Lakeland District Council,http://opendatacommunities.org/id/district-council/south-lakeland,31/07/2014,Coronation Hall,External Trading Accounts,,Morson International,,09-07-2014,0000041983,79.52,0,Ulverston Market Hall cleaner from April,261300,HR Recruitment & Assessment
South Lakeland District Council,http://opendatacommunities.org/id/district-council/south-lakeland,31/07/2014,Business Support Community Services,Internal Trading Accounts,,Harry Park Tyres Ltd,08131208,09-07-2014,0000041984,67,0,Tracking,381500,Vehicle Mgt Parts
South Lakeland District Council,http://opendatacommunities.org/id/district-council/south-lakeland,31/07/2014,Business Support Community Services,Internal Trading Accounts,,Harry Park Tyres Ltd,08131208,09-07-2014,0000041985,12.5,0,Tracking,381500,Vehicle Mgt Parts
South Lakeland District Council,http://opendatacommunities.org/id/district-council/south-lakeland,31/07/2014,Business Support Community Services,Internal Trading Accounts,,Harry Park Tyres Ltd,08131208,09-07-2014,0000041986,145,0,Tracking,381500,Vehicle Mgt Parts
South Lakeland District Council,http://opendatacommunities.org/id/district-council/south-lakeland,31/07/2014,Business Support Community Services,Internal Trading Accounts,,Harry Park Tyres Ltd,08131208,09-07-2014,0000041987,45,0,Tracking,381500,Vehicle Mgt Parts
South Lakeland District Council,http://opendatacommunities.org/id/district-council/south-lakeland,31/07/2014,Business Support Community Services,Internal Trading Accounts,,Harry Park Tyres Ltd,08131208,02-07-2014,0000041989,110,0,Tyres,381500,Vehicle Mgt Parts
South Lakeland District Council,http://opendatacommunities.org/id/district-council/south-lakeland,31/07/2014,Business Support Community Services,Internal Trading Accounts,,Harry Park Tyres Ltd,08131208,02-07-2014,0000041990,12.5,0,Tyres,381500,Vehicle Mgt Parts
South Lakeland District Council,http://opendatacommunities.org/id/district-council/south-lakeland,31/07/2014,Social Enterprise Admin,Central Services,http://opendatacommunities.org/def/concept/finance/sercop/objective/102,ADECCO UK LIMITED,00593232,07-07-2014,0000042006,530.21,0,TEMPORARY GAZETTEER OFFICER,261400,HR Temporary & Agency Staff
South Lakeland District Council,http://opendatacommunities.org/id/district-council/south-lakeland,31/07/2014,Business Support Community Services,Housing Services,http://opendatacommunities.org/def/concept/finance/sercop/objective/108,ADECCO UK LIMITED,00593232,14-07-2014,0000042007,103.8,0,Cleaner for Town View Fields,261400,HR Temporary & Agency Staff
South Lakeland District Council,http://opendatacommunities.org/id/district-council/south-lakeland,31/07/2014,Social Enterprise Admin,Cultural Environmental Regulatory & Planning Services,http://opendatacommunities.org/def/concept/finance/sercop/objective/104,THOMSON REUTERS (PROFESSIONAL) UK LTD,01679046,14-07-2014,0000042009,49,0,PLANNING CONT THEIR ENFORCEMENT REL 11 &,202100,Financial Services Subscriptions
South Lakeland District Council,http://opendatacommunities.org/id/district-council/south-lakeland,31/07/2014,Social Enterprise Admin,Cultural Environmental Regulatory & Planning Services,http://opendatacommunities.org/def/concept/finance/sercop/objective/104,Cleartrack (EvL) Ltd,03881690,14-07-2014,0000042012,430,0,Rinkfield - Crown Clean and thin 20%,199999,Facilities Not Elsewhere Classified
South Lakeland District Council,http://opendatacommunities.org/id/district-council/south-lakeland,31/07/2014,Social Enterprise Admin,Highways & Transport Services,http://opendatacommunities.org/def/concept/finance/sercop/objective/107,BEMROSE BOOTH PARAGON LTD,04891375,09-07-2014,0000042013,1128.75,0,"187,500 Aura self-adhesive pay and",191600,Facilities Printing
South Lakeland District Council,http://opendatacommunities.org/id/district-council/south-lakeland,31/07/2014,Social Enterprise Admin,Central Services,http://opendatacommunities.org/def/concept/finance/sercop/objective/102,Masterstaff Limited,02777593,07-07-2014,0000042027,435.81,0,"T0 SUPPLY NICOLA BLACKWOOD, LOCAL LAND",261300,HR Recruitment & Assessment
South Lakeland District Council,http://opendatacommunities.org/id/district-council/south-lakeland,31/07/2014,Business Support Community Services,Housing Services,http://opendatacommunities.org/def/concept/finance/sercop/objective/108,NEWSQUEST MEDIA GROUP LTD,03102566,09-07-2014,0000042031,150.75,0,Advert in the Westmorland Gazette for,191000,Facilities Advertising
South Lakeland District Council,http://opendatacommunities.org/id/district-council/south-lakeland,31/07/2014,Revenues and Benefits,Central Services,http://opendatacommunities.org/def/concept/finance/sercop/objective/102,MERITEC LTD,03224622,14-07-2014,0000042032,418.5,0,RAB Processing Contract and Agency,391200,Construction Engineering
South Lakeland District Council,http://opendatacommunities.org/id/district-council/south-lakeland,31/07/2014,Business Support Community Services,Internal Trading Accounts,,TRAVIS PERKINS TRADING CO LTD,00733503,14-07-2014,0000042033,132.56,0,Board,152200,Consultancy Technical & Feasibility
South Lakeland District Council,http://opendatacommunities.org/id/district-council/south-lakeland,31/07/2014,Business Support Community Services,Internal Trading Accounts,,A & W COMMERCIALS LTD,02630625,14-07-2014,0000042034,40.36,0,Hose,381400,Vehicle Mgt Maintenance
South Lakeland District Council,http://opendatacommunities.org/id/district-council/south-lakeland,31/07/2014,Financial Services,Central Services,http://opendatacommunities.org/def/concept/finance/sercop/objective/102,NEWSQUEST MEDIA GROUP LTD,03102566,09-07-2014,0000042035,221,0,Public Audit Notice 2013/14,191000,Facilities Advertising
South Lakeland District Council,http://opendatacommunities.org/id/district-council/south-lakeland,31/07/2014,Business Support Community Services,Cultural Environmental Regulatory & Planning Services,http://opendatacommunities.org/def/concept/finance/sercop/objective/104,Jenkinson Hygiene,,07-07-2014,0000042036,22.5,0,1 kilo tub of Sodium Hydrochlorite,131000,Cleaning & Janitorial Cleaning Materials
South Lakeland District Council,http://opendatacommunities.org/id/district-council/south-lakeland,31/07/2014,Revenues and Benefits,Central Services,http://opendatacommunities.org/def/concept/finance/sercop/objective/102,BADENOCH & CLARK,1356186,02-07-2014,0000042037,533.4,0,Denise Calvert,261300,HR Recruitment & Assessment
South Lakeland District Council,http://opendatacommunities.org/id/district-council/south-lakeland,31/07/2014,Human Resources,Central Services,http://opendatacommunities.org/def/concept/finance/sercop/objective/102,ANITA OGILVIE,,23-07-2014,0000042038,270,0,THERAPUTIC SESSIONS,269999,HR Not Elsewhere Classified
South Lakeland District Council,http://opendatacommunities.org/id/district-council/south-lakeland,31/07/2014,Social Enterprise Admin,Highways & Transport Services,http://opendatacommunities.org/def/concept/finance/sercop/objective/107,BEMROSE BOOTH PARAGON LTD,04891375,16-07-2014,0000042039,1128.75,0,"187,500 Aura self adhesive pay and",191600,Facilities Printing
South Lakeland District Council,http://opendatacommunities.org/id/district-council/south-lakeland,31/07/2014,Social Enterprise Admin,Highways & Transport Services,http://opendatacommunities.org/def/concept/finance/sercop/objective/107,BEMROSE BOOTH PARAGON LTD,04891375,16-07-2014,0000042040,-843.75,,"187,500 Aura self adhesive pay and",191600,Facilities Printing
South Lakeland District Council,http://opendatacommunities.org/id/district-council/south-lakeland,31/07/2014,Social Enterprise Admin,Cultural Environmental Regulatory & Planning Services,http://opendatacommunities.org/def/concept/finance/sercop/objective/104,HYGIENE CLEANING SUPPLIES LTD,04753934,14-07-2014,0000042041,160.18,0,JC24 24x1l Acidic Toilet Cleaner,131011,Cleaning & Janitorial Cleaning Materials
South Lakeland District Council,http://opendatacommunities.org/id/district-council/south-lakeland,31/07/2014,Social Enterprise Admin,Central Services,http://opendatacommunities.org/def/concept/finance/sercop/objective/102,HYGIENE CLEANING SUPPLIES LTD,04753934,14-07-2014,0000042042,23.88,0,Deb azure foam wash BN086-1 (6X1L),131011,Cleaning & Janitorial Cleaning Materials
South Lakeland District Council,http://opendatacommunities.org/id/district-council/south-lakeland,31/07/2014,Business Support Community Services,Cultural Environmental Regulatory & Planning Services,http://opendatacommunities.org/def/concept/finance/sercop/objective/104,OCS GROUP LTD T/A CANNON HYGIENE LTD,01298292,14-07-2014,0000042043,20,0,Clinical waste collections - June,131011,Cleaning & Janitorial Cleaning Materials
South Lakeland District Council,http://opendatacommunities.org/id/district-council/south-lakeland,31/07/2014,Business Support Community Services,Cultural Environmental Regulatory & Planning Services,http://opendatacommunities.org/def/concept/finance/sercop/objective/104,OCS GROUP LTD T/A CANNON HYGIENE LTD,01298292,14-07-2014,0000042044,58,0,Clinical waste collections - June,131011,Cleaning & Janitorial Cleaning Materials
South Lakeland District Council,http://opendatacommunities.org/id/district-council/south-lakeland,31/07/2014,Business Support Community Services,Cultural Environmental Regulatory & Planning Services,http://opendatacommunities.org/def/concept/finance/sercop/objective/104,OCS GROUP LTD T/A CANNON HYGIENE LTD,01298292,14-07-2014,0000042045,3.12,0,Clinical waste collections - June,131011,Cleaning & Janitorial Cleaning Materials
South Lakeland District Council,http://opendatacommunities.org/id/district-council/south-lakeland,31/07/2014,Business Support Community Services,Internal Trading Accounts,,SOMERS TOTALKARE LTD,05256574,14-07-2014,0000042046,71.86,0,Service lifts,381300,Vehicle Mgt Industrial
South Lakeland District Council,http://opendatacommunities.org/id/district-council/south-lakeland,31/07/2014,Business Support Community Services,Internal Trading Accounts,,K S INTERNATIONAL LTD,02703321,07-07-2014,0000042047,165,0,Head bolts,381500,Vehicle Mgt Parts
South Lakeland District Council,http://opendatacommunities.org/id/district-council/south-lakeland,31/07/2014,Business Support Community Services,Internal Trading Accounts,,K S INTERNATIONAL LTD,02703321,07-07-2014,0000042048,265,0,Head bolts,381500,Vehicle Mgt Parts
South Lakeland District Council,http://opendatacommunities.org/id/district-council/south-lakeland,31/07/2014,Kendal Town Hall,Cultural Environmental Regulatory & Planning Services,http://opendatacommunities.org/def/concept/finance/sercop/objective/104,PHS GROUP PLC,,16-07-2014,0000042050,837.72,0,Annual disposal of sanitary products,131312,Cleaning & Janitorial Washroom Sanitat
South Lakeland District Council,http://opendatacommunities.org/id/district-council/south-lakeland,31/07/2014,Social Enterprise Admin,Cultural Environmental Regulatory & Planning Services,http://opendatacommunities.org/def/concept/finance/sercop/objective/104,W MCCLURE LTD,00685360,14-07-2014,0000042051,13.8,0,12x 1l Sunmagic Orange juice,111200,Catering Food & Beverages
South Lakeland District Council,http://opendatacommunities.org/id/district-council/south-lakeland,31/07/2014,Social Enterprise Admin,Cultural Environmental Regulatory & Planning Services,http://opendatacommunities.org/def/concept/finance/sercop/objective/104,W MCCLURE LTD,00685360,14-07-2014,0000042052,22.5,0,12x 1l Sunmagic Orange juice,111200,Catering Food & Beverages
South Lakeland District Council,http://opendatacommunities.org/id/district-council/south-lakeland,31/07/2014,Business Support Community Services,Internal Trading Accounts,,THOMAS GRAHAM & SONS (IRON & STEEL) LTD,00656879,28-07-2014,0000042053,66.05,0,Blade,101400,Building General Materials
South Lakeland District Council,http://opendatacommunities.org/id/district-council/south-lakeland,31/07/2014,Business Support Community Services,Internal Trading Accounts,,BERENDSEN UK LTD,00228604,16-07-2014,0000042054,173.44,0,Workwear hire 30/03/13 - 29/03/14,161000,Domestic Goods Commercial
South Lakeland District Council,http://opendatacommunities.org/id/district-council/south-lakeland,31/07/2014,Development Implementation,Cultural Environmental Regulatory & Planning Services,http://opendatacommunities.org/def/concept/finance/sercop/objective/104,TRILITHON LTD,03390011,14-07-2014,0000042062,300,0,Password Generator for Agents,271515,ICT Website Development
South Lakeland District Council,http://opendatacommunities.org/id/district-council/south-lakeland,31/07/2014,Development Implementation,Cultural Environmental Regulatory & Planning Services,http://opendatacommunities.org/def/concept/finance/sercop/objective/104,TRILITHON LTD,03390011,14-07-2014,0000042063,50,0,Item 1 - XML Feeds on Events in Explore,271515,ICT Website Development
South Lakeland District Council,http://opendatacommunities.org/id/district-council/south-lakeland,31/07/2014,Development Implementation,Cultural Environmental Regulatory & Planning Services,http://opendatacommunities.org/def/concept/finance/sercop/objective/104,TRILITHON LTD,03390011,14-07-2014,0000042064,500,0,Putting Land & Premises onto Invest,271515,ICT Website Development
South Lakeland District Council,http://opendatacommunities.org/id/district-council/south-lakeland,31/07/2014,Development Implementation,Cultural Environmental Regulatory & Planning Services,http://opendatacommunities.org/def/concept/finance/sercop/objective/104,TRILITHON LTD,03390011,14-07-2014,0000042064,400,0,Putting Land & Premises onto Invest,271515,ICT Website Development
South Lakeland District Council,http://opendatacommunities.org/id/district-council/south-lakeland,31/07/2014,Development Implementation,Cultural Environmental Regulatory & Planning Services,http://opendatacommunities.org/def/concept/finance/sercop/objective/104,CUMBRIA COUNTY COUNCIL,,09-07-2014,0000042065,500,0,Kendal Economic Update,908000,Public Bodies Council support services
South Lakeland District Council,http://opendatacommunities.org/id/district-council/south-lakeland,31/07/2014,Development Management,Cultural Environmental Regulatory & Planning Services,http://opendatacommunities.org/def/concept/finance/sercop/objective/104,CHRIS BOWKER LTD,01642561,14-07-2014,0000042070,30,0,Check of electrical work under Part P of,101100,Building Electrical
South Lakeland District Council,http://opendatacommunities.org/id/district-council/south-lakeland,31/07/2014,Lake Wardens,Cultural Environmental Regulatory & Planning Services,http://opendatacommunities.org/def/concept/finance/sercop/objective/104,RIBBLESDALE AUTO ELECTRICS 1992 LTD,02732686,21-07-2014,0000042071,-39.5,,5 Metre Length of SBS 35 Twin Cable,381500,Vehicle Mgt Parts
South Lakeland District Council,http://opendatacommunities.org/id/district-council/south-lakeland,31/07/2014,Business Support Community Services,Internal Trading Accounts,,GEESINK NORBA LTD,00306452,21-07-2014,0000042072,94.17,0,Bump stops,399999,Construction Not Elsewhere Classified
South Lakeland District Council,http://opendatacommunities.org/id/district-council/south-lakeland,31/07/2014,Lake Wardens,Cultural Environmental Regulatory & Planning Services,http://opendatacommunities.org/def/concept/finance/sercop/objective/104,Inception Design,07951237,09-07-2014,0000042073,105,0,Artwork Layout to A1 signs as per your,191100,Facilities Design & Photography
South Lakeland District Council,http://opendatacommunities.org/id/district-council/south-lakeland,31/07/2014,Business Support Community Services,Culture and Related Serv,http://opendatacommunities.org/def/concept/finance/sercop/objective/104,North Country Leisure,03683103,07-07-2014,0000042075,69231.61,0,Works to Kendal and Ulverston Leisure,291400,Arts & Leisure Services Sport & Fitness
South Lakeland District Council,http://opendatacommunities.org/id/district-council/south-lakeland,31/07/2014,Business Support Community Services,Housing Services,http://opendatacommunities.org/def/concept/finance/sercop/objective/108,Landlord,,02-07-2014,0000042077,400,0,Monthly rent ,250010,Housing Letting Agents
South Lakeland District Council,http://opendatacommunities.org/id/district-council/south-lakeland,31/07/2014,Business Support Community Services,Housing Services,http://opendatacommunities.org/def/concept/finance/sercop/objective/108,Landlord,,02-07-2014,0000042078,600,0,Monthly rent ,250000,Housing
South Lakeland District Council,http://opendatacommunities.org/id/district-council/south-lakeland,31/07/2014,Business Support Community Services,Housing Services,http://opendatacommunities.org/def/concept/finance/sercop/objective/108,Landlord,,02-07-2014,0000042079,400,0,Monthly rent ,250000,Housing
South Lakeland District Council,http://opendatacommunities.org/id/district-council/south-lakeland,31/07/2014,Business Support Community Services,Housing Services,http://opendatacommunities.org/def/concept/finance/sercop/objective/108,Landlord,,02-07-2014,0000042080,400,0,Monthly rent ,250000,Housing
South Lakeland District Council,http://opendatacommunities.org/id/district-council/south-lakeland,31/07/2014,Business Support Community Services,Housing Services,http://opendatacommunities.org/def/concept/finance/sercop/objective/108,Landlord,,02-07-2014,0000042081,350,0,Monthly rent ,250000,Housing
South Lakeland District Council,http://opendatacommunities.org/id/district-council/south-lakeland,31/07/2014,Business Support Community Services,Housing Services,http://opendatacommunities.org/def/concept/finance/sercop/objective/108,Landlord,,02-07-2014,0000042082,500,0,Monthly rent ,250010,Housing Letting Agents
South Lakeland District Council,http://opendatacommunities.org/id/district-council/south-lakeland,31/07/2014,Business Support Community Services,Housing Services,http://opendatacommunities.org/def/concept/finance/sercop/objective/108,MANNA HOUSE,08041948,02-07-2014,0000042083,6000,0,Q1  - Housing Advice and Advocacy,250000,Housing
South Lakeland District Council,http://opendatacommunities.org/id/district-council/south-lakeland,31/07/2014,Social Enterprise Admin,Cultural Environmental Regulatory & Planning Services,http://opendatacommunities.org/def/concept/finance/sercop/objective/104,ALLSTAR BUSINESS SOLUTIONS LTD (NCR),2631112,31-07-2014,0000042088,77.5,0,Fuel for Parks vehicle PX63 KSN April,381600,Vehicle Mgt Leasing
South Lakeland District Council,http://opendatacommunities.org/id/district-council/south-lakeland,31/07/2014,Social Enterprise Admin,Highways & Transport Services,http://opendatacommunities.org/def/concept/finance/sercop/objective/107,ALLSTAR BUSINESS SOLUTIONS LTD (NCR),2631112,31-07-2014,0000042089,237.44,0,Fuel for car parks' vehicles starting 1,381600,Vehicle Mgt Leasing
South Lakeland District Council,http://opendatacommunities.org/id/district-council/south-lakeland,31/07/2014,Social Enterprise Admin,Cultural Environmental Regulatory & Planning Services,http://opendatacommunities.org/def/concept/finance/sercop/objective/104,ALLSTAR BUSINESS SOLUTIONS LTD (NCR),2631112,31-07-2014,0000042089,62.95,0,Fuel for car parks' vehicles starting 1,381600,Vehicle Mgt Leasing
South Lakeland District Council,http://opendatacommunities.org/id/district-council/south-lakeland,31/07/2014,Business Support Community Services,Internal Trading Accounts,,ALLSTAR BUSINESS SOLUTIONS LTD (NCR),2631112,31-07-2014,0000042090,4332.92,0,Fuel to 15/06/14,381600,Vehicle Mgt Leasing
South Lakeland District Council,http://opendatacommunities.org/id/district-council/south-lakeland,31/07/2014,Business Support Community Services,Internal Trading Accounts,,ALLSTAR BUSINESS SOLUTIONS LTD (NCR),2631112,31-07-2014,0000042090,121.18,0,Fuel to 15/06/14,381600,Vehicle Mgt Leasing
South Lakeland District Council,http://opendatacommunities.org/id/district-council/south-lakeland,31/07/2014,Business Support Community Services,Internal Trading Accounts,,ALLSTAR BUSINESS SOLUTIONS LTD (NCR),2631112,31-07-2014,0000042090,14837.02,0,Fuel to 15/06/14,381600,Vehicle Mgt Leasing
South Lakeland District Council,http://opendatacommunities.org/id/district-council/south-lakeland,31/07/2014,Development Implementation,Central Services,http://opendatacommunities.org/def/concept/finance/sercop/objective/102,GATES TRAVEL SERVICE,,07-07-2014,0000042099,55.1,0,Return rail travel ,261600,HR Travel & Subsistence
South Lakeland District Council,http://opendatacommunities.org/id/district-council/south-lakeland,31/07/2014,Development Implementation,Central Services,http://opendatacommunities.org/def/concept/finance/sercop/objective/102,GATES TRAVEL SERVICE,,14-07-2014,0000042100,33,0,Return train travel ,261600,HR Travel & Subsistence
South Lakeland District Council,http://opendatacommunities.org/id/district-council/south-lakeland,31/07/2014,Revenues and Benefits,Central Services,http://opendatacommunities.org/def/concept/finance/sercop/objective/102,Victoria Pink Transcription,,07-07-2014,0000042101,47.5,0,Audio Interviews Transcripts,271400,ICT Office & Reprographics Equipment
South Lakeland District Council,http://opendatacommunities.org/id/district-council/south-lakeland,31/07/2014,Environment and Housing,Housing Services,http://opendatacommunities.org/def/concept/finance/sercop/objective/108,James Andrews Recruitment Solutions,06834852,07-07-2014,0000042102,15.95,0,Milage for Agency Staff,261400,HR Temporary & Agency Staff
South Lakeland District Council,http://opendatacommunities.org/id/district-council/south-lakeland,31/07/2014,Environment and Housing,Housing Services,http://opendatacommunities.org/def/concept/finance/sercop/objective/108,James Andrews Recruitment Solutions,06834852,07-07-2014,0000042103,729,0,Salary for Agency staff ,261400,HR Temporary & Agency Staff
South Lakeland District Council,http://opendatacommunities.org/id/district-council/south-lakeland,31/07/2014,Business Support Community Services,Housing Services,http://opendatacommunities.org/def/concept/finance/sercop/objective/108,James Andrews Recruitment Solutions,06834852,07-07-2014,0000042104,912.5,0,Payment for ,261400,HR Temporary & Agency Staff
South Lakeland District Council,http://opendatacommunities.org/id/district-council/south-lakeland,31/07/2014,Business Support Community Services,Central Services,http://opendatacommunities.org/def/concept/finance/sercop/objective/102,RH Environmental Limited,,16-07-2014,0000042106,135,0,Private Water Supply Risk Assessment,202100,Financial Services Subscriptions
South Lakeland District Council,http://opendatacommunities.org/id/district-council/south-lakeland,31/07/2014,Social Enterprise Admin,Central Services,http://opendatacommunities.org/def/concept/finance/sercop/objective/102,HYGIENE CLEANING SUPPLIES LTD,04753934,16-07-2014,0000042107,265.35,0,TP12 Toric centre feed roll,131011,Cleaning & Janitorial Cleaning Materials
South Lakeland District Council,http://opendatacommunities.org/id/district-council/south-lakeland,31/07/2014,Financial Services,SLDC as Agent,,E H BOOTH & CO LTD,,07-07-2014,0000042108,77408.2,0,April - June 2014 Income,111200,Catering Food & Beverages
South Lakeland District Council,http://opendatacommunities.org/id/district-council/south-lakeland,31/07/2014,Financial Services,SLDC as Agent,,E H BOOTH & CO LTD,,07-07-2014,0000042108,8448.71,0,April - June 2014 Income,111200,Catering Food & Beverages
South Lakeland District Council,http://opendatacommunities.org/id/district-council/south-lakeland,31/07/2014,Financial Services,SLDC as Agent,,E H BOOTH & CO LTD,,07-07-2014,0000042108,32315.08,0,April - June 2014 Income,111200,Catering Food & Beverages
South Lakeland District Council,http://opendatacommunities.org/id/district-council/south-lakeland,31/07/2014,Environmental Protection,Cultural Environmental Regulatory & Planning Services,http://opendatacommunities.org/def/concept/finance/sercop/objective/104,PARKIN & JACKSON LTD,08282892,09-07-2014,0000042109,50,0,Resecure loose headstone on grave 232 B,121000,Cemetery & Crematorium Burial & Crem
South Lakeland District Council,http://opendatacommunities.org/id/district-council/south-lakeland,31/07/2014,Social Enterprise Admin,Highways & Transport Services,http://opendatacommunities.org/def/concept/finance/sercop/objective/107,RS COMPONENTS LTD,01002091,09-07-2014,0000042110,230.4,0,2 x High Power Airduster Cleaner 400g,101100,Building Electrical
South Lakeland District Council,http://opendatacommunities.org/id/district-council/south-lakeland,31/07/2014,Customer Services,Central Services,http://opendatacommunities.org/def/concept/finance/sercop/objective/102,SHRED-IT,04047194,16-07-2014,0000042111,154.33,0,For removal of Confidential waste from,279999,ICT Not Elsewhere Classified
South Lakeland District Council,http://opendatacommunities.org/id/district-council/south-lakeland,31/07/2014,Business Support Community Services,SLDC as Agent,,ALLERDALE BOROUGH COUNCIL,,07-07-2014,0000042112,12500,0,Funding for Allerdale Borough Council,908000,Public Bodies Council support services
South Lakeland District Council,http://opendatacommunities.org/id/district-council/south-lakeland,31/07/2014,Social Enterprise Admin,Cultural Environmental Regulatory & Planning Services,http://opendatacommunities.org/def/concept/finance/sercop/objective/104,ARB CONSULTANTS LTD,06082066,09-07-2014,0000042113,2900,0,Arboricultural contract April-Sept 14,159999,Consultancy Not Elsewhere Classified
South Lakeland District Council,http://opendatacommunities.org/id/district-council/south-lakeland,31/07/2014,Business Support Community Services,Internal Trading Accounts,,BUSINESS LINES LIMITED,01988026,21-07-2014,0000042116,88,0,Indicators,101400,Building General Materials
South Lakeland District Council,http://opendatacommunities.org/id/district-council/south-lakeland,31/07/2014,Business Support Community Services,Internal Trading Accounts,,QPS PLASTIC LTD,,09-07-2014,0000042117,106.75,0,Curtains,109999,Building Not Elsewhere Classified
South Lakeland District Council,http://opendatacommunities.org/id/district-council/south-lakeland,31/07/2014,Business Support Community Services,Cultural Environmental Regulatory & Planning Services,http://opendatacommunities.org/def/concept/finance/sercop/objective/104,OCS GROUP LTD T/A CANNON HYGIENE LTD,01298292,16-07-2014,0000042118,245.82,0,Clinical waste collections - July,131011,Cleaning & Janitorial Cleaning Materials
South Lakeland District Council,http://opendatacommunities.org/id/district-council/south-lakeland,31/07/2014,Business Support Community Services,Cultural Environmental Regulatory & Planning Services,http://opendatacommunities.org/def/concept/finance/sercop/objective/104,OCS GROUP LTD T/A CANNON HYGIENE LTD,01298292,16-07-2014,0000042119,1945.49,0,Clinical waste collections - June,131011,Cleaning & Janitorial Cleaning Materials
South Lakeland District Council,http://opendatacommunities.org/id/district-council/south-lakeland,31/07/2014,Business Support Community Services,Internal Trading Accounts,,LANCASTER TRAINING SERVICES LTD,01447612,09-07-2014,0000042120,833.75,0,FLT Operator training,261500,HR Training & Conferences
South Lakeland District Council,http://opendatacommunities.org/id/district-council/south-lakeland,31/07/2014,Printing Section,Central Services,http://opendatacommunities.org/def/concept/finance/sercop/objective/102,ROSEFOX PAPER LIMITED,01655083,16-07-2014,0000042121,555.58,0,Paper One A4 80gsm,341000,Stationery Paper
South Lakeland District Council,http://opendatacommunities.org/id/district-council/south-lakeland,31/07/2014,Business Support Community Services,Housing Services,http://opendatacommunities.org/def/concept/finance/sercop/objective/108,KENDAL SECURITY CENTRE LTD,03179893,09-07-2014,0000042122,25,0,Repair to cupboard at TVF,192212,Facilities Security Equipment
South Lakeland District Council,http://opendatacommunities.org/id/district-council/south-lakeland,31/07/2014,Business Support Community Services,Internal Trading Accounts,,BRIAN ARMISTEAD LTD T/A SINKFALL RECYCLI,04133280,09-07-2014,0000042123,1725.2,0,Green waste tipping - April (estimated),391110,Construction Buildings Construction
South Lakeland District Council,http://opendatacommunities.org/id/district-council/south-lakeland,31/07/2014,Social Enterprise Admin,Cultural Environmental Regulatory & Planning Services,http://opendatacommunities.org/def/concept/finance/sercop/objective/104,FURNESS NEWSPAPERS LTD,01155841,07-07-2014,0000042124,310.8,0,PUBLIC NOTICES FURNESS NEWSPAPERS,191000,Facilities Advertising
South Lakeland District Council,http://opendatacommunities.org/id/district-council/south-lakeland,31/07/2014,Legal Services,Internal Trading Accounts,,PENNINGTONS (KENDAL) LIMITED,00434649,16-07-2014,0000042126,2000,0,Annual Charge from 01 April 2014 to 31,182013,Environment Waste Mgt Waste Collection
South Lakeland District Council,http://opendatacommunities.org/id/district-council/south-lakeland,31/07/2014,Technical Team,Cultural Environmental Regulatory & Planning Services,http://opendatacommunities.org/def/concept/finance/sercop/objective/104,FRANK WILKINSON CAMERAS LTD,01945826,16-07-2014,0000042127,7.49,0,SD MEMORY CARD FOR  COOLPIX S6700 CAMERA,191100,Facilities Design & Photography
South Lakeland District Council,http://opendatacommunities.org/id/district-council/south-lakeland,31/07/2014,Social Enterprise Admin,Cultural Environmental Regulatory & Planning Services,http://opendatacommunities.org/def/concept/finance/sercop/objective/104,FRANK WILKINSON CAMERAS LTD,01945826,16-07-2014,0000042128,199.98,0,New Camera for Planning,191100,Facilities Design & Photography
South Lakeland District Council,http://opendatacommunities.org/id/district-council/south-lakeland,31/07/2014,ICT Group,SLDC as Agent,,CABLE & WIRELESS UK (VODAFONE),,09-07-2014,0000042129,539.77,0,Call Charges 24/5/14 - 25/6/14,271700,ICT Telecommunications Fixed
South Lakeland District Council,http://opendatacommunities.org/id/district-council/south-lakeland,31/07/2014,Business Support Community Services,Cultural Environmental Regulatory & Planning Services,http://opendatacommunities.org/def/concept/finance/sercop/objective/104,ALLSTAR BUSINESS SOLUTIONS LTD (NCR),2631112,31-07-2014,0000042130,41.1,0,Fuel - 10 June 2014,381600,Vehicle Mgt Leasing
South Lakeland District Council,http://opendatacommunities.org/id/district-council/south-lakeland,31/07/2014,Business Support Community Services,Internal Trading Accounts,,HAKO MACHINES LIMITED,01414225,16-07-2014,0000042131,4626.7,0,Hire of KX60 AOS - 2013/14,131000,Cleaning & Janitorial Cleaning Materials
South Lakeland District Council,http://opendatacommunities.org/id/district-council/south-lakeland,31/07/2014,Development Strategy,Housing Services,http://opendatacommunities.org/def/concept/finance/sercop/objective/108,MORGAN HUNT UK LIMITED,04349535,07-07-2014,0000042132,1497.76,0,Work for South,269999,HR Not Elsewhere Classified
South Lakeland District Council,http://opendatacommunities.org/id/district-council/south-lakeland,31/07/2014,Social Enterprise Admin,Central Services,http://opendatacommunities.org/def/concept/finance/sercop/objective/102,THE DOCUMENT MANAGEMENT GROUP LTD,05210023,16-07-2014,0000042133,425,0,COVER FOR FUJITSU a3 DESKTOP SCANNER,191200,Facilities Document Archiving & Storage
South Lakeland District Council,http://opendatacommunities.org/id/district-council/south-lakeland,31/07/2014,Business Support Community Services,Internal Trading Accounts,,DENNIS EAGLE LTD,03794455,16-07-2014,0000042134,172.32,0,Switches,381300,Vehicle Mgt Industrial
South Lakeland District Council,http://opendatacommunities.org/id/district-council/south-lakeland,31/07/2014,Business Support Community Services,Housing Services,http://opendatacommunities.org/def/concept/finance/sercop/objective/108,NEWSQUEST MEDIA GROUP LTD,03102566,11-08-2014,0000042135,605,0,Full size advertisement in Westmorland,191000,Facilities Advertising
South Lakeland District Council,http://opendatacommunities.org/id/district-council/south-lakeland,31/07/2014,Business Support Community Services,Cultural Environmental Regulatory & Planning Services,http://opendatacommunities.org/def/concept/finance/sercop/objective/104,Public Health England,,14-07-2014,0000042136,146.68,0,Sampling of cockles collected on 21 May,221100,Health & Safety� Maintenance
South Lakeland District Council,http://opendatacommunities.org/id/district-council/south-lakeland,31/07/2014,Customer Services,Central Services,http://opendatacommunities.org/def/concept/finance/sercop/objective/102,STEVEN BARBER PHOTOGRAPHY LTD,06058535,07-07-2014,0000042137,300,0,For Photography 2013 - March 2014,191100,Facilities Design & Photography
South Lakeland District Council,http://opendatacommunities.org/id/district-council/south-lakeland,31/07/2014,Social Enterprise Admin,Central Services,http://opendatacommunities.org/def/concept/finance/sercop/objective/102,CUMBRIA COUNTY COUNCIL,,21-07-2014,0000042138,4758.7,0,CCC HIGHWAYS SEARCHES MARCH 2014,908000,Public Bodies Council support services
South Lakeland District Council,http://opendatacommunities.org/id/district-council/south-lakeland,31/07/2014,Social Enterprise Admin,Central Services,http://opendatacommunities.org/def/concept/finance/sercop/objective/102,CUMBRIA COUNTY COUNCIL,,21-07-2014,0000042139,4249,0,LAND CHARGE SEARCH ENQUIRIES HIGHWAYS,908000,Public Bodies Council support services
South Lakeland District Council,http://opendatacommunities.org/id/district-council/south-lakeland,31/07/2014,Social Enterprise Admin,Central Services,http://opendatacommunities.org/def/concept/finance/sercop/objective/102,CUMBRIA COUNTY COUNCIL,,21-07-2014,0000042140,4041.4,0,LAND CHARGE SEARCH ENQUIRIES HIGHWAYS,908000,Public Bodies Council support services
South Lakeland District Council,http://opendatacommunities.org/id/district-council/south-lakeland,31/07/2014,Business Support Community Services,Internal Trading Accounts,,COMPASS COMPONENTS,,16-07-2014,0000042141,161.7,0,Consumables 01/04/14 - 31/03/15,101400,Building General Materials
South Lakeland District Council,http://opendatacommunities.org/id/district-council/south-lakeland,31/07/2014,Business Support Community Services,Internal Trading Accounts,,ATV CONTRACT SERVICES,,16-07-2014,0000042148,5584.92,0,Weed Spraying,391311,Construction Open Spaces Repair & Mtce
South Lakeland District Council,http://opendatacommunities.org/id/district-council/south-lakeland,31/07/2014,Business Support Community Services,Internal Trading Accounts,,EK MOTOR FACTORS LTD,00838524,16-07-2014,0000042149,61.03,0,Oil filter,381400,Vehicle Mgt Maintenance
South Lakeland District Council,http://opendatacommunities.org/id/district-council/south-lakeland,31/07/2014,Business Support Community Services,Internal Trading Accounts,,EK MOTOR FACTORS LTD,00838524,23-07-2014,0000042150,149.32,0,Oil filter,381400,Vehicle Mgt Maintenance
South Lakeland District Council,http://opendatacommunities.org/id/district-council/south-lakeland,31/07/2014,Business Support Community Services,Internal Trading Accounts,,EK MOTOR FACTORS LTD,00838524,16-07-2014,0000042151,59.59,0,Oil filter,381400,Vehicle Mgt Maintenance
South Lakeland District Council,http://opendatacommunities.org/id/district-council/south-lakeland,31/07/2014,Business Support Community Services,Internal Trading Accounts,,EK MOTOR FACTORS LTD,00838524,16-07-2014,0000042152,26.32,0,Oil filter,381400,Vehicle Mgt Maintenance
South Lakeland District Council,http://opendatacommunities.org/id/district-council/south-lakeland,31/07/2014,Business Support Community Services,Housing Services,http://opendatacommunities.org/def/concept/finance/sercop/objective/108,Wendy Allcock,,07-07-2014,0000042153,420,0,Rent in advance for Alistair Graham at 3,202000,Financial Services Rents
South Lakeland District Council,http://opendatacommunities.org/id/district-council/south-lakeland,31/07/2014,Business Support Community Services,Internal Trading Accounts,,EK MOTOR FACTORS LTD,00838524,09-07-2014,0000042154,-68.38,,Oil filter,381400,Vehicle Mgt Maintenance
South Lakeland District Council,http://opendatacommunities.org/id/district-council/south-lakeland,31/07/2014,Development Implementation,Cultural Environmental Regulatory & Planning Services,http://opendatacommunities.org/def/concept/finance/sercop/objective/104,A RICHARDSON - CRACKING SPREAD,,23-07-2014,0000042155,247,0,Catering for Business Event at Kendal,291000,Arts & Leisure Services Events
South Lakeland District Council,http://opendatacommunities.org/id/district-council/south-lakeland,31/07/2014,Business Support Community Services,Internal Trading Accounts,,EK MOTOR FACTORS LTD,00838524,16-07-2014,0000042156,28.99,0,Oil filter,381400,Vehicle Mgt Maintenance
South Lakeland District Council,http://opendatacommunities.org/id/district-council/south-lakeland,31/07/2014,Business Support Community Services,Central Services,http://opendatacommunities.org/def/concept/finance/sercop/objective/102,THOMSON REUTERS (PROFESSIONAL) UK LTD,01679046,14-07-2014,0000042157,158,0,Schofield's Election Law LL & CD R 18,202100,Financial Services Subscriptions
South Lakeland District Council,http://opendatacommunities.org/id/district-council/south-lakeland,31/07/2014,Business Support Community Services,Internal Trading Accounts,,EK MOTOR FACTORS LTD,00838524,23-07-2014,0000042158,1.47,0,Oil filter,381400,Vehicle Mgt Maintenance
South Lakeland District Council,http://opendatacommunities.org/id/district-council/south-lakeland,31/07/2014,Human Resources,Non-Service Payments,,COMPUTERSHARE VOUCHER SERVICES LTD,04968447,07-07-2014,0000042159,876,0,CHULD CARE VOUCHERS - APPROX. ?1000.00,202100,Financial Services Subscriptions
South Lakeland District Council,http://opendatacommunities.org/id/district-council/south-lakeland,31/07/2014,Business Support Community Services,Internal Trading Accounts,,K S INTERNATIONAL LTD,02703321,16-07-2014,0000042160,95,0,Water pump,381500,Vehicle Mgt Parts
South Lakeland District Council,http://opendatacommunities.org/id/district-council/south-lakeland,31/07/2014,Human Resources,Central Services,http://opendatacommunities.org/def/concept/finance/sercop/objective/102,COMPUTERSHARE VOUCHER SERVICES LTD,04968447,07-07-2014,0000042161,32.85,0,CHULD CARE VOUCHERS - APPROX. ?1000.00,202100,Financial Services Subscriptions
South Lakeland District Council,http://opendatacommunities.org/id/district-council/south-lakeland,31/07/2014,ICT Group,Central Services,http://opendatacommunities.org/def/concept/finance/sercop/objective/102,DAISY COMMUNICATIONS LTD,04145329,07-07-2014,0000042162,49.42,0,calls and line rental June 2014,271700,ICT Telecommunications Fixed
South Lakeland District Council,http://opendatacommunities.org/id/district-council/south-lakeland,31/07/2014,ICT Group,Highways & Transport Services,http://opendatacommunities.org/def/concept/finance/sercop/objective/107,DAISY COMMUNICATIONS LTD,04145329,07-07-2014,0000042162,11.65,0,calls and line rental June 2014,271700,ICT Telecommunications Fixed
South Lakeland District Council,http://opendatacommunities.org/id/district-council/south-lakeland,31/07/2014,ICT Group,Transport Planning Policy,http://opendatacommunities.org/def/concept/finance/sercop/objective/107,DAISY COMMUNICATIONS LTD,04145329,07-07-2014,0000042162,35.05,0,calls and line rental June 2014,271700,ICT Telecommunications Fixed
South Lakeland District Council,http://opendatacommunities.org/id/district-council/south-lakeland,31/07/2014,ICT Group,Transport Planning Policy,http://opendatacommunities.org/def/concept/finance/sercop/objective/107,DAISY COMMUNICATIONS LTD,04145329,07-07-2014,0000042162,39.25,0,calls and line rental June 2014,271700,ICT Telecommunications Fixed
South Lakeland District Council,http://opendatacommunities.org/id/district-council/south-lakeland,31/07/2014,ICT Group,Cultural Environmental Regulatory & Planning Services,http://opendatacommunities.org/def/concept/finance/sercop/objective/104,DAISY COMMUNICATIONS LTD,04145329,07-07-2014,0000042162,23.36,0,calls and line rental June 2014,271700,ICT Telecommunications Fixed
South Lakeland District Council,http://opendatacommunities.org/id/district-council/south-lakeland,31/07/2014,ICT Group,Housing Services,http://opendatacommunities.org/def/concept/finance/sercop/objective/108,DAISY COMMUNICATIONS LTD,04145329,07-07-2014,0000042162,39.18,0,calls and line rental June 2014,271700,ICT Telecommunications Fixed
South Lakeland District Council,http://opendatacommunities.org/id/district-council/south-lakeland,31/07/2014,ICT Group,Cultural Environmental Regulatory & Planning Services,http://opendatacommunities.org/def/concept/finance/sercop/objective/104,DAISY COMMUNICATIONS LTD,04145329,07-07-2014,0000042162,89.87,0,calls and line rental June 2014,271700,ICT Telecommunications Fixed
South Lakeland District Council,http://opendatacommunities.org/id/district-council/south-lakeland,31/07/2014,ICT Group,External Trading Accounts,,DAISY COMMUNICATIONS LTD,04145329,07-07-2014,0000042162,6,0,calls and line rental June 2014,271700,ICT Telecommunications Fixed
South Lakeland District Council,http://opendatacommunities.org/id/district-council/south-lakeland,31/07/2014,ICT Group,External Trading Accounts,,DAISY COMMUNICATIONS LTD,04145329,07-07-2014,0000042162,37.34,0,calls and line rental June 2014,271700,ICT Telecommunications Fixed
South Lakeland District Council,http://opendatacommunities.org/id/district-council/south-lakeland,31/07/2014,ICT Group,Cultural Environmental Regulatory & Planning Services,http://opendatacommunities.org/def/concept/finance/sercop/objective/104,DAISY COMMUNICATIONS LTD,04145329,07-07-2014,0000042162,36.98,0,calls and line rental June 2014,271700,ICT Telecommunications Fixed
South Lakeland District Council,http://opendatacommunities.org/id/district-council/south-lakeland,31/07/2014,ICT Group,Cultural Environmental Regulatory & Planning Services,http://opendatacommunities.org/def/concept/finance/sercop/objective/104,DAISY COMMUNICATIONS LTD,04145329,07-07-2014,0000042162,113.26,0,calls and line rental June 2014,271700,ICT Telecommunications Fixed
South Lakeland District Council,http://opendatacommunities.org/id/district-council/south-lakeland,31/07/2014,ICT Group,SLDC as Agent,,DAISY COMMUNICATIONS LTD,04145329,07-07-2014,0000042162,103.54,0,calls and line rental June 2014,271700,ICT Telecommunications Fixed
South Lakeland District Council,http://opendatacommunities.org/id/district-council/south-lakeland,31/07/2014,ICT Group,SLDC as Agent,,DAISY COMMUNICATIONS LTD,04145329,07-07-2014,0000042162,25.32,0,calls and line rental June 2014,271700,ICT Telecommunications Fixed
South Lakeland District Council,http://opendatacommunities.org/id/district-council/south-lakeland,31/07/2014,Business Support Community Services,Internal Trading Accounts,,K S INTERNATIONAL LTD,02703321,16-07-2014,0000042164,66,0,Water pump,381500,Vehicle Mgt Parts
South Lakeland District Council,http://opendatacommunities.org/id/district-council/south-lakeland,31/07/2014,Business Support Community Services,Internal Trading Accounts,,THOMAS GRAHAM & SONS (IRON & STEEL) LTD,00656879,21-07-2014,0000042165,3.52,0,Battery,101400,Building General Materials
South Lakeland District Council,http://opendatacommunities.org/id/district-council/south-lakeland,31/07/2014,Lake Wardens,Cultural Environmental Regulatory & Planning Services,http://opendatacommunities.org/def/concept/finance/sercop/objective/104,AUTOPARTS (CUMBRIA) LTD,02579204,07-07-2014,0000042166,21.24,0,3 x 20 Litre Metal Jerry Cans,381500,Vehicle Mgt Parts
South Lakeland District Council,http://opendatacommunities.org/id/district-council/south-lakeland,31/07/2014,Business Support Community Services,Internal Trading Accounts,,M G D LTD,,21-07-2014,0000042167,35,0,MOTs 01/04/14 - 31/03/15,381400,Vehicle Mgt Maintenance
South Lakeland District Council,http://opendatacommunities.org/id/district-council/south-lakeland,31/07/2014,Lake Wardens,Cultural Environmental Regulatory & Planning Services,http://opendatacommunities.org/def/concept/finance/sercop/objective/104,AUTOPARTS (CUMBRIA) LTD,02579204,07-07-2014,0000042168,66.72,0,3 x 20 Litre Metal Jerry Cans,381500,Vehicle Mgt Parts
South Lakeland District Council,http://opendatacommunities.org/id/district-council/south-lakeland,31/07/2014,Revenues and Benefits,SLDC as Agent,,ROYAL MAIL GROUP PLC,,07-07-2014,0000042169,1240.29,0,2014-15  Postal Charges a/c 0198123013,301200,Mail Services� Postage
South Lakeland District Council,http://opendatacommunities.org/id/district-council/south-lakeland,31/07/2014,Environment and Housing,SLDC as Agent,,ABRITAS LTD,04101079,09-07-2014,0000042170,7576,0,Cumbria Choice Partnership Annual IT,151200,Consultancy Efficiency
South Lakeland District Council,http://opendatacommunities.org/id/district-council/south-lakeland,31/07/2014,Revenues and Benefits,SLDC as Agent,,ROYAL MAIL GROUP PLC,,07-07-2014,0000042171,1621.79,0,2014-15  Postal Charges a/c 0198123013,301200,Mail Services� Postage
South Lakeland District Council,http://opendatacommunities.org/id/district-council/south-lakeland,31/07/2014,Environment and Housing,SLDC as Agent,,ABRITAS LTD,04101079,09-07-2014,0000042172,7576,0,Cumbria Choice Partnership Annual IT,151200,Consultancy Efficiency
South Lakeland District Council,http://opendatacommunities.org/id/district-council/south-lakeland,31/07/2014,Revenues and Benefits,SLDC as Agent,,ROYAL MAIL GROUP PLC,,07-07-2014,0000042173,1315.34,0,2014-15  Postal Charges a/c 0198123013,301200,Mail Services� Postage
South Lakeland District Council,http://opendatacommunities.org/id/district-council/south-lakeland,31/07/2014,Environment and Housing,SLDC as Agent,,ABRITAS LTD,04101079,09-07-2014,0000042174,7576,0,Cumbria Choice Partnership Annual IT,151200,Consultancy Efficiency
South Lakeland District Council,http://opendatacommunities.org/id/district-council/south-lakeland,31/07/2014,Customer Services,Central Services,http://opendatacommunities.org/def/concept/finance/sercop/objective/102,FOOD (KENDAL) LTD,07490600,07-07-2014,0000042175,50,0,Buffet lunch for students from,261000,HR Accommodation
South Lakeland District Council,http://opendatacommunities.org/id/district-council/south-lakeland,31/07/2014,Environment and Housing,SLDC as Agent,,ABRITAS LTD,04101079,09-07-2014,0000042176,7576,0,Cumbria Choice Partnership Annual IT,151200,Consultancy Efficiency
South Lakeland District Council,http://opendatacommunities.org/id/district-council/south-lakeland,31/07/2014,Environment and Housing,SLDC as Agent,,ABRITAS LTD,04101079,09-07-2014,0000042177,7783,0,Cumbria Choice Partnership Annual IT,151200,Consultancy Efficiency
South Lakeland District Council,http://opendatacommunities.org/id/district-council/south-lakeland,31/07/2014,Social Enterprise Admin,Cultural Environmental Regulatory & Planning Services,http://opendatacommunities.org/def/concept/finance/sercop/objective/104,Matchtech,02526418,14-07-2014,0000042178,1068.19,0,TO SUPPLY DEVELOPMENT CONTROL TEAM,261300,HR Recruitment & Assessment
South Lakeland District Council,http://opendatacommunities.org/id/district-council/south-lakeland,31/07/2014,Environment and Housing,SLDC as Agent,,ABRITAS LTD,04101079,09-07-2014,0000042179,7576,0,Cumbria Choice Partnership Annual IT,151200,Consultancy Efficiency
South Lakeland District Council,http://opendatacommunities.org/id/district-council/south-lakeland,31/07/2014,Business Support Community Services,Housing Services,http://opendatacommunities.org/def/concept/finance/sercop/objective/108,UNDERHILL SERVICES LIMITED,06442130,21-07-2014,0000042182,120,0,"Cleaning for New Road, LA9",131310,Cleaning & Janitorial Cleaning Service
South Lakeland District Council,http://opendatacommunities.org/id/district-council/south-lakeland,31/07/2014,Business Support Community Services,Housing Services,http://opendatacommunities.org/def/concept/finance/sercop/objective/108,BUNZL CLEANING & HYGIENE SUPPLIES,2902454,09-07-2014,0000042183,84.42,0,TOILET CLEANER  (1 BOX)  037018,131011,Cleaning & Janitorial Cleaning Materials
South Lakeland District Council,http://opendatacommunities.org/id/district-council/south-lakeland,31/07/2014,Business Support Community Services,Housing Services,http://opendatacommunities.org/def/concept/finance/sercop/objective/108,E ON ENERGY,04060387,07-07-2014,0000042184,56.48,0,"Electricity Bill for Beast Bank,",379999,Utilities Not Elsewhere Classified
South Lakeland District Council,http://opendatacommunities.org/id/district-council/south-lakeland,31/07/2014,Lake Wardens,Cultural Environmental Regulatory & Planning Services,http://opendatacommunities.org/def/concept/finance/sercop/objective/104,PHS GROUP PLC,,16-07-2014,0000042190,45,0,Annual Contract Fee for Sanitary,131312,Cleaning & Janitorial Washroom Sanitat
South Lakeland District Council,http://opendatacommunities.org/id/district-council/south-lakeland,31/07/2014,Business Support Community Services,Internal Trading Accounts,,DENNIS EAGLE LTD,03794455,21-07-2014,0000042195,56.81,0,Switches,381300,Vehicle Mgt Industrial
South Lakeland District Council,http://opendatacommunities.org/id/district-council/south-lakeland,31/07/2014,Lake Wardens,Cultural Environmental Regulatory & Planning Services,http://opendatacommunities.org/def/concept/finance/sercop/objective/104,ENVIROFIRST LTD,05999123,16-07-2014,0000042196,56,0,Monthly Rental & Emptying of Re-Cycling,182012,Environment Waste Management Recycling
South Lakeland District Council,http://opendatacommunities.org/id/district-council/south-lakeland,31/07/2014,ICT Group,Central Services,http://opendatacommunities.org/def/concept/finance/sercop/objective/102,IT PROFESSIONAL SERVICES (ITPS),,21-07-2014,0000042197,750,0,AOS day for Lync database work,279999,ICT Not Elsewhere Classified
South Lakeland District Council,http://opendatacommunities.org/id/district-council/south-lakeland,31/07/2014,Social Enterprise Admin,Central Services,http://opendatacommunities.org/def/concept/finance/sercop/objective/102,ENVIROFIRST LTD,05999123,16-07-2014,0000042198,78.75,0,Lowther Street Wheelie Bin Mixed,182012,Environment Waste Management Recycling
South Lakeland District Council,http://opendatacommunities.org/id/district-council/south-lakeland,31/07/2014,Customer Services,Central Services,http://opendatacommunities.org/def/concept/finance/sercop/objective/102,SHRED-IT,04047194,21-07-2014,0000042199,199.4,0,Removal of confidential waste from South,279999,ICT Not Elsewhere Classified
South Lakeland District Council,http://opendatacommunities.org/id/district-council/south-lakeland,31/07/2014,Coronation Hall,External Trading Accounts,,Morson International,,14-07-2014,0000042200,79.52,0,Ulverston Market Hall cleaner from April,261300,HR Recruitment & Assessment
South Lakeland District Council,http://opendatacommunities.org/id/district-council/south-lakeland,31/07/2014,Environment and Housing,Housing Services,http://opendatacommunities.org/def/concept/finance/sercop/objective/108,CUMBRIA RURAL HOUSING TRUST,02920997,14-07-2014,0000042201,833.33,0,Enabling contract 1/4/14 - 30/9/14,250000,Housing
South Lakeland District Council,http://opendatacommunities.org/id/district-council/south-lakeland,31/07/2014,Lake Wardens,Cultural Environmental Regulatory & Planning Services,http://opendatacommunities.org/def/concept/finance/sercop/objective/104,BISHOP SPORTS & LEISURE LTD,00842463,21-07-2014,0000042202,38.3,0,1 x Bag of Long Golf Tees,291400,Arts & Leisure Services Sport & Fitness
South Lakeland District Council,http://opendatacommunities.org/id/district-council/south-lakeland,31/07/2014,Business Support Community Services,Internal Trading Accounts,,HAKO MACHINES LIMITED,01414225,09-07-2014,0000042203,65.43,0,Motor,131000,Cleaning & Janitorial Cleaning Materials
South Lakeland District Council,http://opendatacommunities.org/id/district-council/south-lakeland,31/07/2014,Business Support Community Services,Internal Trading Accounts,,HYDRAIR TRUCK & TRAILER PARTS LTD,,09-07-2014,0000042204,498.76,0,Load sensing valve,381500,Vehicle Mgt Parts
South Lakeland District Council,http://opendatacommunities.org/id/district-council/south-lakeland,31/07/2014,Business Support Community Services,Internal Trading Accounts,,HYDRAIR TRUCK & TRAILER PARTS LTD,,09-07-2014,0000042205,368.31,0,Load sensing valve,381500,Vehicle Mgt Parts
South Lakeland District Council,http://opendatacommunities.org/id/district-council/south-lakeland,31/07/2014,Business Support Community Services,Internal Trading Accounts,,K S INTERNATIONAL LTD,02703321,09-07-2014,0000042206,67,0,Water pump,381500,Vehicle Mgt Parts
South Lakeland District Council,http://opendatacommunities.org/id/district-council/south-lakeland,31/07/2014,Business Support Community Services,Internal Trading Accounts,,K S INTERNATIONAL LTD,02703321,14-07-2014,0000042207,102,0,Water pump,381500,Vehicle Mgt Parts
South Lakeland District Council,http://opendatacommunities.org/id/district-council/south-lakeland,31/07/2014,Business Support Community Services,Internal Trading Accounts,,ALLSTAR BUSINESS SOLUTIONS LTD (NCR),2631112,31-07-2014,0000042208,3806.69,0,Fuel to 30/06,381600,Vehicle Mgt Leasing
South Lakeland District Council,http://opendatacommunities.org/id/district-council/south-lakeland,31/07/2014,Business Support Community Services,Internal Trading Accounts,,ALLSTAR BUSINESS SOLUTIONS LTD (NCR),2631112,31-07-2014,0000042208,122,0,Fuel to 30/06,381600,Vehicle Mgt Leasing
South Lakeland District Council,http://opendatacommunities.org/id/district-council/south-lakeland,31/07/2014,Business Support Community Services,Internal Trading Accounts,,ALLSTAR BUSINESS SOLUTIONS LTD (NCR),2631112,31-07-2014,0000042208,13434.62,0,Fuel to 30/06,381600,Vehicle Mgt Leasing
South Lakeland District Council,http://opendatacommunities.org/id/district-council/south-lakeland,31/07/2014,Social Enterprise Admin,Cultural Environmental Regulatory & Planning Services,http://opendatacommunities.org/def/concept/finance/sercop/objective/104,ALLSTAR BUSINESS SOLUTIONS LTD (NCR),2631112,31-07-2014,0000042209,61.67,0,Fuel for Parks vehicle PX63 KSN April,381600,Vehicle Mgt Leasing
South Lakeland District Council,http://opendatacommunities.org/id/district-council/south-lakeland,31/07/2014,Business Support Community Services,Cultural Environmental Regulatory & Planning Services,http://opendatacommunities.org/def/concept/finance/sercop/objective/104,MILNTHORPE KENNELS & CATTERY,08932302,23-07-2014,0000042210,2382.33,0,Stray dog kennelling fees April 20014 -,181500,Environment Animal Services
South Lakeland District Council,http://opendatacommunities.org/id/district-council/south-lakeland,31/07/2014,Business Support Community Services,Housing Services,http://opendatacommunities.org/def/concept/finance/sercop/objective/108,Julian Legat,,09-07-2014,0000042211,460,0,Rent in advance ,202000,Financial Services Rents
South Lakeland District Council,http://opendatacommunities.org/id/district-council/south-lakeland,31/07/2014,Financial Services,SLDC as Agent,,LAKELAND ESTATES (AMBLESIDE) LTD,03022544,09-07-2014,0000042212,16793.1,0,14/15 Millerfield Car Park Income,191700,Facilities Property Management
South Lakeland District Council,http://opendatacommunities.org/id/district-council/south-lakeland,31/07/2014,Social Enterprise Admin,Cultural Environmental Regulatory & Planning Services,http://opendatacommunities.org/def/concept/finance/sercop/objective/104,Cleartrack (EvL) Ltd,03881690,09-07-2014,0000042214,430,0,Dodding Holme Mealbank- Remove tree and,199999,Facilities Not Elsewhere Classified
South Lakeland District Council,http://opendatacommunities.org/id/district-council/south-lakeland,31/07/2014,Social Enterprise Admin,Cultural Environmental Regulatory & Planning Services,http://opendatacommunities.org/def/concept/finance/sercop/objective/104,Cleartrack (EvL) Ltd,03881690,09-07-2014,0000042215,1068.75,0,ALL COSTINGS WITH 5% DISCOUNT AS AGREED,199999,Facilities Not Elsewhere Classified
South Lakeland District Council,http://opendatacommunities.org/id/district-council/south-lakeland,31/07/2014,Social Enterprise Admin,Cultural Environmental Regulatory & Planning Services,http://opendatacommunities.org/def/concept/finance/sercop/objective/104,Cleartrack (EvL) Ltd,03881690,09-07-2014,0000042216,2042.05,0,ALL COSTINGS WITH 5% DISCOUNT AS AGREED,199999,Facilities Not Elsewhere Classified
South Lakeland District Council,http://opendatacommunities.org/id/district-council/south-lakeland,31/07/2014,Social Enterprise Admin,Cultural Environmental Regulatory & Planning Services,http://opendatacommunities.org/def/concept/finance/sercop/objective/104,Cleartrack (EvL) Ltd,03881690,09-07-2014,0000042217,340.42,0,ALL COSTINGS WITH 5% DISCOUNT AS AGREED,199999,Facilities Not Elsewhere Classified
South Lakeland District Council,http://opendatacommunities.org/id/district-council/south-lakeland,31/07/2014,Social Enterprise Admin,Cultural Environmental Regulatory & Planning Services,http://opendatacommunities.org/def/concept/finance/sercop/objective/104,Cleartrack (EvL) Ltd,03881690,09-07-2014,0000042218,78.07,0,ALL COSTINGS WITH 5% DISCOUNT AS AGREED,199999,Facilities Not Elsewhere Classified
South Lakeland District Council,http://opendatacommunities.org/id/district-council/south-lakeland,31/07/2014,Legal Services,Central Services,http://opendatacommunities.org/def/concept/finance/sercop/objective/102,VENN GROUP RECRUITMENT SOLUTIONS,,09-07-2014,0000042219,950.94,0,Wages from w/k ending,261400,HR Temporary & Agency Staff
South Lakeland District Council,http://opendatacommunities.org/id/district-council/south-lakeland,31/07/2014,Business Support Community Services,Internal Trading Accounts,,DENNIS EAGLE LTD,03794455,23-07-2014,0000042224,41.82,0,Switches,381300,Vehicle Mgt Industrial
South Lakeland District Council,http://opendatacommunities.org/id/district-council/south-lakeland,31/07/2014,Development Implementation,Cultural Environmental Regulatory & Planning Services,http://opendatacommunities.org/def/concept/finance/sercop/objective/104,Evans Marquee Hire Ltd,07942491,23-07-2014,0000042225,646.6,0,Marquee hire for an event in Kendal town,291000,Arts & Leisure Services Events
South Lakeland District Council,http://opendatacommunities.org/id/district-council/south-lakeland,31/07/2014,Social Enterprise Admin,Cultural Environmental Regulatory & Planning Services,http://opendatacommunities.org/def/concept/finance/sercop/objective/104,FURNESS NEWSPAPERS LTD,01155841,14-07-2014,0000042226,124.32,0,PUBLIC NOTICES FOR PLANNING DEPARTMENT,191000,Facilities Advertising
South Lakeland District Council,http://opendatacommunities.org/id/district-council/south-lakeland,31/07/2014,Lake Wardens,Cultural Environmental Regulatory & Planning Services,http://opendatacommunities.org/def/concept/finance/sercop/objective/104,OFCOM,07753885,09-07-2014,0000042227,80,0,Coastal Station Radio Licence -,202100,Financial Services Subscriptions
South Lakeland District Council,http://opendatacommunities.org/id/district-council/south-lakeland,31/07/2014,Lake Wardens,Cultural Environmental Regulatory & Planning Services,http://opendatacommunities.org/def/concept/finance/sercop/objective/104,SHORROCK TRICHEM,04179799,14-07-2014,0000042228,364.64,0,1 x Hi-Foam Hand Dishwashing Detergent,131312,Cleaning & Janitorial Washroom Sanitat
South Lakeland District Council,http://opendatacommunities.org/id/district-council/south-lakeland,31/07/2014,Social Enterprise Admin,Highways & Transport Services,http://opendatacommunities.org/def/concept/finance/sercop/objective/107,ALLSTAR BUSINESS SOLUTIONS LTD (NCR),2631112,31-07-2014,0000042229,344.17,0,Fuel for car parks' vehicles starting 1,381600,Vehicle Mgt Leasing
South Lakeland District Council,http://opendatacommunities.org/id/district-council/south-lakeland,31/07/2014,Social Enterprise Admin,Cultural Environmental Regulatory & Planning Services,http://opendatacommunities.org/def/concept/finance/sercop/objective/104,ALLSTAR BUSINESS SOLUTIONS LTD (NCR),2631112,31-07-2014,0000042229,45.35,0,Fuel for car parks' vehicles starting 1,381600,Vehicle Mgt Leasing
South Lakeland District Council,http://opendatacommunities.org/id/district-council/south-lakeland,31/07/2014,Social Enterprise Admin,Central Services,http://opendatacommunities.org/def/concept/finance/sercop/objective/102,ADECCO UK LIMITED,00593232,14-07-2014,0000042230,516.15,0,TEMPORARY GAZETTEER OFFICER,261400,HR Temporary & Agency Staff
South Lakeland District Council,http://opendatacommunities.org/id/district-council/south-lakeland,31/07/2014,Development Implementation,Cultural Environmental Regulatory & Planning Services,http://opendatacommunities.org/def/concept/finance/sercop/objective/104,PS BUSINESS MATTERS,08147185,23-07-2014,0000042231,2000,0,Kendal Futures - Programme Support,151900,Consultancy Management
South Lakeland District Council,http://opendatacommunities.org/id/district-council/south-lakeland,31/07/2014,Business Support Community Services,Internal Trading Accounts,,HAKO MACHINES LIMITED,01414225,23-07-2014,0000042232,258.97,0,Panel,131000,Cleaning & Janitorial Cleaning Materials
South Lakeland District Council,http://opendatacommunities.org/id/district-council/south-lakeland,31/07/2014,Social Enterprise Admin,Central Services,http://opendatacommunities.org/def/concept/finance/sercop/objective/102,ADECCO UK LIMITED,00593232,14-07-2014,0000042233,433.48,0,TEMPORARY GAZETTEER OFFICER,261400,HR Temporary & Agency Staff
South Lakeland District Council,http://opendatacommunities.org/id/district-council/south-lakeland,31/07/2014,Business Support Community Services,Housing Services,http://opendatacommunities.org/def/concept/finance/sercop/objective/108,ADECCO UK LIMITED,00593232,14-07-2014,0000042234,103.8,0,Cleaner for Town View Fields,261400,HR Temporary & Agency Staff
South Lakeland District Council,http://opendatacommunities.org/id/district-council/south-lakeland,31/07/2014,Business Support Community Services,Internal Trading Accounts,,RIBBLE FUEL OILS,,23-07-2014,0000042235,1410.47,0,Gas oil for Canal Head,381100,Vehicle Mgt Fuel
South Lakeland District Council,http://opendatacommunities.org/id/district-council/south-lakeland,31/07/2014,Business Support Community Services,Internal Trading Accounts,,VOLVO GROUP UK LTD,02190944,23-07-2014,0000042236,82.5,0,Thermostat,381000,Vehicle Mgt Commercial
South Lakeland District Council,http://opendatacommunities.org/id/district-council/south-lakeland,31/07/2014,Business Support Community Services,Internal Trading Accounts,,DENNIS EAGLE LTD,03794455,21-07-2014,0000042237,120.93,0,Switches,381300,Vehicle Mgt Industrial
South Lakeland District Council,http://opendatacommunities.org/id/district-council/south-lakeland,31/07/2014,Human Resources,Central Services,http://opendatacommunities.org/def/concept/finance/sercop/objective/102,PHASE 3 CONSULTING,05034692,23-07-2014,0000042238,550,0,Elaine Richardson - iTrent Services -,151000,Consultancy Business
South Lakeland District Council,http://opendatacommunities.org/id/district-council/south-lakeland,31/07/2014,Business Support Community Services,Internal Trading Accounts,,EK MOTOR FACTORS LTD,00838524,09-07-2014,0000042239,5.95,0,Plates,381400,Vehicle Mgt Maintenance
South Lakeland District Council,http://opendatacommunities.org/id/district-council/south-lakeland,31/07/2014,Business Support Community Services,Internal Trading Accounts,,EK MOTOR FACTORS LTD,00838524,09-07-2014,0000042240,11.9,0,Plates,381400,Vehicle Mgt Maintenance
South Lakeland District Council,http://opendatacommunities.org/id/district-council/south-lakeland,31/07/2014,Business Support Community Services,Internal Trading Accounts,,EK MOTOR FACTORS LTD,00838524,09-07-2014,0000042241,35.2,0,Plates,381400,Vehicle Mgt Maintenance
South Lakeland District Council,http://opendatacommunities.org/id/district-council/south-lakeland,31/07/2014,Business Support Community Services,Internal Trading Accounts,,EK MOTOR FACTORS LTD,00838524,09-07-2014,0000042242,48.41,0,Plates,381400,Vehicle Mgt Maintenance
South Lakeland District Council,http://opendatacommunities.org/id/district-council/south-lakeland,31/07/2014,Business Support Community Services,Internal Trading Accounts,,EK MOTOR FACTORS LTD,00838524,09-07-2014,0000042243,-20,,Plates,381400,Vehicle Mgt Maintenance
South Lakeland District Council,http://opendatacommunities.org/id/district-council/south-lakeland,31/07/2014,Business Support Community Services,Internal Trading Accounts,,EK MOTOR FACTORS LTD,00838524,09-07-2014,0000042244,25.42,0,Plates,381400,Vehicle Mgt Maintenance
South Lakeland District Council,http://opendatacommunities.org/id/district-council/south-lakeland,31/07/2014,Business Support Community Services,Internal Trading Accounts,,EK MOTOR FACTORS LTD,00838524,09-07-2014,0000042245,2.32,0,Plates,381400,Vehicle Mgt Maintenance
South Lakeland District Council,http://opendatacommunities.org/id/district-council/south-lakeland,31/07/2014,Business Support Community Services,Transport Planning Policy,http://opendatacommunities.org/def/concept/finance/sercop/objective/107,ARCO LIMITED,00133804,16-07-2014,0000042246,55.7,0,Skin safety centres,141100,Clothing Protective
South Lakeland District Council,http://opendatacommunities.org/id/district-council/south-lakeland,31/07/2014,Business Support Community Services,Transport Planning Policy,http://opendatacommunities.org/def/concept/finance/sercop/objective/107,ARCO LIMITED,00133804,16-07-2014,0000042246,55.7,0,Skin safety centres,141100,Clothing Protective
South Lakeland District Council,http://opendatacommunities.org/id/district-council/south-lakeland,31/07/2014,Business Support Community Services,Transport Planning Policy,http://opendatacommunities.org/def/concept/finance/sercop/objective/107,ARCO LIMITED,00133804,16-07-2014,0000042246,55.7,0,Skin safety centres,141100,Clothing Protective
South Lakeland District Council,http://opendatacommunities.org/id/district-council/south-lakeland,31/07/2014,Business Support Community Services,Internal Trading Accounts,,ARCO LIMITED,00133804,16-07-2014,0000042247,56,0,Ear plugs,141100,Clothing Protective
South Lakeland District Council,http://opendatacommunities.org/id/district-council/south-lakeland,31/07/2014,ICT Group,Central Services,http://opendatacommunities.org/def/concept/finance/sercop/objective/102,CABLE & WIRELESS UK (VODAFONE),,09-07-2014,0000042248,2908.2,0,"GSi Convergence Framework, MSP Dedicated",271700,ICT Telecommunications Fixed
South Lakeland District Council,http://opendatacommunities.org/id/district-council/south-lakeland,31/07/2014,ICT Group,Central Services,http://opendatacommunities.org/def/concept/finance/sercop/objective/102,DAISY COMMUNICATIONS LTD,04145329,21-07-2014,0000042249,50.7,0,Calls and Line Rental July 2014,271700,ICT Telecommunications Fixed
South Lakeland District Council,http://opendatacommunities.org/id/district-council/south-lakeland,31/07/2014,ICT Group,Highways & Transport Services,http://opendatacommunities.org/def/concept/finance/sercop/objective/107,DAISY COMMUNICATIONS LTD,04145329,21-07-2014,0000042249,11.65,0,Calls and Line Rental July 2014,271700,ICT Telecommunications Fixed
South Lakeland District Council,http://opendatacommunities.org/id/district-council/south-lakeland,31/07/2014,ICT Group,Transport Planning Policy,http://opendatacommunities.org/def/concept/finance/sercop/objective/107,DAISY COMMUNICATIONS LTD,04145329,21-07-2014,0000042249,76.76,0,Calls and Line Rental July 2014,271700,ICT Telecommunications Fixed
South Lakeland District Council,http://opendatacommunities.org/id/district-council/south-lakeland,31/07/2014,ICT Group,Cultural Environmental Regulatory & Planning Services,http://opendatacommunities.org/def/concept/finance/sercop/objective/104,DAISY COMMUNICATIONS LTD,04145329,21-07-2014,0000042249,23.3,0,Calls and Line Rental July 2014,271700,ICT Telecommunications Fixed
South Lakeland District Council,http://opendatacommunities.org/id/district-council/south-lakeland,31/07/2014,ICT Group,Housing Services,http://opendatacommunities.org/def/concept/finance/sercop/objective/108,DAISY COMMUNICATIONS LTD,04145329,21-07-2014,0000042249,39.99,0,Calls and Line Rental July 2014,271700,ICT Telecommunications Fixed
South Lakeland District Council,http://opendatacommunities.org/id/district-council/south-lakeland,31/07/2014,ICT Group,Cultural Environmental Regulatory & Planning Services,http://opendatacommunities.org/def/concept/finance/sercop/objective/104,DAISY COMMUNICATIONS LTD,04145329,21-07-2014,0000042249,96.46,0,Calls and Line Rental July 2014,271700,ICT Telecommunications Fixed
South Lakeland District Council,http://opendatacommunities.org/id/district-council/south-lakeland,31/07/2014,ICT Group,External Trading Accounts,,DAISY COMMUNICATIONS LTD,04145329,21-07-2014,0000042249,6,0,Calls and Line Rental July 2014,271700,ICT Telecommunications Fixed
South Lakeland District Council,http://opendatacommunities.org/id/district-council/south-lakeland,31/07/2014,ICT Group,External Trading Accounts,,DAISY COMMUNICATIONS LTD,04145329,21-07-2014,0000042249,37.33,0,Calls and Line Rental July 2014,271700,ICT Telecommunications Fixed
South Lakeland District Council,http://opendatacommunities.org/id/district-council/south-lakeland,31/07/2014,ICT Group,Cultural Environmental Regulatory & Planning Services,http://opendatacommunities.org/def/concept/finance/sercop/objective/104,DAISY COMMUNICATIONS LTD,04145329,21-07-2014,0000042249,35.61,0,Calls and Line Rental July 2014,271700,ICT Telecommunications Fixed
South Lakeland District Council,http://opendatacommunities.org/id/district-council/south-lakeland,31/07/2014,ICT Group,Cultural Environmental Regulatory & Planning Services,http://opendatacommunities.org/def/concept/finance/sercop/objective/104,DAISY COMMUNICATIONS LTD,04145329,21-07-2014,0000042249,114.77,0,Calls and Line Rental July 2014,271700,ICT Telecommunications Fixed
South Lakeland District Council,http://opendatacommunities.org/id/district-council/south-lakeland,31/07/2014,ICT Group,SLDC as Agent,,DAISY COMMUNICATIONS LTD,04145329,21-07-2014,0000042249,104.04,0,Calls and Line Rental July 2014,271700,ICT Telecommunications Fixed
South Lakeland District Council,http://opendatacommunities.org/id/district-council/south-lakeland,31/07/2014,ICT Group,SLDC as Agent,,DAISY COMMUNICATIONS LTD,04145329,21-07-2014,0000042249,27.96,0,Calls and Line Rental July 2014,271700,ICT Telecommunications Fixed
South Lakeland District Council,http://opendatacommunities.org/id/district-council/south-lakeland,31/07/2014,Business Support Community Services,Cultural Environmental Regulatory & Planning Services,http://opendatacommunities.org/def/concept/finance/sercop/objective/104,C T HAYTON LTD,01212766,16-07-2014,0000042252,13.62,0,Mole Grips,391200,Construction Engineering
South Lakeland District Council,http://opendatacommunities.org/id/district-council/south-lakeland,31/07/2014,Revenues and Benefits,Central Services,http://opendatacommunities.org/def/concept/finance/sercop/objective/102,BADENOCH & CLARK,1356186,09-07-2014,0000042253,533.4,0,Denise Calvert,261300,HR Recruitment & Assessment
South Lakeland District Council,http://opendatacommunities.org/id/district-council/south-lakeland,31/07/2014,Lake Wardens,Cultural Environmental Regulatory & Planning Services,http://opendatacommunities.org/def/concept/finance/sercop/objective/104,We Love Logos,,21-07-2014,0000042254,289.66,0,3 x Pairs of RG227 Regatta Action,141100,Clothing Protective
South Lakeland District Council,http://opendatacommunities.org/id/district-council/south-lakeland,31/07/2014,Legal Services,Central Services,http://opendatacommunities.org/def/concept/finance/sercop/objective/102,VENN GROUP RECRUITMENT SOLUTIONS,,09-07-2014,0000042256,988.98,0,Wages from w/k ending,261400,HR Temporary & Agency Staff
South Lakeland District Council,http://opendatacommunities.org/id/district-council/south-lakeland,31/07/2014,Business Support Community Services,Internal Trading Accounts,,GARWOOD EUROPE LTD,04333504,21-07-2014,0000042257,47.23,0,Switch,182011,Environment Waste Management Consumables
South Lakeland District Council,http://opendatacommunities.org/id/district-council/south-lakeland,31/07/2014,Social Enterprise Admin,Cultural Environmental Regulatory & Planning Services,http://opendatacommunities.org/def/concept/finance/sercop/objective/104,CUMBRIA CHAMBER OF COMMERCE,04211364,16-07-2014,0000042259,5000,0,Grant funding for TIC Kendal 2,151000,Consultancy Business
South Lakeland District Council,http://opendatacommunities.org/id/district-council/south-lakeland,31/07/2014,Social Enterprise Admin,Cultural Environmental Regulatory & Planning Services,http://opendatacommunities.org/def/concept/finance/sercop/objective/104,K A G E,,23-07-2014,0000042260,45,0,For removal of large wasps nest at,181500,Environment Animal Services
South Lakeland District Council,http://opendatacommunities.org/id/district-council/south-lakeland,31/07/2014,Social Enterprise Admin,Cultural Environmental Regulatory & Planning Services,http://opendatacommunities.org/def/concept/finance/sercop/objective/104,K A G E,,23-07-2014,0000042260,50,0,For removal of large wasps nest at,181500,Environment Animal Services
South Lakeland District Council,http://opendatacommunities.org/id/district-council/south-lakeland,31/07/2014,Social Enterprise Admin,Cultural Environmental Regulatory & Planning Services,http://opendatacommunities.org/def/concept/finance/sercop/objective/104,LAKELAND SUPPLIES,,09-07-2014,0000042261,49.99,0,Waterproof Workboots size 11,101610,Building Hand Tools
South Lakeland District Council,http://opendatacommunities.org/id/district-council/south-lakeland,31/07/2014,Business Support Community Services,Internal Trading Accounts,,Harry Park Tyres Ltd,08131208,23-07-2014,0000042262,906,0,Tyres,381500,Vehicle Mgt Parts
South Lakeland District Council,http://opendatacommunities.org/id/district-council/south-lakeland,31/07/2014,Business Support Community Services,Internal Trading Accounts,,Harry Park Tyres Ltd,08131208,28-07-2014,0000042263,172.5,0,Tracking,381500,Vehicle Mgt Parts
South Lakeland District Council,http://opendatacommunities.org/id/district-council/south-lakeland,31/07/2014,Business Support Community Services,Internal Trading Accounts,,Harry Park Tyres Ltd,08131208,21-07-2014,0000042264,25,0,Tracking,381500,Vehicle Mgt Parts
South Lakeland District Council,http://opendatacommunities.org/id/district-council/south-lakeland,31/07/2014,Business Support Community Services,Internal Trading Accounts,,Harry Park Tyres Ltd,08131208,14-07-2014,0000042265,942.5,0,Tracking,381500,Vehicle Mgt Parts
South Lakeland District Council,http://opendatacommunities.org/id/district-council/south-lakeland,31/07/2014,Business Support Community Services,Cultural Environmental Regulatory & Planning Services,http://opendatacommunities.org/def/concept/finance/sercop/objective/104,GB Sign Solutions LTD,09609330,21-07-2014,0000042266,364.25,0,76mm diameter galvanised mild-steel,102400,Building Signage
South Lakeland District Council,http://opendatacommunities.org/id/district-council/south-lakeland,31/07/2014,Democratic Services,Central Services,http://opendatacommunities.org/def/concept/finance/sercop/objective/102,MAJESTIC PUBLICATIONS LTD,04353962,28-07-2014,0000042267,165,0,St Mary's hospice advert,171113,Education Library Books
South Lakeland District Council,http://opendatacommunities.org/id/district-council/south-lakeland,31/07/2014,Business Support Community Services,Housing Services,http://opendatacommunities.org/def/concept/finance/sercop/objective/108,NEWSQUEST MEDIA GROUP LTD,03102566,14-07-2014,0000042268,58.5,0,Advert in the Westmorland Gazette for,191000,Facilities Advertising
South Lakeland District Council,http://opendatacommunities.org/id/district-council/south-lakeland,31/07/2014,Business Support Community Services,Internal Trading Accounts,,BPI RECYCLED PRODUCTS,350729,21-07-2014,0000042269,5259.41,0,Black liners - 455x785x990 50/F 400/PK,182013,Environment Waste Mgt Waste Collection
South Lakeland District Council,http://opendatacommunities.org/id/district-council/south-lakeland,31/07/2014,Human Resources,Central Services,http://opendatacommunities.org/def/concept/finance/sercop/objective/102,MIDLAND SOFTWARE LTD,01852206,14-07-2014,0000042272,425,0,Workflow Masterclass,271600,ICT Software Customised & Bespoke
South Lakeland District Council,http://opendatacommunities.org/id/district-council/south-lakeland,31/07/2014,Business Support Community Services,Internal Trading Accounts,,Masterstaff Limited,02777593,09-07-2014,0000042273,872.3,0, - June 2014,261300,HR Recruitment & Assessment
South Lakeland District Council,http://opendatacommunities.org/id/district-council/south-lakeland,31/07/2014,Business Support Community Services,Internal Trading Accounts,,Masterstaff Limited,02777593,09-07-2014,0000042274,622.5,0, - June 2014,261300,HR Recruitment & Assessment
South Lakeland District Council,http://opendatacommunities.org/id/district-council/south-lakeland,31/07/2014,Business Support Community Services,Internal Trading Accounts,,JOHNSTON SWEEPERS LTD,00199841,16-07-2014,0000042275,293.5,0,Seal kit,181600,Environment Street Cleansing
South Lakeland District Council,http://opendatacommunities.org/id/district-council/south-lakeland,31/07/2014,Business Support Community Services,Internal Trading Accounts,,K S INTERNATIONAL LTD,02703321,21-07-2014,0000042276,55,0,Water pump,381500,Vehicle Mgt Parts
South Lakeland District Council,http://opendatacommunities.org/id/district-council/south-lakeland,31/07/2014,Business Support Community Services,Housing Services,http://opendatacommunities.org/def/concept/finance/sercop/objective/108,CASTLE ALARMS 1981 LTD,09231500,09-07-2014,0000042277,905,0,Tv screen  / CCTV System,192212,Facilities Security Equipment
South Lakeland District Council,http://opendatacommunities.org/id/district-council/south-lakeland,31/07/2014,Human Resources,Central Services,http://opendatacommunities.org/def/concept/finance/sercop/objective/102,BUSY BEES BENEFITS LTD,06758298,09-07-2014,0000042278,15.86,0,CHILD CARE VOUCHERS - APPROX ?500.00 PER,202100,Financial Services Subscriptions
South Lakeland District Council,http://opendatacommunities.org/id/district-council/south-lakeland,31/07/2014,Human Resources,Non-Service Payments,,BUSY BEES BENEFITS LTD,06758298,09-07-2014,0000042279,453,0,CHILD CARE VOUCHERS - APPROX ?500.00 PER,202100,Financial Services Subscriptions
South Lakeland District Council,http://opendatacommunities.org/id/district-council/south-lakeland,31/07/2014,Business Support Community Services,Cultural Environmental Regulatory & Planning Services,http://opendatacommunities.org/def/concept/finance/sercop/objective/104,ALLSTAR BUSINESS SOLUTIONS LTD (NCR),2631112,31-07-2014,0000042280,82.08,0,Fuel - 27 June 2014 - Drainage Van,381600,Vehicle Mgt Leasing
South Lakeland District Council,http://opendatacommunities.org/id/district-council/south-lakeland,31/07/2014,Business Support Community Services,Cultural Environmental Regulatory & Planning Services,http://opendatacommunities.org/def/concept/finance/sercop/objective/104,ALLSTAR BUSINESS SOLUTIONS LTD (NCR),2631112,31-07-2014,0000042280,45.24,0,Fuel - 27 June 2014 - Drainage Van,381600,Vehicle Mgt Leasing
South Lakeland District Council,http://opendatacommunities.org/id/district-council/south-lakeland,31/07/2014,Coronation Hall,Cultural Environmental Regulatory & Planning Services,http://opendatacommunities.org/def/concept/finance/sercop/objective/104,Big Screen Media Services,,09-07-2014,0000042281,650,0,"Local cinema advertisement - filming,",191000,Facilities Advertising
South Lakeland District Council,http://opendatacommunities.org/id/district-council/south-lakeland,31/07/2014,Business Support Community Services,Housing Services,http://opendatacommunities.org/def/concept/finance/sercop/objective/108,Robert & Angela Hughes,,09-07-2014,0000042282,400,0,"Monthly rent for 2 Egremont House,",250000,Housing
South Lakeland District Council,http://opendatacommunities.org/id/district-council/south-lakeland,31/07/2014,Social Enterprise Admin,SLDC as Agent,,PAY BY PHONE (PAYPOINT),,16-07-2014,0000042284,151.93,0,Pay-by-phone charges from 1 April 2014,351400,Street & Traffic Traffic Control
South Lakeland District Council,http://opendatacommunities.org/id/district-council/south-lakeland,31/07/2014,Development Implementation,Central Services,http://opendatacommunities.org/def/concept/finance/sercop/objective/102,FRONT ROW GRAPHICS,,23-07-2014,0000042287,45,0,Coronation Hall Art Work,191100,Facilities Design & Photography
South Lakeland District Council,http://opendatacommunities.org/id/district-council/south-lakeland,31/07/2014,Business Support Community Services,Housing Services,http://opendatacommunities.org/def/concept/finance/sercop/objective/108,James Andrews Recruitment Solutions,06834852,14-07-2014,0000042288,912.5,0,Payment for ,261400,HR Temporary & Agency Staff
South Lakeland District Council,http://opendatacommunities.org/id/district-council/south-lakeland,31/07/2014,Environment and Housing,Housing Services,http://opendatacommunities.org/def/concept/finance/sercop/objective/108,James Andrews Recruitment Solutions,06834852,21-07-2014,0000042289,729,0,Salary for Agency staff - ,261400,HR Temporary & Agency Staff
South Lakeland District Council,http://opendatacommunities.org/id/district-council/south-lakeland,31/07/2014,Lake Wardens,Cultural Environmental Regulatory & Planning Services,http://opendatacommunities.org/def/concept/finance/sercop/objective/104,STUARTS SPORTS,04783018,21-07-2014,0000042290,60,0,2 x Pairs of Inferno Glove - Size Small,331300,Sports Sports Equipment
South Lakeland District Council,http://opendatacommunities.org/id/district-council/south-lakeland,31/07/2014,Social Enterprise Admin,Central Services,http://opendatacommunities.org/def/concept/finance/sercop/objective/102,YORKSHIRE DALES NATIONAL PARK AUTHY,,23-07-2014,0000042291,360,0,LAND CHARGE SEARCH ENQUIRIES YDNPA,202100,Financial Services Subscriptions
South Lakeland District Council,http://opendatacommunities.org/id/district-council/south-lakeland,31/07/2014,Human Resources,Central Services,http://opendatacommunities.org/def/concept/finance/sercop/objective/102,GBS Corporate Training,06452080,23-07-2014,0000042292,995,0,Cutting Bureaucracy 25/06/2014,261500,HR Training & Conferences
South Lakeland District Council,http://opendatacommunities.org/id/district-council/south-lakeland,31/07/2014,Social Enterprise Admin,Highways & Transport Services,http://opendatacommunities.org/def/concept/finance/sercop/objective/107,G4S SECURE SOLUTIONS (UK) LTD,01046019,16-07-2014,0000042293,833.18,0,Patrol Services for South Lakeland House,192213,Facilities Security Manned Guarding
South Lakeland District Council,http://opendatacommunities.org/id/district-council/south-lakeland,31/07/2014,Development Strategy,Housing Services,http://opendatacommunities.org/def/concept/finance/sercop/objective/108,MORGAN HUNT UK LIMITED,04349535,14-07-2014,0000042294,1481.48,0,work for South,269999,HR Not Elsewhere Classified
South Lakeland District Council,http://opendatacommunities.org/id/district-council/south-lakeland,31/07/2014,Coronation Hall,Cultural Environmental Regulatory & Planning Services,http://opendatacommunities.org/def/concept/finance/sercop/objective/104,Monster Monster,,16-07-2014,0000042297,400,0,Work on Facebook and Twitter to y/e 31,999999,Unclassifiable
South Lakeland District Council,http://opendatacommunities.org/id/district-council/south-lakeland,31/07/2014,Coronation Hall,SLDC as Agent,,Monster Monster,,14-07-2014,0000042298,200,0,For the production/marketing of FNL 6 -,999999,Unclassifiable
South Lakeland District Council,http://opendatacommunities.org/id/district-council/south-lakeland,31/07/2014,Coronation Hall,Cultural Environmental Regulatory & Planning Services,http://opendatacommunities.org/def/concept/finance/sercop/objective/104,ULVERSTON MUSIC FESTIVAL LTD,04930256,21-07-2014,0000042300,80,0,Half page black and white advert in,291300,Arts & Leisure Services Performing Arts
South Lakeland District Council,http://opendatacommunities.org/id/district-council/south-lakeland,31/07/2014,Coronation Hall,Central Services,http://opendatacommunities.org/def/concept/finance/sercop/objective/102,SHORROCK TRICHEM,04179799,16-07-2014,0000042301,96.46,0,Toilet rolls mini jumbo 2 ply 12 pk code,131312,Cleaning & Janitorial Washroom Sanitat
South Lakeland District Council,http://opendatacommunities.org/id/district-council/south-lakeland,31/07/2014,Coronation Hall,External Trading Accounts,,SHORROCK TRICHEM,04179799,16-07-2014,0000042301,245.9,0,Toilet rolls mini jumbo 2 ply 12 pk code,131312,Cleaning & Janitorial Washroom Sanitat
South Lakeland District Council,http://opendatacommunities.org/id/district-council/south-lakeland,31/07/2014,Coronation Hall,Cultural Environmental Regulatory & Planning Services,http://opendatacommunities.org/def/concept/finance/sercop/objective/104,SHORROCK TRICHEM,04179799,16-07-2014,0000042301,168.65,0,Toilet rolls mini jumbo 2 ply 12 pk code,131312,Cleaning & Janitorial Washroom Sanitat
South Lakeland District Council,http://opendatacommunities.org/id/district-council/south-lakeland,31/07/2014,Policy & Partnerships,Cultural Environmental Regulatory & Planning Services,http://opendatacommunities.org/def/concept/finance/sercop/objective/104,MARCHESI CENTRE,,14-07-2014,0000042302,33,0,Central Lakes LAP Meeting - 33.00,321000,Social Care Adult
South Lakeland District Council,http://opendatacommunities.org/id/district-council/south-lakeland,31/07/2014,Development Implementation,Central Services,http://opendatacommunities.org/def/concept/finance/sercop/objective/102,Duckett Ltd T/As Clawthorpe Hall Bus Cen,,14-07-2014,0000042303,18,0,Room Hire & Refreshments 2014/15,192110,Facilities Room Hire
South Lakeland District Council,http://opendatacommunities.org/id/district-council/south-lakeland,31/07/2014,Development Implementation,Central Services,http://opendatacommunities.org/def/concept/finance/sercop/objective/102,GATES TRAVEL SERVICE,,16-07-2014,0000042304,66,0,Return rail travel ,261600,HR Travel & Subsistence
South Lakeland District Council,http://opendatacommunities.org/id/district-council/south-lakeland,31/07/2014,Financial Services,SLDC as Agent,,KIRKLAND TRUST (KENDAL),,14-07-2014,0000042305,4570.35,0,14/15 Kirkland Car Park Income,201700,Financial Services Grants
South Lakeland District Council,http://opendatacommunities.org/id/district-council/south-lakeland,31/07/2014,Lake Wardens,Cultural Environmental Regulatory & Planning Services,http://opendatacommunities.org/def/concept/finance/sercop/objective/104,VODAFONE LTD (PAGING),,21-07-2014,0000042306,146.61,0,Annual Rental of Lake Wardens Emergency,271800,ICT Telecommunications Mobile
South Lakeland District Council,http://opendatacommunities.org/id/district-council/south-lakeland,31/07/2014,Business Support Community Services,Internal Trading Accounts,,M G D LTD,,28-07-2014,0000042307,35,0,MOTs 01/04/14 - 31/03/15,381400,Vehicle Mgt Maintenance
South Lakeland District Council,http://opendatacommunities.org/id/district-council/south-lakeland,31/07/2014,Business Support Community Services,Internal Trading Accounts,,LAKELAND TRUCKS LTD,02464423,23-07-2014,0000042308,143,0,Repair AdBlue fault,381400,Vehicle Mgt Maintenance
South Lakeland District Council,http://opendatacommunities.org/id/district-council/south-lakeland,31/07/2014,Business Support Community Services,Internal Trading Accounts,,POST OFFICE LTD,2154540,24-07-2014,0000042309,2960,0,"Licence SL021, SL032, SL33, SL034, SL035",141000,Clothing Childrens & Adults
South Lakeland District Council,http://opendatacommunities.org/id/district-council/south-lakeland,31/07/2014,Business Support Community Services,Internal Trading Accounts,,TECHNIJET LTD,02776601,23-07-2014,0000042310,126.17,0,Repair pressure washer at Ecclerigg,139999,Cleaning & Janitorial Not Elsewhere Clas
South Lakeland District Council,http://opendatacommunities.org/id/district-council/south-lakeland,31/07/2014,Social Enterprise Admin,Highways & Transport Services,http://opendatacommunities.org/def/concept/finance/sercop/objective/107,PATROL,,16-07-2014,0000042311,575.95,0,Charges for Traffic Penalty Tribunal,192214,Facilities Security Street Wardens
South Lakeland District Council,http://opendatacommunities.org/id/district-council/south-lakeland,31/07/2014,Legal Services,Central Services,http://opendatacommunities.org/def/concept/finance/sercop/objective/102,WEIGHTMANS LLP,OC326117,16-07-2014,0000042312,153,0,Fees in respect of Gareth Noonan re:,281300,Legal Services Legal Opinion
South Lakeland District Council,http://opendatacommunities.org/id/district-council/south-lakeland,31/07/2014,Human Resources,Central Services,http://opendatacommunities.org/def/concept/finance/sercop/objective/102,MIDLAND SOFTWARE LTD,01852206,28-07-2014,0000042313,299,0,Keeping iTrent Healthy,271600,ICT Software Customised & Bespoke
South Lakeland District Council,http://opendatacommunities.org/id/district-council/south-lakeland,31/07/2014,Human Resources,Central Services,http://opendatacommunities.org/def/concept/finance/sercop/objective/102,MIDLAND SOFTWARE LTD,01852206,28-07-2014,0000042314,897,0,Training Course for Angela Milns,271600,ICT Software Customised & Bespoke
South Lakeland District Council,http://opendatacommunities.org/id/district-council/south-lakeland,31/07/2014,Development Implementation,Central Services,http://opendatacommunities.org/def/concept/finance/sercop/objective/102,NPS NORTH WEST LTD,06614601,23-07-2014,0000042315,38333.33,0,Professional Property Services for,391110,Construction Buildings Construction
South Lakeland District Council,http://opendatacommunities.org/id/district-council/south-lakeland,31/07/2014,Development Implementation,Cultural Environmental Regulatory & Planning Services,http://opendatacommunities.org/def/concept/finance/sercop/objective/104,C & E Tulley T/A Bongo Balloons,,16-07-2014,0000042316,200,0,Provision of Balloons for Independents,291000,Arts & Leisure Services Events
South Lakeland District Council,http://opendatacommunities.org/id/district-council/south-lakeland,31/07/2014,Revenues and Benefits,SLDC as Agent,,ROYAL MAIL GROUP PLC,,16-07-2014,0000042317,2871.6,0,2014-15  Postal Charges a/c 0198123013,301200,Mail Services� Postage
South Lakeland District Council,http://opendatacommunities.org/id/district-council/south-lakeland,31/07/2014,Revenues and Benefits,Central Services,http://opendatacommunities.org/def/concept/finance/sercop/objective/102,ROYAL MAIL GROUP PLC,,16-07-2014,0000042318,74.75,0,2014-15  Postal Charges a/c 0055114000,301200,Mail Services� Postage
South Lakeland District Council,http://opendatacommunities.org/id/district-council/south-lakeland,31/07/2014,Revenues and Benefits,Central Services,http://opendatacommunities.org/def/concept/finance/sercop/objective/102,Victoria Pink Transcription,,16-07-2014,0000042319,54.63,0,Audio Interviews Transcripts,271400,ICT Office & Reprographics Equipment
South Lakeland District Council,http://opendatacommunities.org/id/district-council/south-lakeland,31/07/2014,Development Implementation,Cultural Environmental Regulatory & Planning Services,http://opendatacommunities.org/def/concept/finance/sercop/objective/104,CUMBRIA CHAMBER OF COMMERCE,04211364,21-07-2014,0000042320,1100,0,Membership of Chamber 2014/15,151000,Consultancy Business
South Lakeland District Council,http://opendatacommunities.org/id/district-council/south-lakeland,31/07/2014,Business Support Community Services,Central Services,http://opendatacommunities.org/def/concept/finance/sercop/objective/102,CANFORD AUDIO PLC,01385727,23-07-2014,0000042322,22.5,0,CD Sealer Labels,271200,ICT Hardware
South Lakeland District Council,http://opendatacommunities.org/id/district-council/south-lakeland,31/07/2014,Coronation Hall,Cultural Environmental Regulatory & Planning Services,http://opendatacommunities.org/def/concept/finance/sercop/objective/104,ST JOHN AMBULANCE CUMBRIA,,21-07-2014,0000042323,211.2,0,FAO ,311600,Healthcare Services
South Lakeland District Council,http://opendatacommunities.org/id/district-council/south-lakeland,31/07/2014,Social Enterprise Admin,Cultural Environmental Regulatory & Planning Services,http://opendatacommunities.org/def/concept/finance/sercop/objective/104,URBANVISION PARTNERSHIP LTD,,23-07-2014,0000042324,10113,0,URBAN VISION,152100,Consultancy Strategic Planning
South Lakeland District Council,http://opendatacommunities.org/id/district-council/south-lakeland,31/07/2014,Business Support Community Services,Internal Trading Accounts,,TTS (GARSTANG) LTD,04990573,23-07-2014,0000042325,307.42,0,Repair SL002,381500,Vehicle Mgt Parts
South Lakeland District Council,http://opendatacommunities.org/id/district-council/south-lakeland,31/07/2014,Coronation Hall,Central Services,http://opendatacommunities.org/def/concept/finance/sercop/objective/102,OLTEC GROUP CLEANING & JANITORIAL SUPPLI,,14-07-2014,0000042326,94.8,0,Cleaning of Ulverston Town Hall up to 31,261300,HR Recruitment & Assessment
South Lakeland District Council,http://opendatacommunities.org/id/district-council/south-lakeland,31/07/2014,Coronation Hall,Central Services,http://opendatacommunities.org/def/concept/finance/sercop/objective/102,OLTEC GROUP CLEANING & JANITORIAL SUPPLI,,14-07-2014,0000042327,94.8,0,Cleaning of Ulverston Town Hall up to 31,261300,HR Recruitment & Assessment
South Lakeland District Council,http://opendatacommunities.org/id/district-council/south-lakeland,31/07/2014,Coronation Hall,Central Services,http://opendatacommunities.org/def/concept/finance/sercop/objective/102,OLTEC GROUP CLEANING & JANITORIAL SUPPLI,,14-07-2014,0000042328,94.8,0,Cleaning of Ulverston Town Hall up to 31,261300,HR Recruitment & Assessment
South Lakeland District Council,http://opendatacommunities.org/id/district-council/south-lakeland,31/07/2014,Coronation Hall,Central Services,http://opendatacommunities.org/def/concept/finance/sercop/objective/102,OLTEC GROUP CLEANING & JANITORIAL SUPPLI,,14-07-2014,0000042329,94.8,0,Cleaning of Ulverston Town Hall up to 31,261300,HR Recruitment & Assessment
South Lakeland District Council,http://opendatacommunities.org/id/district-council/south-lakeland,31/07/2014,Social Enterprise Admin,Cultural Environmental Regulatory & Planning Services,http://opendatacommunities.org/def/concept/finance/sercop/objective/104,URBANVISION PARTNERSHIP LTD,,21-07-2014,0000042330,7618.32,0,TO PROVIDE SERVICES TO SLDC BUILDING,152100,Consultancy Strategic Planning
South Lakeland District Council,http://opendatacommunities.org/id/district-council/south-lakeland,31/07/2014,Social Enterprise Admin,Highways & Transport Services,http://opendatacommunities.org/def/concept/finance/sercop/objective/107,ACS BPS LTD,,23-07-2014,0000042331,188.42,0,3 x 20 roll boxes Micropos rolls,111200,Catering Food & Beverages
South Lakeland District Council,http://opendatacommunities.org/id/district-council/south-lakeland,31/07/2014,Social Enterprise Admin,Cultural Environmental Regulatory & Planning Services,http://opendatacommunities.org/def/concept/finance/sercop/objective/104,NEWSQUEST MEDIA GROUP LTD,03102566,16-07-2014,0000042332,113,0,PUBLIC NOTICES FOR PLANNIG DEPARTMENT.,191000,Facilities Advertising
South Lakeland District Council,http://opendatacommunities.org/id/district-council/south-lakeland,31/07/2014,Legal Services,Central Services,http://opendatacommunities.org/def/concept/finance/sercop/objective/102,NEWSQUEST MEDIA GROUP LTD,03102566,16-07-2014,0000042333,131,0,Advert to appear 26/6/14 re:  Road,191000,Facilities Advertising
South Lakeland District Council,http://opendatacommunities.org/id/district-council/south-lakeland,31/07/2014,Revenues and Benefits,Central Services,http://opendatacommunities.org/def/concept/finance/sercop/objective/102,PITNEY BOWES LTD,00182037,16-07-2014,0000042334,517.5,0,2014-15 Stationery & office supplies,301200,Mail Services� Postage
South Lakeland District Council,http://opendatacommunities.org/id/district-council/south-lakeland,31/07/2014,Revenues and Benefits,Central Services,http://opendatacommunities.org/def/concept/finance/sercop/objective/102,VODAFONE LTD (DIRECT DEBIT),,31-07-2014,0000042335,40,0,2014-15  Mobile Usage,271800,ICT Telecommunications Mobile
South Lakeland District Council,http://opendatacommunities.org/id/district-council/south-lakeland,31/07/2014,Business Support Community Services,Cultural Environmental Regulatory & Planning Services,http://opendatacommunities.org/def/concept/finance/sercop/objective/104,Eunomia Research & Consulting Ltd,04150627,28-07-2014,0000042336,4203.2,0,In respect of support work 2013/14 as,191500,Facilities Market Research
South Lakeland District Council,http://opendatacommunities.org/id/district-council/south-lakeland,31/07/2014,Business Support Community Services,Housing Services,http://opendatacommunities.org/def/concept/finance/sercop/objective/108,Landlord,,14-07-2014,0000042337,520,0,Monthly rent ,202000,Financial Services Rents
South Lakeland District Council,http://opendatacommunities.org/id/district-council/south-lakeland,31/07/2014,Democratic Services,Cultural Environmental Regulatory & Planning Services,http://opendatacommunities.org/def/concept/finance/sercop/objective/104,WINDERMERE TOWN COUNCIL,,14-07-2014,0000042338,20000,0,Contribution to community toilets,908000,Public Bodies Council support services
South Lakeland District Council,http://opendatacommunities.org/id/district-council/south-lakeland,31/07/2014,Business Support Community Services,Internal Trading Accounts,,EK MOTOR FACTORS LTD,00838524,28-07-2014,0000042340,25.26,0,Oil filter,381400,Vehicle Mgt Maintenance
South Lakeland District Council,http://opendatacommunities.org/id/district-council/south-lakeland,31/07/2014,Business Support Community Services,Internal Trading Accounts,,J R RICHARDSON LTD,02225792,28-07-2014,0000042341,264.63,0,Topwash,381500,Vehicle Mgt Parts
South Lakeland District Council,http://opendatacommunities.org/id/district-council/south-lakeland,31/07/2014,Business Support Community Services,Internal Trading Accounts,,EK MOTOR FACTORS LTD,00838524,16-07-2014,0000042342,-61.64,,Oil filter,381400,Vehicle Mgt Maintenance
South Lakeland District Council,http://opendatacommunities.org/id/district-council/south-lakeland,31/07/2014,Business Support Community Services,Internal Trading Accounts,,EK MOTOR FACTORS LTD,00838524,28-07-2014,0000042343,100.38,0,Oil filter,381400,Vehicle Mgt Maintenance
South Lakeland District Council,http://opendatacommunities.org/id/district-council/south-lakeland,31/07/2014,Business Support Community Services,Internal Trading Accounts,,C T HAYTON LTD,01212766,16-07-2014,0000042344,97.62,0,Jockey wheel,391200,Construction Engineering
South Lakeland District Council,http://opendatacommunities.org/id/district-council/south-lakeland,31/07/2014,Business Support Community Services,Internal Trading Accounts,,TRAVIS PERKINS TRADING CO LTD,00733503,16-07-2014,0000042345,66.28,0,Board,152200,Consultancy Technical & Feasibility
South Lakeland District Council,http://opendatacommunities.org/id/district-council/south-lakeland,31/07/2014,Business Support Community Services,Internal Trading Accounts,,EK MOTOR FACTORS LTD,00838524,23-07-2014,0000042346,11.49,0,Oil filter,381400,Vehicle Mgt Maintenance
South Lakeland District Council,http://opendatacommunities.org/id/district-council/south-lakeland,31/07/2014,Business Support Community Services,Internal Trading Accounts,,EK MOTOR FACTORS LTD,00838524,23-07-2014,0000042347,13.29,0,Oil filter,381400,Vehicle Mgt Maintenance
South Lakeland District Council,http://opendatacommunities.org/id/district-council/south-lakeland,31/07/2014,Business Support Community Services,Internal Trading Accounts,,EK MOTOR FACTORS LTD,00838524,23-07-2014,0000042348,39.04,0,Oil filter,381400,Vehicle Mgt Maintenance
South Lakeland District Council,http://opendatacommunities.org/id/district-council/south-lakeland,31/07/2014,Business Support Community Services,Internal Trading Accounts,,EK MOTOR FACTORS LTD,00838524,23-07-2014,0000042349,4.5,0,Oil filter,381400,Vehicle Mgt Maintenance
South Lakeland District Council,http://opendatacommunities.org/id/district-council/south-lakeland,31/07/2014,Business Support Community Services,Internal Trading Accounts,,EK MOTOR FACTORS LTD,00838524,16-07-2014,0000042350,18.72,0,Plates,381400,Vehicle Mgt Maintenance
South Lakeland District Council,http://opendatacommunities.org/id/district-council/south-lakeland,31/07/2014,Business Support Community Services,Internal Trading Accounts,,EK MOTOR FACTORS LTD,00838524,16-07-2014,0000042351,22.01,0,Plates,381400,Vehicle Mgt Maintenance
South Lakeland District Council,http://opendatacommunities.org/id/district-council/south-lakeland,31/07/2014,Business Support Community Services,Internal Trading Accounts,,EK MOTOR FACTORS LTD,00838524,16-07-2014,0000042352,36.46,0,Plates,381400,Vehicle Mgt Maintenance
South Lakeland District Council,http://opendatacommunities.org/id/district-council/south-lakeland,31/07/2014,Business Support Community Services,Internal Trading Accounts,,Masterstaff Limited,02777593,16-07-2014,0000042353,673.46,0, - June 2014,261300,HR Recruitment & Assessment
South Lakeland District Council,http://opendatacommunities.org/id/district-council/south-lakeland,31/07/2014,Business Support Community Services,Internal Trading Accounts,,Masterstaff Limited,02777593,16-07-2014,0000042354,802.1,0, - June 2014,261300,HR Recruitment & Assessment
South Lakeland District Council,http://opendatacommunities.org/id/district-council/south-lakeland,31/07/2014,Business Support Community Services,Internal Trading Accounts,,EK MOTOR FACTORS LTD,00838524,23-07-2014,0000042355,69.42,0,Oil filter,381400,Vehicle Mgt Maintenance
South Lakeland District Council,http://opendatacommunities.org/id/district-council/south-lakeland,31/07/2014,Business Support Community Services,Internal Trading Accounts,,EK MOTOR FACTORS LTD,00838524,16-07-2014,0000042356,-4.65,,Oil filter,381400,Vehicle Mgt Maintenance
South Lakeland District Council,http://opendatacommunities.org/id/district-council/south-lakeland,31/07/2014,Business Support Community Services,Internal Trading Accounts,,EK MOTOR FACTORS LTD,00838524,23-07-2014,0000042357,47.14,0,Oil filter,381400,Vehicle Mgt Maintenance
South Lakeland District Council,http://opendatacommunities.org/id/district-council/south-lakeland,31/07/2014,Business Support Community Services,Internal Trading Accounts,,BRIAN ARMISTEAD LTD T/A SINKFALL RECYCLI,04133280,21-07-2014,0000042358,1728.8,0,Green waste tipping - April (estimated),391110,Construction Buildings Construction
South Lakeland District Council,http://opendatacommunities.org/id/district-council/south-lakeland,31/07/2014,Development Implementation,Cultural Environmental Regulatory & Planning Services,http://opendatacommunities.org/def/concept/finance/sercop/objective/104,LAVAHOUSE ASSOCIATES LTD,05147789,28-07-2014,0000042359,1960,0,Design & Print of Kendal Sense of Place,202100,Financial Services Subscriptions
South Lakeland District Council,http://opendatacommunities.org/id/district-council/south-lakeland,31/07/2014,Human Resources,Central Services,http://opendatacommunities.org/def/concept/finance/sercop/objective/102,SUMO GUY,,28-07-2014,0000042360,3103.2,0,"8th, 9th May and 30th June",261500,HR Training & Conferences
South Lakeland District Council,http://opendatacommunities.org/id/district-council/south-lakeland,31/07/2014,Development Management,Cultural Environmental Regulatory & Planning Services,http://opendatacommunities.org/def/concept/finance/sercop/objective/104,H & H REEDS PRINTERS LTD,00139166,28-07-2014,0000042361,410,0,2 number 4ft x 1ft foamex signs,191100,Facilities Design & Photography
South Lakeland District Council,http://opendatacommunities.org/id/district-council/south-lakeland,31/07/2014,Coronation Hall,Central Services,http://opendatacommunities.org/def/concept/finance/sercop/objective/102,YPO,,23-07-2014,0000042362,24.75,0,Taski Spring hard surface cleaner 5,152000,Consultancy Procurement
South Lakeland District Council,http://opendatacommunities.org/id/district-council/south-lakeland,31/07/2014,Coronation Hall,External Trading Accounts,,YPO,,23-07-2014,0000042362,54.94,0,Taski Spring hard surface cleaner 5,152000,Consultancy Procurement
South Lakeland District Council,http://opendatacommunities.org/id/district-council/south-lakeland,31/07/2014,Coronation Hall,Cultural Environmental Regulatory & Planning Services,http://opendatacommunities.org/def/concept/finance/sercop/objective/104,YPO,,23-07-2014,0000042362,91.05,0,Taski Spring hard surface cleaner 5,152000,Consultancy Procurement
South Lakeland District Council,http://opendatacommunities.org/id/district-council/south-lakeland,31/07/2014,Social Enterprise Admin,Highways & Transport Services,http://opendatacommunities.org/def/concept/finance/sercop/objective/107,METRIC GROUP LIMITED,02560839,28-07-2014,0000042363,693,0,Web hosting and web tariff editor for 66,359999,Street & Traffic Not Elsewhere Classifie
South Lakeland District Council,http://opendatacommunities.org/id/district-council/south-lakeland,31/07/2014,Business Support Community Services,Internal Trading Accounts,,H WICKS (LINDAL) LTD,00754590,21-07-2014,0000042364,1961.08,0,Paper handling - June (estimated),182012,Environment Waste Management Recycling
South Lakeland District Council,http://opendatacommunities.org/id/district-council/south-lakeland,31/07/2014,Business Support Community Services,Internal Trading Accounts,,LAKELAND COMMERCIALS LTD,02719162,21-07-2014,0000042365,766.5,0,Repair speed limiter,361600,Public Transport Taxi Services Home to S
South Lakeland District Council,http://opendatacommunities.org/id/district-council/south-lakeland,31/07/2014,Business Support Community Services,Internal Trading Accounts,,LAKELAND COMMERCIALS LTD,02719162,21-07-2014,0000042366,183.5,0,Brake tests,361600,Public Transport Taxi Services Home to S
South Lakeland District Council,http://opendatacommunities.org/id/district-council/south-lakeland,31/07/2014,Business Support Community Services,Internal Trading Accounts,,LAKELAND COMMERCIALS LTD,02719162,21-07-2014,0000042366,240,0,Brake tests,361600,Public Transport Taxi Services Home to S
South Lakeland District Council,http://opendatacommunities.org/id/district-council/south-lakeland,31/07/2014,Revenues and Benefits,Central Services,http://opendatacommunities.org/def/concept/finance/sercop/objective/102,MERITEC LTD,03224622,28-07-2014,0000042367,279,0,RAB Processing Contract and Agency,391200,Construction Engineering
South Lakeland District Council,http://opendatacommunities.org/id/district-council/south-lakeland,31/07/2014,Development Management,Cultural Environmental Regulatory & Planning Services,http://opendatacommunities.org/def/concept/finance/sercop/objective/104,LABC,,12-02-2015,0000042368,-70,,LABC Excellence Awards - Attendance of,202100,Financial Services Subscriptions
South Lakeland District Council,http://opendatacommunities.org/id/district-council/south-lakeland,31/07/2014,Business Support Community Services,Internal Trading Accounts,,SITA UK LTD,2291198,16-07-2014,0000042371,36696.57,0,"Tipping & disposal charges, recyclables",182015,Environment Waste Mgt Waste Disposal
South Lakeland District Council,http://opendatacommunities.org/id/district-council/south-lakeland,31/07/2014,Environment and Housing,Housing Services,http://opendatacommunities.org/def/concept/finance/sercop/objective/108,GROWING CONCERNS LTD,,16-07-2014,0000042372,1192.57,0,Payment for Handy Person Scheme,391200,Construction Engineering
South Lakeland District Council,http://opendatacommunities.org/id/district-council/south-lakeland,31/07/2014,Business Support Community Services,Internal Trading Accounts,,EK MOTOR FACTORS LTD,00838524,30-07-2014,0000042374,33.7,0,Oil filter,381400,Vehicle Mgt Maintenance
South Lakeland District Council,http://opendatacommunities.org/id/district-council/south-lakeland,31/07/2014,Business Support Community Services,Internal Trading Accounts,,VOLVO GROUP UK LTD,02190944,28-07-2014,0000042375,1514.14,0,Repair SL008,381000,Vehicle Mgt Commercial
South Lakeland District Council,http://opendatacommunities.org/id/district-council/south-lakeland,31/07/2014,Business Support Community Services,Internal Trading Accounts,,THOMAS GRAHAM & SONS (IRON & STEEL) LTD,00656879,30-07-2014,0000042376,57.1,0,Nozzles,101400,Building General Materials
South Lakeland District Council,http://opendatacommunities.org/id/district-council/south-lakeland,31/07/2014,Business Support Community Services,Internal Trading Accounts,,THOMAS GRAHAM & SONS (IRON & STEEL) LTD,00656879,30-07-2014,0000042376,9,0,Nozzles,101400,Building General Materials
South Lakeland District Council,http://opendatacommunities.org/id/district-council/south-lakeland,31/07/2014,Business Support Community Services,Internal Trading Accounts,,K S INTERNATIONAL LTD,02703321,23-07-2014,0000042377,125,0,Shock absorber,381500,Vehicle Mgt Parts
South Lakeland District Council,http://opendatacommunities.org/id/district-council/south-lakeland,31/07/2014,Business Support Community Services,Cultural Environmental Regulatory & Planning Services,http://opendatacommunities.org/def/concept/finance/sercop/objective/104,PHS GROUP PLC,,16-07-2014,0000042378,90,0,Sanitary disposal at Milnthorpe 01/08/14,131312,Cleaning & Janitorial Washroom Sanitat
South Lakeland District Council,http://opendatacommunities.org/id/district-council/south-lakeland,31/07/2014,Social Enterprise Admin,Cultural Environmental Regulatory & Planning Services,http://opendatacommunities.org/def/concept/finance/sercop/objective/104,Matchtech,02526418,16-07-2014,0000042381,1068.19,0,TO SUPPLY DEVELOPMENT CONTROL TEAM,261300,HR Recruitment & Assessment
South Lakeland District Council,http://opendatacommunities.org/id/district-council/south-lakeland,31/07/2014,Business Support Community Services,Transport Planning Policy,http://opendatacommunities.org/def/concept/finance/sercop/objective/107,BUNZL CLEANING & HYGIENE SUPPLIES,2902454,28-07-2014,0000042388,67.11,0,Toilet brushes,131011,Cleaning & Janitorial Cleaning Materials
South Lakeland District Council,http://opendatacommunities.org/id/district-council/south-lakeland,31/07/2014,Business Support Community Services,Housing Services,http://opendatacommunities.org/def/concept/finance/sercop/objective/108,THE JAMES COCHRANE PRACTICE,,30-07-2014,0000042389,30,0,Medical report ,311600,Healthcare Services
South Lakeland District Council,http://opendatacommunities.org/id/district-council/south-lakeland,31/07/2014,Printing Section,Central Services,http://opendatacommunities.org/def/concept/finance/sercop/objective/102,STANDING STONE DRAWING OFFICE SUPPLIES,05128817,28-07-2014,0000042390,90,0,A2 Rolls for Plotter 90gsm,341100,Stationery Sundries
South Lakeland District Council,http://opendatacommunities.org/id/district-council/south-lakeland,31/07/2014,Printing Section,Central Services,http://opendatacommunities.org/def/concept/finance/sercop/objective/102,MORGANA SYSTEMS LTD,01335508,21-07-2014,0000042391,717.51,0,Call out fee for Morgana booklet maker,191600,Facilities Printing
South Lakeland District Council,http://opendatacommunities.org/id/district-council/south-lakeland,31/07/2014,Business Support Community Services,Internal Trading Accounts,,FOSTERS COMMERCIALS LTD,01015850,21-07-2014,0000042392,123.5,0,Switches,381400,Vehicle Mgt Maintenance
South Lakeland District Council,http://opendatacommunities.org/id/district-council/south-lakeland,31/07/2014,Customer Services,Central Services,http://opendatacommunities.org/def/concept/finance/sercop/objective/102,JOHNSTON PUBLISHING LTD,01919088,23-07-2014,0000042393,8030.33,0,For the print and distrubtion of South,171114,Education Literature
South Lakeland District Council,http://opendatacommunities.org/id/district-council/south-lakeland,31/07/2014,Business Support Community Services,Internal Trading Accounts,,ARCO LIMITED,00133804,28-07-2014,0000042394,86.5,0,Eez wipes,141100,Clothing Protective
South Lakeland District Council,http://opendatacommunities.org/id/district-council/south-lakeland,31/07/2014,Business Support Community Services,Internal Trading Accounts,,ARCO LIMITED,00133804,28-07-2014,0000042394,357.9,0,Eez wipes,141100,Clothing Protective
South Lakeland District Council,http://opendatacommunities.org/id/district-council/south-lakeland,31/07/2014,Business Support Community Services,Internal Trading Accounts,,ARCO LIMITED,00133804,28-07-2014,0000042395,9.18,0,Eez wipes,141100,Clothing Protective
South Lakeland District Council,http://opendatacommunities.org/id/district-council/south-lakeland,31/07/2014,Development Management,Cultural Environmental Regulatory & Planning Services,http://opendatacommunities.org/def/concept/finance/sercop/objective/104,SALFORD CITY COUNCIL,,23-07-2014,0000042396,133.5,0,Check of Building Regulation,908000,Public Bodies Council support services
South Lakeland District Council,http://opendatacommunities.org/id/district-council/south-lakeland,31/07/2014,Business Support Community Services,Internal Trading Accounts,,ARCO LIMITED,00133804,23-07-2014,0000042397,115.9,0,Eez wipes,141100,Clothing Protective
South Lakeland District Council,http://opendatacommunities.org/id/district-council/south-lakeland,31/07/2014,Social Enterprise Admin,Cultural Environmental Regulatory & Planning Services,http://opendatacommunities.org/def/concept/finance/sercop/objective/104,Cleartrack (EvL) Ltd,03881690,04-08-2014,0000042398,820,0,Rinkfield - Crown Clean and thin 20%,199999,Facilities Not Elsewhere Classified
South Lakeland District Council,http://opendatacommunities.org/id/district-council/south-lakeland,31/07/2014,Social Enterprise Admin,Cultural Environmental Regulatory & Planning Services,http://opendatacommunities.org/def/concept/finance/sercop/objective/104,Cleartrack (EvL) Ltd,03881690,04-08-2014,0000042399,450,0,Rinkfield - Crown Clean and thin 20%,199999,Facilities Not Elsewhere Classified
South Lakeland District Council,http://opendatacommunities.org/id/district-council/south-lakeland,31/07/2014,Social Enterprise Admin,Cultural Environmental Regulatory & Planning Services,http://opendatacommunities.org/def/concept/finance/sercop/objective/104,Cleartrack (EvL) Ltd,03881690,04-08-2014,0000042400,455,0,Emergency work at Nobles Rest on,199999,Facilities Not Elsewhere Classified
South Lakeland District Council,http://opendatacommunities.org/id/district-council/south-lakeland,31/07/2014,Social Enterprise Admin,Cultural Environmental Regulatory & Planning Services,http://opendatacommunities.org/def/concept/finance/sercop/objective/104,Cleartrack (EvL) Ltd,03881690,04-08-2014,0000042401,806.25,0,Rear of Vicarage Drive- Crown clean by,199999,Facilities Not Elsewhere Classified
South Lakeland District Council,http://opendatacommunities.org/id/district-council/south-lakeland,31/07/2014,Social Enterprise Admin,Central Services,http://opendatacommunities.org/def/concept/finance/sercop/objective/102,ADECCO UK LIMITED,00593232,21-07-2014,0000042402,530.21,0,TEMPORARY GAZETTEER OFFICER,261400,HR Temporary & Agency Staff
South Lakeland District Council,http://opendatacommunities.org/id/district-council/south-lakeland,31/07/2014,Social Enterprise Admin,Cultural Environmental Regulatory & Planning Services,http://opendatacommunities.org/def/concept/finance/sercop/objective/104,NEWSQUEST MEDIA GROUP LTD,03102566,21-07-2014,0000042403,221,0,PUBLIC NOTICES FOR PLANNIG DEPARTMENT.,191000,Facilities Advertising
South Lakeland District Council,http://opendatacommunities.org/id/district-council/south-lakeland,31/07/2014,Business Support Community Services,Housing Services,http://opendatacommunities.org/def/concept/finance/sercop/objective/108,NOWMEDICAL,04338252,21-07-2014,0000042404,35,0,Medical advice ,311600,Healthcare Services
South Lakeland District Council,http://opendatacommunities.org/id/district-council/south-lakeland,31/07/2014,Development Implementation,Cultural Environmental Regulatory & Planning Services,http://opendatacommunities.org/def/concept/finance/sercop/objective/104,3 Peaks Consulting Ltd,09054567,16-07-2014,0000042405,1015.75,0,Consultancy work for Economic,159999,Consultancy Not Elsewhere Classified
South Lakeland District Council,http://opendatacommunities.org/id/district-council/south-lakeland,31/07/2014,Business Support Community Services,Housing Services,http://opendatacommunities.org/def/concept/finance/sercop/objective/108,Landlord,,16-07-2014,0000042407,890,0,Monthly rent payment ,250000,Housing
South Lakeland District Council,http://opendatacommunities.org/id/district-council/south-lakeland,31/07/2014,Business Support Community Services,Housing Services,http://opendatacommunities.org/def/concept/finance/sercop/objective/108,Landlord,,16-07-2014,0000042408,400,0,Monthly rent ,250000,Housing
South Lakeland District Council,http://opendatacommunities.org/id/district-council/south-lakeland,31/07/2014,Business Support Community Services,Housing Services,http://opendatacommunities.org/def/concept/finance/sercop/objective/108,Landlord,,16-07-2014,0000042409,1190,0,Monthly rent ,202000,Financial Services Rents
South Lakeland District Council,http://opendatacommunities.org/id/district-council/south-lakeland,31/07/2014,Environment and Housing,Housing,http://opendatacommunities.org/def/concept/finance/sercop/objective/108,ULTRACARE PROPERTY MANAGEMENT LTD,05020554,16-07-2014,0000042414,3320,0,"Castle Grove, Kendal, LA9 7AY",191700,Facilities Property Management
South Lakeland District Council,http://opendatacommunities.org/id/district-council/south-lakeland,31/07/2014,Environment and Housing,Housing,http://opendatacommunities.org/def/concept/finance/sercop/objective/108,DOLPHIN MOBILITY YORKS & CUMBRIA,,16-07-2014,0000042415,1850,0,"Peat Lane, Kendal, LA9 6LG",321311,Social Care Supplies Equipment
South Lakeland District Council,http://opendatacommunities.org/id/district-council/south-lakeland,31/07/2014,Environment and Housing,Housing,http://opendatacommunities.org/def/concept/finance/sercop/objective/108,DOLPHIN MOBILITY YORKS & CUMBRIA,,16-07-2014,0000042416,3495,0,"Goad Street, Swarthmoor, Ulverston,",321311,Social Care Supplies Equipment
South Lakeland District Council,http://opendatacommunities.org/id/district-council/south-lakeland,31/07/2014,Environment and Housing,Housing,http://opendatacommunities.org/def/concept/finance/sercop/objective/108,DOLPHIN MOBILITY YORKS & CUMBRIA,,16-07-2014,0000042417,1200,0,"North Lonsdale Road, Ulverston, LA12",321311,Social Care Supplies Equipment
South Lakeland District Council,http://opendatacommunities.org/id/district-council/south-lakeland,31/07/2014,Environment and Housing,Housing,http://opendatacommunities.org/def/concept/finance/sercop/objective/108,Pollock Lifts,,16-07-2014,0000042418,7745,0,"Joss Lane, Sedbergh, LA10",201700,Financial Services Grants
South Lakeland District Council,http://opendatacommunities.org/id/district-council/south-lakeland,31/07/2014,Environment and Housing,Housing,http://opendatacommunities.org/def/concept/finance/sercop/objective/108,C W COX & SONS (KENDAL) LTD,03498844,16-07-2014,0000042419,1483,0,"Joss Lane, Sedbergh, LA23",101000,Building Bathrooms
South Lakeland District Council,http://opendatacommunities.org/id/district-council/south-lakeland,31/07/2014,Environment and Housing,Housing,http://opendatacommunities.org/def/concept/finance/sercop/objective/108,THYSSENKRUPP ENCASA,1166449,16-07-2014,0000042420,3790.5,0,"Patterdale Road,",321311,Social Care Supplies Equipment
South Lakeland District Council,http://opendatacommunities.org/id/district-council/south-lakeland,31/07/2014,Environment and Housing,Housing,http://opendatacommunities.org/def/concept/finance/sercop/objective/108,ENVIRONMENT & HOUSING GRANTS,,16-07-2014,0000042421,14580,0,Steplift for Wattsfield,201700,Financial Services Grants
South Lakeland District Council,http://opendatacommunities.org/id/district-council/south-lakeland,31/07/2014,Lake Wardens,Cultural Environmental Regulatory & Planning Services,http://opendatacommunities.org/def/concept/finance/sercop/objective/104,RIBBLESDALE AUTO ELECTRICS 1992 LTD,02732686,21-07-2014,0000042423,104.3,0,5 Metre Length of SBS 35 Twin Cable,381500,Vehicle Mgt Parts
South Lakeland District Council,http://opendatacommunities.org/id/district-council/south-lakeland,31/07/2014,Human Resources,Central Services,http://opendatacommunities.org/def/concept/finance/sercop/objective/102,EMPLOYMENT PAGES LTD,07363099,30-07-2014,0000042425,489.6,0,Communications Officer advert,261400,HR Temporary & Agency Staff
South Lakeland District Council,http://opendatacommunities.org/id/district-council/south-lakeland,31/07/2014,Kendal Market Hall,Central Services,http://opendatacommunities.org/def/concept/finance/sercop/objective/102,W MCCLURE LTD,00685360,30-07-2014,0000042426,45.05,0,8 x UHT semi-skimmed milk portions,111200,Catering Food & Beverages
South Lakeland District Council,http://opendatacommunities.org/id/district-council/south-lakeland,31/07/2014,Kendal Town Hall,Central Services,http://opendatacommunities.org/def/concept/finance/sercop/objective/102,BERENDSEN UK LTD,00228604,21-07-2014,0000042427,61.2,0,Rental and weekly replacement ,161000,Domestic Goods Commercial
South Lakeland District Council,http://opendatacommunities.org/id/district-council/south-lakeland,31/07/2014,Kendal Town Hall,Cultural Environmental Regulatory & Planning Services,http://opendatacommunities.org/def/concept/finance/sercop/objective/104,BERENDSEN UK LTD,00228604,21-07-2014,0000042427,24.61,0,Rental and weekly replacement ,161000,Domestic Goods Commercial
South Lakeland District Council,http://opendatacommunities.org/id/district-council/south-lakeland,31/07/2014,Kendal Market Hall,External Trading Accounts,,HYGIENE CLEANING SUPPLIES LTD,04753934,21-07-2014,0000042428,112.11,0,2 x 5L of Multi-purpose cleaner,131011,Cleaning & Janitorial Cleaning Materials
South Lakeland District Council,http://opendatacommunities.org/id/district-council/south-lakeland,31/07/2014,Business Support Community Services,Housing Services,http://opendatacommunities.org/def/concept/finance/sercop/objective/108,PHS GROUP PLC,,21-07-2014,0000042429,217.2,0,Washroom products and non hazardous,131312,Cleaning & Janitorial Washroom Sanitat
South Lakeland District Council,http://opendatacommunities.org/id/district-council/south-lakeland,31/07/2014,Business Support Community Services,Internal Trading Accounts,,ARCO LIMITED,00133804,28-07-2014,0000042430,2.86,0,Eez wipes,141100,Clothing Protective
South Lakeland District Council,http://opendatacommunities.org/id/district-council/south-lakeland,31/07/2014,Business Support Community Services,Internal Trading Accounts,,BRIAN ARMISTEAD LTD T/A SINKFALL RECYCLI,04133280,23-07-2014,0000042431,1431.2,0,Green waste tipping - April (estimated),391110,Construction Buildings Construction
South Lakeland District Council,http://opendatacommunities.org/id/district-council/south-lakeland,31/07/2014,Lake Wardens,Cultural Environmental Regulatory & Planning Services,http://opendatacommunities.org/def/concept/finance/sercop/objective/104,KITCHEN SERVICES (SOUTHPORT) LTD,07347504,21-07-2014,0000042436,28.2,0,Repair to Kitchen Hot Water Boiler,111000,Catering Banquet & Catering
South Lakeland District Council,http://opendatacommunities.org/id/district-council/south-lakeland,31/07/2014,Revenues and Benefits,Central Services,http://opendatacommunities.org/def/concept/finance/sercop/objective/102,JACOBS,,23-07-2014,0000042437,42.5,0,2014-15  Vat,152200,Consultancy Technical & Feasibility
South Lakeland District Council,http://opendatacommunities.org/id/district-council/south-lakeland,31/07/2014,Development Strategy,Housing Services,http://opendatacommunities.org/def/concept/finance/sercop/objective/108,MORGAN HUNT UK LIMITED,04349535,23-07-2014,0000042441,1465.2,0,work for South,269999,HR Not Elsewhere Classified
South Lakeland District Council,http://opendatacommunities.org/id/district-council/south-lakeland,31/07/2014,Development Implementation,Cultural Environmental Regulatory & Planning Services,http://opendatacommunities.org/def/concept/finance/sercop/objective/104,Douglas Wheeler Associates Ltd,SC368549,30-07-2014,0000042442,3418,0,Revisit/Update of the Kendal Economic,201400,Financial Services C Tax & Bus Rates
South Lakeland District Council,http://opendatacommunities.org/id/district-council/south-lakeland,31/07/2014,Legal Services,Cultural Environmental Regulatory & Planning Services,http://opendatacommunities.org/def/concept/finance/sercop/objective/104,Cornerstone Barristers,,04-08-2014,0000042443,1230,0,Fees re:  Killington,281300,Legal Services Legal Opinion
South Lakeland District Council,http://opendatacommunities.org/id/district-council/south-lakeland,31/07/2014,Business Support Community Services,Housing Services,http://opendatacommunities.org/def/concept/finance/sercop/objective/108,James Andrews Recruitment Solutions,06834852,21-07-2014,0000042444,887.5,0,Payment,261400,HR Temporary & Agency Staff
South Lakeland District Council,http://opendatacommunities.org/id/district-council/south-lakeland,31/07/2014,Environment and Housing,Housing Services,http://opendatacommunities.org/def/concept/finance/sercop/objective/108,James Andrews Recruitment Solutions,06834852,21-07-2014,0000042445,729,0,Salary for Agency staff -,261400,HR Temporary & Agency Staff
South Lakeland District Council,http://opendatacommunities.org/id/district-council/south-lakeland,31/07/2014,Business Support Community Services,Central Services,http://opendatacommunities.org/def/concept/finance/sercop/objective/102,NORTHGATE VEHICLE HIRE LTD,01434157,28-07-2014,0000042446,54.4,0,Hire of people carrier from 13.00 on,381600,Vehicle Mgt Leasing
South Lakeland District Council,http://opendatacommunities.org/id/district-council/south-lakeland,31/07/2014,Business Support Community Services,Housing Services,http://opendatacommunities.org/def/concept/finance/sercop/objective/108,NEWSQUEST MEDIA GROUP LTD,03102566,21-07-2014,0000042448,58.5,0,Advert in the Westmorland Gazette for,191000,Facilities Advertising
South Lakeland District Council,http://opendatacommunities.org/id/district-council/south-lakeland,31/07/2014,Social Enterprise Admin,Central Services,http://opendatacommunities.org/def/concept/finance/sercop/objective/102,Harmony EPOS Solutions Ltd,9266671,30-07-2014,0000042451,19.59,0,For a callout and repairs to water,111100,Catering Equipment & Utensils
South Lakeland District Council,http://opendatacommunities.org/id/district-council/south-lakeland,31/07/2014,Revenues and Benefits,Central Services,http://opendatacommunities.org/def/concept/finance/sercop/objective/102,ZEBRA TRAINING SERVICES LTD,07522160,28-07-2014,0000042452,195,0,Training  ,261500,HR Training & Conferences
South Lakeland District Council,http://opendatacommunities.org/id/district-council/south-lakeland,31/07/2014,Business Support Community Services,Internal Trading Accounts,,RIBBLESDALE AUTO ELECTRICS 1992 LTD,02732686,23-07-2014,0000042458,26.5,0,Baecon motors,381500,Vehicle Mgt Parts
South Lakeland District Council,http://opendatacommunities.org/id/district-council/south-lakeland,31/07/2014,Business Support Community Services,Internal Trading Accounts,,RIBBLESDALE AUTO ELECTRICS 1992 LTD,02732686,28-07-2014,0000042459,17.6,0,Parts,381500,Vehicle Mgt Parts
South Lakeland District Council,http://opendatacommunities.org/id/district-council/south-lakeland,31/07/2014,Business Support Community Services,Internal Trading Accounts,,RIBBLESDALE AUTO ELECTRICS 1992 LTD,02732686,21-07-2014,0000042460,57,0,Parts,381500,Vehicle Mgt Parts
South Lakeland District Council,http://opendatacommunities.org/id/district-council/south-lakeland,31/07/2014,Business Support Community Services,Internal Trading Accounts,,SOLWAY DAF,1393710,28-07-2014,0000042461,67.69,0,ABS sensor,381000,Vehicle Mgt Commercial
South Lakeland District Council,http://opendatacommunities.org/id/district-council/south-lakeland,31/07/2014,Business Support Community Services,Internal Trading Accounts,,SOLWAY DAF,1393710,28-07-2014,0000042462,21.32,0,ABS sensor,381000,Vehicle Mgt Commercial
South Lakeland District Council,http://opendatacommunities.org/id/district-council/south-lakeland,31/07/2014,Business Support Community Services,Internal Trading Accounts,,SOLWAY DAF,1393710,28-07-2014,0000042463,178.51,0,ABS sensor,381000,Vehicle Mgt Commercial
South Lakeland District Council,http://opendatacommunities.org/id/district-council/south-lakeland,31/07/2014,Business Support Community Services,Internal Trading Accounts,,SOLWAY DAF,1393710,28-07-2014,0000042464,82.83,0,ABS sensor,381000,Vehicle Mgt Commercial
South Lakeland District Council,http://opendatacommunities.org/id/district-council/south-lakeland,31/07/2014,Business Support Community Services,Internal Trading Accounts,,SOLWAY DAF,1393710,28-07-2014,0000042465,177.83,0,ABS sensor,381000,Vehicle Mgt Commercial
South Lakeland District Council,http://opendatacommunities.org/id/district-council/south-lakeland,31/07/2014,Business Support Community Services,Internal Trading Accounts,,SOLWAY DAF,1393710,28-07-2014,0000042466,35.8,0,ABS sensor,381000,Vehicle Mgt Commercial
South Lakeland District Council,http://opendatacommunities.org/id/district-council/south-lakeland,31/07/2014,Business Support Community Services,Internal Trading Accounts,,SOLWAY DAF,1393710,30-07-2014,0000042467,85,0,ABS sensor,381000,Vehicle Mgt Commercial
South Lakeland District Council,http://opendatacommunities.org/id/district-council/south-lakeland,31/07/2014,Business Support Community Services,Internal Trading Accounts,,HADWINS (LINDALE) LTD,00986050,30-07-2014,0000042468,132.99,0,Seal,381600,Vehicle Mgt Leasing
South Lakeland District Council,http://opendatacommunities.org/id/district-council/south-lakeland,31/07/2014,Business Support Community Services,Internal Trading Accounts,,SITA UK LTD,2291198,23-07-2014,0000042469,470.7,0,"Tipping & disposal charges, recyclables",182015,Environment Waste Mgt Waste Disposal
South Lakeland District Council,http://opendatacommunities.org/id/district-council/south-lakeland,31/07/2014,Business Support Community Services,Internal Trading Accounts,,EK MOTOR FACTORS LTD,00838524,23-07-2014,0000042470,26.84,0,Brake pads,381400,Vehicle Mgt Maintenance
South Lakeland District Council,http://opendatacommunities.org/id/district-council/south-lakeland,31/07/2014,Business Support Community Services,Internal Trading Accounts,,EK MOTOR FACTORS LTD,00838524,23-07-2014,0000042471,-26.77,,Oil filters,381400,Vehicle Mgt Maintenance
South Lakeland District Council,http://opendatacommunities.org/id/district-council/south-lakeland,31/07/2014,Business Support Community Services,Internal Trading Accounts,,EK MOTOR FACTORS LTD,00838524,23-07-2014,0000042472,-10.74,,Wiper blades,381400,Vehicle Mgt Maintenance
South Lakeland District Council,http://opendatacommunities.org/id/district-council/south-lakeland,31/07/2014,Business Support Community Services,Housing Services,http://opendatacommunities.org/def/concept/finance/sercop/objective/108,Daniel Proctor,,21-07-2014,0000042476,750,0,Payment for the property at 130 Lingmoor,250000,Housing
South Lakeland District Council,http://opendatacommunities.org/id/district-council/south-lakeland,31/07/2014,Social Enterprise Admin,Central Services,http://opendatacommunities.org/def/concept/finance/sercop/objective/102,ADECCO UK LIMITED,00593232,21-07-2014,0000042477,530.21,0,TEMPORARY GAZETTEER OFFICER,261400,HR Temporary & Agency Staff
South Lakeland District Council,http://opendatacommunities.org/id/district-council/south-lakeland,31/07/2014,Business Support Community Services,Housing Services,http://opendatacommunities.org/def/concept/finance/sercop/objective/108,ADECCO UK LIMITED,00593232,21-07-2014,0000042478,101.2,0,Cleaner for Town View Fields,261400,HR Temporary & Agency Staff
South Lakeland District Council,http://opendatacommunities.org/id/district-council/south-lakeland,31/07/2014,Business Support Community Services,Housing Services,http://opendatacommunities.org/def/concept/finance/sercop/objective/108,ADECCO UK LIMITED,00593232,21-07-2014,0000042479,103.8,0,Cleaner for Town View Fields,261400,HR Temporary & Agency Staff
South Lakeland District Council,http://opendatacommunities.org/id/district-council/south-lakeland,31/07/2014,Social Enterprise Admin,Central Services,http://opendatacommunities.org/def/concept/finance/sercop/objective/102,Masterstaff Limited,02777593,21-07-2014,0000042480,432.83,0,T0 SUPPLY LOCAL LAND,261300,HR Recruitment & Assessment
South Lakeland District Council,http://opendatacommunities.org/id/district-council/south-lakeland,31/07/2014,Social Enterprise Admin,Cultural Environmental Regulatory & Planning Services,http://opendatacommunities.org/def/concept/finance/sercop/objective/104,Matchtech,02526418,21-07-2014,0000042481,1068.19,0,TO SUPPLY DEVELOPMENT CONTROL TEAM,261300,HR Recruitment & Assessment
South Lakeland District Council,http://opendatacommunities.org/id/district-council/south-lakeland,31/07/2014,Business Support Community Services,Housing Services,http://opendatacommunities.org/def/concept/finance/sercop/objective/108,ADECCO UK LIMITED,00593232,23-07-2014,0000042483,129.75,0,Cleaner for Town View Fields,261400,HR Temporary & Agency Staff
South Lakeland District Council,http://opendatacommunities.org/id/district-council/south-lakeland,31/07/2014,Environment and Housing,SLDC as Agent,,HOME GROUP LTD,IP22981R,28-07-2014,0000042485,2433.21,0,Monthly salary and travel expenses for,250000,Housing
South Lakeland District Council,http://opendatacommunities.org/id/district-council/south-lakeland,31/07/2014,Financial Services,Central Services,http://opendatacommunities.org/def/concept/finance/sercop/objective/102,CIPFA,02376684,21-07-2014,0000042486,2515,0,Subs 14/15 TIS online,261500,HR Training & Conferences
South Lakeland District Council,http://opendatacommunities.org/id/district-council/south-lakeland,31/07/2014,ICT Group,Central Services,http://opendatacommunities.org/def/concept/finance/sercop/objective/102,IT PROFESSIONAL SERVICES (ITPS),,21-07-2014,0000042487,2000,0,24/7 Maintenance Contract for Eden and,279999,ICT Not Elsewhere Classified
South Lakeland District Council,http://opendatacommunities.org/id/district-council/south-lakeland,31/07/2014,Revenues and Benefits,Central Services,http://opendatacommunities.org/def/concept/finance/sercop/objective/102,BADENOCH & CLARK,1356186,21-07-2014,0000042488,540.07,0,Revs and Bens,261300,HR Recruitment & Assessment
South Lakeland District Council,http://opendatacommunities.org/id/district-council/south-lakeland,31/07/2014,Business Support Community Services,Internal Trading Accounts,,RIBBLESDALE AUTO ELECTRICS 1992 LTD,02732686,21-07-2014,0000042489,6.06,0,Parts,381500,Vehicle Mgt Parts
South Lakeland District Council,http://opendatacommunities.org/id/district-council/south-lakeland,31/07/2014,Business Support Community Services,Internal Trading Accounts,,M G D LTD,,04-08-2014,0000042491,35,0,MOTs 01/04/14 - 31/03/15,381400,Vehicle Mgt Maintenance
South Lakeland District Council,http://opendatacommunities.org/id/district-council/south-lakeland,31/07/2014,Business Support Community Services,Internal Trading Accounts,,B GREGG,,24-07-2014,0000042492,90,0,"Remove caravan from Anchorite Place,",182010,Environment Abandoned Vehicles
South Lakeland District Council,http://opendatacommunities.org/id/district-council/south-lakeland,31/07/2014,Business Support Community Services,Internal Trading Accounts,,TAYLOR ENGINEERING & FABRICATIONS LTD,04989359,21-07-2014,0000042493,94.41,0,Coils,391200,Construction Engineering
South Lakeland District Council,http://opendatacommunities.org/id/district-council/south-lakeland,31/07/2014,Business Support Community Services,Internal Trading Accounts,,TAYLOR ENGINEERING & FABRICATIONS LTD,04989359,23-07-2014,0000042494,68.12,0,Coils,391200,Construction Engineering
South Lakeland District Council,http://opendatacommunities.org/id/district-council/south-lakeland,31/07/2014,Lake Wardens,Cultural Environmental Regulatory & Planning Services,http://opendatacommunities.org/def/concept/finance/sercop/objective/104,ARNOLD DIGGLE & CO LTD,8650931,30-07-2014,0000042496,180,0,Annual Electrical Safety Inspection,102200,Building Plumbing
South Lakeland District Council,http://opendatacommunities.org/id/district-council/south-lakeland,31/07/2014,Social Enterprise Admin,Highways & Transport Services,http://opendatacommunities.org/def/concept/finance/sercop/objective/107,JACOBS,,21-07-2014,0000042498,39.2,0,Bailiff fees for returned cases and paid,152200,Consultancy Technical & Feasibility
South Lakeland District Council,http://opendatacommunities.org/id/district-council/south-lakeland,31/07/2014,Social Enterprise Admin,Highways & Transport Services,http://opendatacommunities.org/def/concept/finance/sercop/objective/107,EQUITA LIMITED,03168371,21-07-2014,0000042507,75,0,Bailiff fees for returned cases and paid,209999,Financial Services Not Elsewhere Classif
South Lakeland District Council,http://opendatacommunities.org/id/district-council/south-lakeland,31/07/2014,Business Support Community Services,Internal Trading Accounts,,Harry Park Tyres Ltd,08131208,23-07-2014,0000042510,135,0,Tyres,381500,Vehicle Mgt Parts
South Lakeland District Council,http://opendatacommunities.org/id/district-council/south-lakeland,31/07/2014,Business Support Community Services,Internal Trading Accounts,,Harry Park Tyres Ltd,08131208,30-07-2014,0000042511,420,0,Tyres,381500,Vehicle Mgt Parts
South Lakeland District Council,http://opendatacommunities.org/id/district-council/south-lakeland,31/07/2014,Business Support Community Services,Internal Trading Accounts,,Harry Park Tyres Ltd,08131208,30-07-2014,0000042512,110,0,Tyres,381500,Vehicle Mgt Parts
South Lakeland District Council,http://opendatacommunities.org/id/district-council/south-lakeland,31/07/2014,ICT Group,Highways & Transport Services,http://opendatacommunities.org/def/concept/finance/sercop/objective/107,BRITISH TELECOMMUNICATIONS PLC,01800000,21-07-2014,0000042513,1433.44,0,Connection Charge for new line for CCTV,279999,ICT Not Elsewhere Classified
South Lakeland District Council,http://opendatacommunities.org/id/district-council/south-lakeland,31/07/2014,Business Support Community Services,Housing Services,http://opendatacommunities.org/def/concept/finance/sercop/objective/108,KENDAL HOSTEL,,21-07-2014,0000042514,1000,0,Rent payment ,261000,HR Accommodation
South Lakeland District Council,http://opendatacommunities.org/id/district-council/south-lakeland,31/07/2014,Business Support Community Services,Internal Trading Accounts,,FST CONSUMABLES LTD,01342012,23-07-2014,0000042515,131.32,0,Consumables 01/04/14 - 31/03/15,101600,Building Hand Tools
South Lakeland District Council,http://opendatacommunities.org/id/district-council/south-lakeland,31/07/2014,Social Enterprise Admin,Cultural Environmental Regulatory & Planning Services,http://opendatacommunities.org/def/concept/finance/sercop/objective/104,KENDAL METAL WORKS LTD,01158514,23-07-2014,0000042516,358.8,0,Litter bin liners,391200,Construction Engineering
South Lakeland District Council,http://opendatacommunities.org/id/district-council/south-lakeland,31/07/2014,Business Support Community Services,Housing Services,http://opendatacommunities.org/def/concept/finance/sercop/objective/108,CASTLE ALARMS 1981 LTD,09231500,23-07-2014,0000042522,625,0,Monitor for the CCTV in the meeting room,192212,Facilities Security Equipment
South Lakeland District Council,http://opendatacommunities.org/id/district-council/south-lakeland,31/07/2014,Kendal Market Hall,Central Services,http://opendatacommunities.org/def/concept/finance/sercop/objective/102,LTT VENDING GROUP LTD,03021756,30-07-2014,0000042523,112.26,0,3 cases of FLAVIA Paper Cups,111400,Catering Vending Machines & Dispensers
South Lakeland District Council,http://opendatacommunities.org/id/district-council/south-lakeland,31/07/2014,Revenues and Benefits,SLDC as Agent,,ROYAL MAIL GROUP PLC,,21-07-2014,0000042524,1684.72,0,2014-15  Postal Charges a/c 0198123013,301200,Mail Services� Postage
South Lakeland District Council,http://opendatacommunities.org/id/district-council/south-lakeland,31/07/2014,Revenues and Benefits,Central Services,http://opendatacommunities.org/def/concept/finance/sercop/objective/102,Victoria Pink Transcription,,21-07-2014,0000042525,97.27,0,Audio Interviews Transcripts,271400,ICT Office & Reprographics Equipment
South Lakeland District Council,http://opendatacommunities.org/id/district-council/south-lakeland,31/07/2014,Revenues and Benefits,Central Services,http://opendatacommunities.org/def/concept/finance/sercop/objective/102,CIPFA,02376684,30-07-2014,0000042529,2885,0,Benefits & Revenues Service 2014 - 15,261500,HR Training & Conferences
South Lakeland District Council,http://opendatacommunities.org/id/district-council/south-lakeland,31/07/2014,Lake Wardens,Cultural Environmental Regulatory & Planning Services,http://opendatacommunities.org/def/concept/finance/sercop/objective/104,AJN Refurbishment Services Ltd,08248260,30-07-2014,0000042530,554,0,Manufacture & Supply 3 Signs powder,191700,Facilities Property Management
South Lakeland District Council,http://opendatacommunities.org/id/district-council/south-lakeland,31/07/2014,Lake Wardens,Cultural Environmental Regulatory & Planning Services,http://opendatacommunities.org/def/concept/finance/sercop/objective/104,AJN Refurbishment Services Ltd,08248260,30-07-2014,0000042531,2067,0,10 x 680mm x 600mm Aluminium Triangles.,191700,Facilities Property Management
South Lakeland District Council,http://opendatacommunities.org/id/district-council/south-lakeland,31/07/2014,Social Enterprise Admin,Cultural Environmental Regulatory & Planning Services,http://opendatacommunities.org/def/concept/finance/sercop/objective/104,THE DOCUMENT MANAGEMENT GROUP LTD,05210023,04-08-2014,0000042532,200,0,SERVICE AGREEMENT NUMBER 501,191200,Facilities Document Archiving & Storage
South Lakeland District Council,http://opendatacommunities.org/id/district-council/south-lakeland,31/07/2014,Business Support Community Services,Central Services,http://opendatacommunities.org/def/concept/finance/sercop/objective/102,RICARDO-AEA,08229264,04-08-2014,0000042533,930,0,EMAQ Courses,159999,Consultancy Not Elsewhere Classified
South Lakeland District Council,http://opendatacommunities.org/id/district-council/south-lakeland,31/07/2014,Business Support Community Services,Internal Trading Accounts,,NORTHGATE VEHICLE HIRE LTD,01434157,30-07-2014,0000042535,30.28,0,Car hire 9/7 & 10/7,381600,Vehicle Mgt Leasing
South Lakeland District Council,http://opendatacommunities.org/id/district-council/south-lakeland,31/07/2014,Business Support Community Services,Internal Trading Accounts,,ARCO LIMITED,00133804,30-07-2014,0000042536,149,0,Gloves,141100,Clothing Protective
South Lakeland District Council,http://opendatacommunities.org/id/district-council/south-lakeland,31/07/2014,Customer Services,Central Services,http://opendatacommunities.org/def/concept/finance/sercop/objective/102,CONNECTED CONCEPTS LTD,06714757,04-08-2014,0000042537,14000,0,For maintenace to the Excelsior system,271600,ICT Software Customised & Bespoke
South Lakeland District Council,http://opendatacommunities.org/id/district-council/south-lakeland,31/07/2014,ICT Group,Central Services,http://opendatacommunities.org/def/concept/finance/sercop/objective/102,EIBS Ltd,03769594,21-07-2014,0000042539,3071.4,0,Software Assurance - Annual Renewal,279999,ICT Not Elsewhere Classified
South Lakeland District Council,http://opendatacommunities.org/id/district-council/south-lakeland,31/07/2014,Financial Services,Central Services,http://opendatacommunities.org/def/concept/finance/sercop/objective/102,BOTTOMLINE TECHNOLOGIES EUROPE LTD,03693514,04-08-2014,0000042540,2000,0,C-Series install and setup on new server,271600,ICT Software Customised & Bespoke
South Lakeland District Council,http://opendatacommunities.org/id/district-council/south-lakeland,31/07/2014,Social Enterprise Admin,Transport,http://opendatacommunities.org/def/concept/finance/sercop/objective/107,WILLIAM PYE LIMITED,01190686,21-07-2014,0000042541,633.75,0,Retention for works to SLDC Car Park Pay,391200,Construction Engineering
South Lakeland District Council,http://opendatacommunities.org/id/district-council/south-lakeland,31/07/2014,Business Support Community Services,Cultural Environmental Regulatory & Planning Services,http://opendatacommunities.org/def/concept/finance/sercop/objective/104,ULVERSTON TOWN COUNCIL,,21-07-2014,0000042542,2000,0,Ulverston Festival of Food 2014,908000,Public Bodies Council support services
South Lakeland District Council,http://opendatacommunities.org/id/district-council/south-lakeland,31/07/2014,Business Support Community Services,Housing Services,http://opendatacommunities.org/def/concept/finance/sercop/objective/108,George Inchmore,,21-07-2014,0000042543,40,0,Electrical work carried out ,250000,Housing
South Lakeland District Council,http://opendatacommunities.org/id/district-council/south-lakeland,31/07/2014,Environmental Protection,Cultural Environmental Regulatory & Planning Services,http://opendatacommunities.org/def/concept/finance/sercop/objective/104,GLASDON UK LTD,02160576,06-08-2014,0000042544,365,0,! x BROWN Glasdon Phoenix seat,109999,Building Not Elsewhere Classified
South Lakeland District Council,http://opendatacommunities.org/id/district-council/south-lakeland,31/07/2014,Financial Services,Central Services,http://opendatacommunities.org/def/concept/finance/sercop/objective/102,EXAPRINT,08032272,06-08-2014,0000042545,1907.5,0,3 days consultancy to install Laserserve,191600,Facilities Printing
South Lakeland District Council,http://opendatacommunities.org/id/district-council/south-lakeland,31/07/2014,Financial Services,Central Services,http://opendatacommunities.org/def/concept/finance/sercop/objective/102,EXAPRINT,08032272,06-08-2014,0000042545,817.5,0,3 days consultancy to install Laserserve,191600,Facilities Printing
South Lakeland District Council,http://opendatacommunities.org/id/district-council/south-lakeland,31/07/2014,Electoral Services,Central Services,http://opendatacommunities.org/def/concept/finance/sercop/objective/102,HALAROSE LIMITED,01362834,23-07-2014,0000042546,3913,0,Scanner for IER Fujitsu Fi-6670,271600,ICT Software Customised & Bespoke
South Lakeland District Council,http://opendatacommunities.org/id/district-council/south-lakeland,31/07/2014,Electoral Services,Central Services,http://opendatacommunities.org/def/concept/finance/sercop/objective/102,ROYAL MAIL GROUP PLC,,23-07-2014,0000042547,0.42,0,Response Plus postage Euro Election,301200,Mail Services� Postage
South Lakeland District Council,http://opendatacommunities.org/id/district-council/south-lakeland,31/07/2014,Revenues and Benefits,Central Services,http://opendatacommunities.org/def/concept/finance/sercop/objective/102,DX NETWORK SERVICES LTD,05026914,28-07-2014,0000042548,299,0,DX Box Subscription Renewal 2014 - 2015,301000,Mail Services� Couriers
South Lakeland District Council,http://opendatacommunities.org/id/district-council/south-lakeland,31/07/2014,Revenues and Benefits,Central Services,http://opendatacommunities.org/def/concept/finance/sercop/objective/102,DX NETWORK SERVICES LTD,05026914,28-07-2014,0000042548,203.04,0,DX Box Subscription Renewal 2014 - 2015,301000,Mail Services� Couriers
South Lakeland District Council,http://opendatacommunities.org/id/district-council/south-lakeland,31/07/2014,Social Enterprise Admin,Cultural Environmental Regulatory & Planning Services,http://opendatacommunities.org/def/concept/finance/sercop/objective/104,HYGIENE CLEANING SUPPLIES LTD,04753934,04-08-2014,0000042549,86.56,0,4x 12 Mini Jumbo Toilet Rolls JP07,131011,Cleaning & Janitorial Cleaning Materials
South Lakeland District Council,http://opendatacommunities.org/id/district-council/south-lakeland,31/07/2014,Printing Section,Central Services,http://opendatacommunities.org/def/concept/finance/sercop/objective/102,BANNER T/A SUPPLIES TEAM,05510758,23-07-2014,0000042550,30.46,0,Black toner for Town View printer,340000,Stationery
South Lakeland District Council,http://opendatacommunities.org/id/district-council/south-lakeland,31/07/2014,Printing Section,Central Services,http://opendatacommunities.org/def/concept/finance/sercop/objective/102,TOSHIBA TEC UK IMAGING SYSTEMS LTD,04124726,23-07-2014,0000042551,53,0,Monthly Prisma Rental,271600,ICT Software Customised & Bespoke
South Lakeland District Council,http://opendatacommunities.org/id/district-council/south-lakeland,31/07/2014,Financial Services,Central Services,http://opendatacommunities.org/def/concept/finance/sercop/objective/102,CAPITA BUSINESS SERVICES LTD (NCR),,31-07-2014,0000042552,1104.75,0,Internet Transactions June Inv 93760452,261500,HR Training & Conferences
South Lakeland District Council,http://opendatacommunities.org/id/district-council/south-lakeland,31/07/2014,Lake Wardens,Cultural Environmental Regulatory & Planning Services,http://opendatacommunities.org/def/concept/finance/sercop/objective/104,Chillswim Trading Ltd,08614960,23-07-2014,0000042554,700,0,Manufacture and set up Costs for 200,291400,Arts & Leisure Services Sport & Fitness
South Lakeland District Council,http://opendatacommunities.org/id/district-council/south-lakeland,31/07/2014,Business Support Community Services,Housing Services,http://opendatacommunities.org/def/concept/finance/sercop/objective/108,THE JAMES COCHRANE PRACTICE,,30-07-2014,0000042555,30,0,Medical Report ,311600,Healthcare Services
South Lakeland District Council,http://opendatacommunities.org/id/district-council/south-lakeland,31/07/2014,Environmental Protection,Cultural Environmental Regulatory & Planning Services,http://opendatacommunities.org/def/concept/finance/sercop/objective/104,CUMBRIA WASTE RECYCLING LTD,03162439,28-07-2014,0000042556,94.16,0,cemeteries Bin emptying and disposal,182012,Environment Waste Management Recycling
South Lakeland District Council,http://opendatacommunities.org/id/district-council/south-lakeland,31/07/2014,Environmental Protection,Cultural Environmental Regulatory & Planning Services,http://opendatacommunities.org/def/concept/finance/sercop/objective/104,CUMBRIA WASTE RECYCLING LTD,03162439,28-07-2014,0000042558,44,0,cemeteries Bin emptying and disposal,182012,Environment Waste Management Recycling
South Lakeland District Council,http://opendatacommunities.org/id/district-council/south-lakeland,31/07/2014,Environmental Protection,Cultural Environmental Regulatory & Planning Services,http://opendatacommunities.org/def/concept/finance/sercop/objective/104,CUMBRIA WASTE RECYCLING LTD,03162439,28-07-2014,0000042559,54,0,cemeteries Bin emptying and disposal,182012,Environment Waste Management Recycling
South Lakeland District Council,http://opendatacommunities.org/id/district-council/south-lakeland,31/07/2014,Coronation Hall,Cultural Environmental Regulatory & Planning Services,http://opendatacommunities.org/def/concept/finance/sercop/objective/104,CUMBRIA WASTE RECYCLING LTD,03162439,28-07-2014,0000042560,83.28,0,"Emptying of skips from Coronation Hall,",182012,Environment Waste Management Recycling
South Lakeland District Council,http://opendatacommunities.org/id/district-council/south-lakeland,31/07/2014,Environmental Protection,Cultural Environmental Regulatory & Planning Services,http://opendatacommunities.org/def/concept/finance/sercop/objective/104,CUMBRIA WASTE RECYCLING LTD,03162439,28-07-2014,0000042561,56.56,0,cemeteries Bin emptying and disposal,182012,Environment Waste Management Recycling
South Lakeland District Council,http://opendatacommunities.org/id/district-council/south-lakeland,31/07/2014,Lake Wardens,Cultural Environmental Regulatory & Planning Services,http://opendatacommunities.org/def/concept/finance/sercop/objective/104,CUMBRIA WASTE RECYCLING LTD,03162439,04-08-2014,0000042562,230.42,0,Monthly Emptying of Refuse Wheelie Bins,182012,Environment Waste Management Recycling
South Lakeland District Council,http://opendatacommunities.org/id/district-council/south-lakeland,31/07/2014,Coronation Hall,External Trading Accounts,,CUMBRIA WASTE RECYCLING LTD,03162439,28-07-2014,0000042563,400.56,0,"Emptying of skips from Market Hall,",182012,Environment Waste Management Recycling
South Lakeland District Council,http://opendatacommunities.org/id/district-council/south-lakeland,31/07/2014,Environmental Protection,Cultural Environmental Regulatory & Planning Services,http://opendatacommunities.org/def/concept/finance/sercop/objective/104,CUMBRIA WASTE RECYCLING LTD,03162439,28-07-2014,0000042564,75.84,0,cemeteries Bin emptying and disposal,182012,Environment Waste Management Recycling
South Lakeland District Council,http://opendatacommunities.org/id/district-council/south-lakeland,31/07/2014,Kendal Town Hall,Cultural Environmental Regulatory & Planning Services,http://opendatacommunities.org/def/concept/finance/sercop/objective/104,CUMBRIA WASTE RECYCLING LTD,03162439,28-07-2014,0000042566,119.4,0,Weekly collection of the bins at Kendal,182012,Environment Waste Management Recycling
South Lakeland District Council,http://opendatacommunities.org/id/district-council/south-lakeland,31/07/2014,Environmental Protection,Cultural Environmental Regulatory & Planning Services,http://opendatacommunities.org/def/concept/finance/sercop/objective/104,CUMBRIA WASTE RECYCLING LTD,03162439,28-07-2014,0000042568,24.68,0,cemeteries Bin emptying and disposal,182012,Environment Waste Management Recycling
South Lakeland District Council,http://opendatacommunities.org/id/district-council/south-lakeland,31/07/2014,Environmental Protection,Cultural Environmental Regulatory & Planning Services,http://opendatacommunities.org/def/concept/finance/sercop/objective/104,CUMBRIA WASTE RECYCLING LTD,03162439,28-07-2014,0000042570,28.28,0,cemeteries Bin emptying and disposal,182012,Environment Waste Management Recycling
South Lakeland District Council,http://opendatacommunities.org/id/district-council/south-lakeland,31/07/2014,Revenues and Benefits,Central Services,http://opendatacommunities.org/def/concept/finance/sercop/objective/102,MERITEC LTD,03224622,06-08-2014,0000042574,139.5,0,RAB Processing Contract and Agency,391200,Construction Engineering
South Lakeland District Council,http://opendatacommunities.org/id/district-council/south-lakeland,31/07/2014,Business Support Community Services,Housing Services,http://opendatacommunities.org/def/concept/finance/sercop/objective/108,KENDAL SECURITY CENTRE LTD,03179893,30-07-2014,0000042575,80,0,Locksmiths for Beast Banks,192212,Facilities Security Equipment
South Lakeland District Council,http://opendatacommunities.org/id/district-council/south-lakeland,31/07/2014,Social Enterprise Admin,Highways & Transport Services,http://opendatacommunities.org/def/concept/finance/sercop/objective/107,ALLSTAR BUSINESS SOLUTIONS LTD (NCR),2631112,01-08-2014,0000042577,254.64,0,Fuel for car parks' vehicles starting 1,381600,Vehicle Mgt Leasing
South Lakeland District Council,http://opendatacommunities.org/id/district-council/south-lakeland,31/07/2014,Social Enterprise Admin,Cultural Environmental Regulatory & Planning Services,http://opendatacommunities.org/def/concept/finance/sercop/objective/104,ALLSTAR BUSINESS SOLUTIONS LTD (NCR),2631112,01-08-2014,0000042578,65.01,0,Fuel for Parks vehicle PX63 KSN April,381600,Vehicle Mgt Leasing
South Lakeland District Council,http://opendatacommunities.org/id/district-council/south-lakeland,31/07/2014,Social Enterprise Admin,Cultural Environmental Regulatory & Planning Services,http://opendatacommunities.org/def/concept/finance/sercop/objective/104,NPS NORTH WEST LTD,06614601,28-07-2014,0000042581,680,0,Project Management fees 10%,391110,Construction Buildings Construction
South Lakeland District Council,http://opendatacommunities.org/id/district-council/south-lakeland,31/07/2014,Coronation Hall,External Trading Accounts,,Morson International,,23-07-2014,0000042582,159.04,0,Ulverston Market Hall cleaner from April,261300,HR Recruitment & Assessment
South Lakeland District Council,http://opendatacommunities.org/id/district-council/south-lakeland,31/07/2014,Business Support Community Services,Internal Trading Accounts,,SOLWAY DAF,1393710,28-07-2014,0000042583,-68.21,,Pipe,381000,Vehicle Mgt Commercial
South Lakeland District Council,http://opendatacommunities.org/id/district-council/south-lakeland,31/07/2014,Business Support Community Services,Internal Trading Accounts,,TAYLOR ENGINEERING & FABRICATIONS LTD,04989359,04-08-2014,0000042585,152,0,Coils,391200,Construction Engineering
South Lakeland District Council,http://opendatacommunities.org/id/district-council/south-lakeland,31/07/2014,Business Support Community Services,Internal Trading Accounts,,K S INTERNATIONAL LTD,02703321,30-07-2014,0000042586,614,0,Shock absorber,381500,Vehicle Mgt Parts
South Lakeland District Council,http://opendatacommunities.org/id/district-council/south-lakeland,31/07/2014,Business Support Community Services,Internal Trading Accounts,,ALLSTAR BUSINESS SOLUTIONS LTD (NCR),2631112,01-08-2014,0000042587,4519.55,0,Fuel to 15/07,381600,Vehicle Mgt Leasing
South Lakeland District Council,http://opendatacommunities.org/id/district-council/south-lakeland,31/07/2014,Business Support Community Services,Internal Trading Accounts,,ALLSTAR BUSINESS SOLUTIONS LTD (NCR),2631112,01-08-2014,0000042587,189.57,0,Fuel to 15/07,381600,Vehicle Mgt Leasing
South Lakeland District Council,http://opendatacommunities.org/id/district-council/south-lakeland,31/07/2014,Business Support Community Services,Internal Trading Accounts,,ALLSTAR BUSINESS SOLUTIONS LTD (NCR),2631112,01-08-2014,0000042587,13903.52,0,Fuel to 15/07,381600,Vehicle Mgt Leasing
South Lakeland District Council,http://opendatacommunities.org/id/district-council/south-lakeland,31/07/2014,Business Support Community Services,Internal Trading Accounts,,GREENCHEM SOLUTIONS LTD,05175801,04-08-2014,0000042588,75.08,0,Ad Blue,189999,Environmental Services Not Elsewhere Cla
South Lakeland District Council,http://opendatacommunities.org/id/district-council/south-lakeland,31/07/2014,Business Support Community Services,Internal Trading Accounts,,GREENCHEM SOLUTIONS LTD,05175801,04-08-2014,0000042588,50.05,0,Ad Blue,189999,Environmental Services Not Elsewhere Cla
South Lakeland District Council,http://opendatacommunities.org/id/district-council/south-lakeland,31/07/2014,Business Support Community Services,Internal Trading Accounts,,GREENCHEM SOLUTIONS LTD,05175801,04-08-2014,0000042588,375.37,0,Ad Blue,189999,Environmental Services Not Elsewhere Cla
South Lakeland District Council,http://opendatacommunities.org/id/district-council/south-lakeland,31/07/2014,Social Enterprise Admin,Culture and Related Serv,http://opendatacommunities.org/def/concept/finance/sercop/objective/104,NPS NORTH WEST LTD,06614601,28-07-2014,0000042589,2500,0,Plan of Ferry Nab shower extension,391110,Construction Buildings Construction
South Lakeland District Council,http://opendatacommunities.org/id/district-council/south-lakeland,31/07/2014,Social Enterprise Admin,Cultural Environmental Regulatory & Planning Services,http://opendatacommunities.org/def/concept/finance/sercop/objective/104,NPS NORTH WEST LTD,06614601,30-07-2014,0000042590,2519.5,0,Design works associated with Windermere,391110,Construction Buildings Construction
South Lakeland District Council,http://opendatacommunities.org/id/district-council/south-lakeland,31/07/2014,Financial Services,Central Services,http://opendatacommunities.org/def/concept/finance/sercop/objective/102,LANCASHIRE COUNTY COUNCIL,,23-07-2014,0000042594,699,0,VAT Consultancy Support 14/15,908000,Public Bodies Council support services
South Lakeland District Council,http://opendatacommunities.org/id/district-council/south-lakeland,31/07/2014,Business Support Community Services,Housing Services,http://opendatacommunities.org/def/concept/finance/sercop/objective/108,Landlord,07803122,23-07-2014,0000042597,500,0,Monthly rent ,250000,Housing
South Lakeland District Council,http://opendatacommunities.org/id/district-council/south-lakeland,31/07/2014,Business Support Community Services,Housing Services,http://opendatacommunities.org/def/concept/finance/sercop/objective/108,Landlord,,23-07-2014,0000042598,500,0,Monthly rent ,202000,Financial Services Rents
South Lakeland District Council,http://opendatacommunities.org/id/district-council/south-lakeland,31/07/2014,Business Support Community Services,Housing Services,http://opendatacommunities.org/def/concept/finance/sercop/objective/108,Landlord,,23-07-2014,0000042599,1050,0,Monthly rent ,250000,Housing
South Lakeland District Council,http://opendatacommunities.org/id/district-council/south-lakeland,31/07/2014,Business Support Community Services,Housing Services,http://opendatacommunities.org/def/concept/finance/sercop/objective/108,Landlord,,23-07-2014,0000042600,625,0,Monthly rent ,250000,Housing
South Lakeland District Council,http://opendatacommunities.org/id/district-council/south-lakeland,31/07/2014,Human Resources,Central Services,http://opendatacommunities.org/def/concept/finance/sercop/objective/102,Jobboard Enterprises Ltd,04056153,06-08-2014,0000042601,354,0,Job Posting on the ITJB,191000,Facilities Advertising
South Lakeland District Council,http://opendatacommunities.org/id/district-council/south-lakeland,31/07/2014,Printing Section,Central Services,http://opendatacommunities.org/def/concept/finance/sercop/objective/102,ROSEFOX PAPER LIMITED,01655083,06-08-2014,0000042602,482.32,0,Paper one A4 80gsm,341000,Stationery Paper
South Lakeland District Council,http://opendatacommunities.org/id/district-council/south-lakeland,31/07/2014,Development Implementation,Cultural Environmental Regulatory & Planning Services,http://opendatacommunities.org/def/concept/finance/sercop/objective/104,AHA! DISTRIBUTION LTD,,06-08-2014,0000042603,244,0,Kendal Sense of Place Leaflet,191000,Facilities Advertising
South Lakeland District Council,http://opendatacommunities.org/id/district-council/south-lakeland,31/07/2014,Development Implementation,Cultural Environmental Regulatory & Planning Services,http://opendatacommunities.org/def/concept/finance/sercop/objective/104,AHA! DISTRIBUTION LTD,,06-08-2014,0000042603,906,0,Kendal Sense of Place Leaflet,191000,Facilities Advertising
South Lakeland District Council,http://opendatacommunities.org/id/district-council/south-lakeland,31/07/2014,Development Implementation,Central Services,http://opendatacommunities.org/def/concept/finance/sercop/objective/102,THE TECHNOLOGY FORGE,06834254,30-07-2014,0000042609,8945,0,Annual Maintenance & Renewal 01/06/2014,271600,ICT Software Customised & Bespoke
South Lakeland District Council,http://opendatacommunities.org/id/district-council/south-lakeland,31/07/2014,Business Support Community Services,Internal Trading Accounts,,HAKO MACHINES LIMITED,01414225,11-08-2014,0000042610,53.26,0,Mirror,131000,Cleaning & Janitorial Cleaning Materials
South Lakeland District Council,http://opendatacommunities.org/id/district-council/south-lakeland,31/07/2014,Financial Services,Central Services,http://opendatacommunities.org/def/concept/finance/sercop/objective/102,CUMBRIA LGPS,,04-08-2014,0000042611,75093.72,0,Qtr contribution re past pensions,908999,Public Bodies Not Elsewhere Classified
South Lakeland District Council,http://opendatacommunities.org/id/district-council/south-lakeland,31/07/2014,Human Resources,Central Services,http://opendatacommunities.org/def/concept/finance/sercop/objective/102,Hold The Front Page,,28-07-2014,0000042613,325,0,Communications Officer - 2 week advert,191000,Facilities Advertising
South Lakeland District Council,http://opendatacommunities.org/id/district-council/south-lakeland,31/07/2014,Business Support Community Services,Central Services,http://opendatacommunities.org/def/concept/finance/sercop/objective/102,ASSOCIATION OF ELECTORAL ADMINISTRATORS,02406897,28-07-2014,0000042615,46.5,0,Annual Subscription 2014,202100,Financial Services Subscriptions
South Lakeland District Council,http://opendatacommunities.org/id/district-council/south-lakeland,31/07/2014,Business Support Community Services,Central Services,http://opendatacommunities.org/def/concept/finance/sercop/objective/102,ASSOCIATION OF ELECTORAL ADMINISTRATORS,02406897,28-07-2014,0000042616,590,0,"4 places on ""Registation pre UK",202100,Financial Services Subscriptions
South Lakeland District Council,http://opendatacommunities.org/id/district-council/south-lakeland,31/07/2014,Business Support Community Services,Cultural Environmental Regulatory & Planning Services,http://opendatacommunities.org/def/concept/finance/sercop/objective/104,CUMBRIA WASTE RECYCLING LTD,03162439,28-07-2014,0000042617,130,0,Delivery of 1st skip to Devils Bridge,182012,Environment Waste Management Recycling
South Lakeland District Council,http://opendatacommunities.org/id/district-council/south-lakeland,31/07/2014,Business Support Community Services,Cultural Environmental Regulatory & Planning Services,http://opendatacommunities.org/def/concept/finance/sercop/objective/104,CUMBRIA WASTE RECYCLING LTD,03162439,28-07-2014,0000042618,130,0,Delivery of 1st skip to Middleton Common,182012,Environment Waste Management Recycling
South Lakeland District Council,http://opendatacommunities.org/id/district-council/south-lakeland,31/07/2014,Business Support Community Services,Cultural Environmental Regulatory & Planning Services,http://opendatacommunities.org/def/concept/finance/sercop/objective/104,CUMBRIA WASTE RECYCLING LTD,03162439,28-07-2014,0000042619,130,0,"Delivery of 1st skip to Scrogg Bank,",182012,Environment Waste Management Recycling
South Lakeland District Council,http://opendatacommunities.org/id/district-council/south-lakeland,31/07/2014,Business Support Community Services,Cultural Environmental Regulatory & Planning Services,http://opendatacommunities.org/def/concept/finance/sercop/objective/104,CUMBRIA WASTE RECYCLING LTD,03162439,28-07-2014,0000042620,130,0,Delivery of 1st skip to Rawthey Bridge,182012,Environment Waste Management Recycling
South Lakeland District Council,http://opendatacommunities.org/id/district-council/south-lakeland,31/07/2014,Business Support Community Services,Cultural Environmental Regulatory & Planning Services,http://opendatacommunities.org/def/concept/finance/sercop/objective/104,CUMBRIA WASTE RECYCLING LTD,03162439,28-07-2014,0000042621,12850.63,0,Empty recycling banks in April,182012,Environment Waste Management Recycling
South Lakeland District Council,http://opendatacommunities.org/id/district-council/south-lakeland,31/07/2014,Development Strategy,Cultural Environmental Regulatory & Planning Services,http://opendatacommunities.org/def/concept/finance/sercop/objective/104,Matchtech,02526418,23-07-2014,0000042622,416.85,0,"12-week contract, 30hrs",261300,HR Recruitment & Assessment
South Lakeland District Council,http://opendatacommunities.org/id/district-council/south-lakeland,31/07/2014,Development Implementation,Cultural Environmental Regulatory & Planning Services,http://opendatacommunities.org/def/concept/finance/sercop/objective/104,CUMBRIA RURAL ENTERPRISE AGENCY LIMITED,02200347,28-07-2014,0000042623,8230,0,Business Support Claim to quarter ending,261500,HR Training & Conferences
South Lakeland District Council,http://opendatacommunities.org/id/district-council/south-lakeland,31/07/2014,Development Implementation,Cultural Environmental Regulatory & Planning Services,http://opendatacommunities.org/def/concept/finance/sercop/objective/104,Times Business Insight t/a Axis Media,,06-08-2014,0000042624,999,0,Insertion with Business Insight North -,191000,Facilities Advertising
South Lakeland District Council,http://opendatacommunities.org/id/district-council/south-lakeland,31/07/2014,Development Implementation,Cultural Environmental Regulatory & Planning Services,http://opendatacommunities.org/def/concept/finance/sercop/objective/104,ACTION FOR MARKET TOWNS,03381092,11-08-2014,0000042625,148.18,0,"Travel Expenses for Business Event,",201700,Financial Services Grants
South Lakeland District Council,http://opendatacommunities.org/id/district-council/south-lakeland,31/07/2014,ICT Group,Central Services,http://opendatacommunities.org/def/concept/finance/sercop/objective/102,PROBRAND LTD,02653446,11-08-2014,0000042627,88.48,0,VUW364/CBP1-9E    V7 - Professional,271600,ICT Software Customised & Bespoke
South Lakeland District Council,http://opendatacommunities.org/id/district-council/south-lakeland,31/07/2014,ICT Group,Central Services,http://opendatacommunities.org/def/concept/finance/sercop/objective/102,PROBRAND LTD,02653446,11-08-2014,0000042628,180.54,0,EDR620/EB220H        Edge 10 - EB220h,271600,ICT Software Customised & Bespoke
South Lakeland District Council,http://opendatacommunities.org/id/district-council/south-lakeland,31/07/2014,Social Enterprise Admin,Cultural Environmental Regulatory & Planning Services,http://opendatacommunities.org/def/concept/finance/sercop/objective/104,ARB CONSULTANTS LTD,06082066,28-07-2014,0000042629,2900,0,Arboricultural contract April-Sept 14,159999,Consultancy Not Elsewhere Classified
South Lakeland District Council,http://opendatacommunities.org/id/district-council/south-lakeland,31/07/2014,Financial Services,Central Services,http://opendatacommunities.org/def/concept/finance/sercop/objective/102,INVESTEC ASSET MANAGEMENT  LTD,02036094,06-08-2014,0000042630,4543.07,0,Fund Management,209999,Financial Services Not Elsewhere Classif
South Lakeland District Council,http://opendatacommunities.org/id/district-council/south-lakeland,31/07/2014,Financial Services,Central Services,http://opendatacommunities.org/def/concept/finance/sercop/objective/102,ALLPAY.NET LTD (NCR),6871069,31-07-2014,0000042631,31.53,0,Inv.335675 30.06.14 SLBR,209999,Financial Services Not Elsewhere Classif
South Lakeland District Council,http://opendatacommunities.org/id/district-council/south-lakeland,31/07/2014,Financial Services,Central Services,http://opendatacommunities.org/def/concept/finance/sercop/objective/102,ALLPAY.NET LTD (NCR),6871069,31-07-2014,0000042632,35.82,0,Inv.335675 30.06.14 SLBR,209999,Financial Services Not Elsewhere Classif
South Lakeland District Council,http://opendatacommunities.org/id/district-council/south-lakeland,31/07/2014,Financial Services,Central Services,http://opendatacommunities.org/def/concept/finance/sercop/objective/102,ALLPAY.NET LTD (NCR),6871069,31-07-2014,0000042633,1067.56,0,Inv.335675 30.06.14 SLBR,209999,Financial Services Not Elsewhere Classif
South Lakeland District Council,http://opendatacommunities.org/id/district-council/south-lakeland,31/07/2014,Financial Services,Central Services,http://opendatacommunities.org/def/concept/finance/sercop/objective/102,ALLPAY.NET LTD (NCR),6871069,31-07-2014,0000042634,632.4,0,Inv.335675 30.06.14 SLBR,209999,Financial Services Not Elsewhere Classif
South Lakeland District Council,http://opendatacommunities.org/id/district-council/south-lakeland,31/07/2014,Financial Services,Central Services,http://opendatacommunities.org/def/concept/finance/sercop/objective/102,ALLPAY.NET LTD (NCR),6871069,31-07-2014,0000042635,20.48,0,Inv.335675 30.06.14 SLBR,209999,Financial Services Not Elsewhere Classif
South Lakeland District Council,http://opendatacommunities.org/id/district-council/south-lakeland,31/07/2014,Social Enterprise Admin,Highways & Transport Services,http://opendatacommunities.org/def/concept/finance/sercop/objective/107,KELTIC,08658742,11-08-2014,0000042637,114.4,0,1x Hi Vis vest colour black with,141000,Clothing Childrens & Adults
South Lakeland District Council,http://opendatacommunities.org/id/district-council/south-lakeland,31/07/2014,Coronation Hall,External Trading Accounts,,SHORROCK TRICHEM,04179799,28-07-2014,0000042638,245.9,0,Toilet rolls - mini jumbo 2 ply 12 pk,131312,Cleaning & Janitorial Washroom Sanitat
South Lakeland District Council,http://opendatacommunities.org/id/district-council/south-lakeland,31/07/2014,Coronation Hall,Cultural Environmental Regulatory & Planning Services,http://opendatacommunities.org/def/concept/finance/sercop/objective/104,SHORROCK TRICHEM,04179799,28-07-2014,0000042638,88.66,0,Toilet rolls - mini jumbo 2 ply 12 pk,131312,Cleaning & Janitorial Washroom Sanitat
South Lakeland District Council,http://opendatacommunities.org/id/district-council/south-lakeland,31/07/2014,Business Support Community Services,Housing Services,http://opendatacommunities.org/def/concept/finance/sercop/objective/108,James Andrews Recruitment Solutions,06834852,30-07-2014,0000042639,868.75,0,Payment ,261400,HR Temporary & Agency Staff
South Lakeland District Council,http://opendatacommunities.org/id/district-council/south-lakeland,31/07/2014,Environment and Housing,Housing Services,http://opendatacommunities.org/def/concept/finance/sercop/objective/108,James Andrews Recruitment Solutions,06834852,28-07-2014,0000042640,729,0,Salary for Agency staff - ,261400,HR Temporary & Agency Staff
South Lakeland District Council,http://opendatacommunities.org/id/district-council/south-lakeland,31/07/2014,Business Support Community Services,Internal Trading Accounts,,QPS PLASTIC LTD,,11-08-2014,0000042641,111.75,0,Barrier arms,109999,Building Not Elsewhere Classified
South Lakeland District Council,http://opendatacommunities.org/id/district-council/south-lakeland,31/07/2014,Business Support Community Services,Internal Trading Accounts,,SOLWAY DAF,1393710,30-07-2014,0000042643,31.26,0,ABS sensor,381000,Vehicle Mgt Commercial
South Lakeland District Council,http://opendatacommunities.org/id/district-council/south-lakeland,31/07/2014,Business Support Community Services,Internal Trading Accounts,,BILL MOORE LIFTING TACKLE LTD,01482196,04-08-2014,0000042644,30,0,LOLER inspection,181812,Environment Technical Equip Testing
South Lakeland District Council,http://opendatacommunities.org/id/district-council/south-lakeland,31/07/2014,Business Support Community Services,Internal Trading Accounts,,SOLWAY DAF,1393710,06-08-2014,0000042645,15.67,0,ABS sensor,381000,Vehicle Mgt Commercial
South Lakeland District Council,http://opendatacommunities.org/id/district-council/south-lakeland,31/07/2014,Legal Services,Central Services,http://opendatacommunities.org/def/concept/finance/sercop/objective/102,VENN GROUP RECRUITMENT SOLUTIONS,,28-07-2014,0000042648,958.55,0,Wages from w/k ending,261400,HR Temporary & Agency Staff
South Lakeland District Council,http://opendatacommunities.org/id/district-council/south-lakeland,31/07/2014,Legal Services,Central Services,http://opendatacommunities.org/def/concept/finance/sercop/objective/102,VENN GROUP RECRUITMENT SOLUTIONS,,28-07-2014,0000042649,753.14,0,Wages from w/k ending,261400,HR Temporary & Agency Staff
South Lakeland District Council,http://opendatacommunities.org/id/district-council/south-lakeland,31/07/2014,Human Resources,Central Services,http://opendatacommunities.org/def/concept/finance/sercop/objective/102,TOTAL ID Ltd,06442013,11-08-2014,0000042654,103.95,0,Magicard card printer dye film.,192210,Facilities Security Access Control
South Lakeland District Council,http://opendatacommunities.org/id/district-council/south-lakeland,31/07/2014,Social Enterprise Admin,Highways & Transport Services,http://opendatacommunities.org/def/concept/finance/sercop/objective/107,We Love Logos,,11-08-2014,0000042655,12.9,0,1x Dark blue short sleeved polo shirt,141100,Clothing Protective
South Lakeland District Council,http://opendatacommunities.org/id/district-council/south-lakeland,31/07/2014,Business Support Community Services,SLDC as Agent,,DISCLOSURE AND BARRING SERVICE,,30-07-2014,0000042657,308,0,DBS Checks:,202100,Financial Services Subscriptions
South Lakeland District Council,http://opendatacommunities.org/id/district-council/south-lakeland,31/07/2014,Legal Services,Central Services,http://opendatacommunities.org/def/concept/finance/sercop/objective/102,TRINITY CHAMBERS,08562129,11-08-2014,0000042658,450,0,Fees for in the case of Mr,281300,Legal Services Legal Opinion
South Lakeland District Council,http://opendatacommunities.org/id/district-council/south-lakeland,31/07/2014,Printing Section,Central Services,http://opendatacommunities.org/def/concept/finance/sercop/objective/102,XEROX (UK) LIMITED,00330754,28-07-2014,0000042659,54.38,0,Copy charge for Ulverson Town Hall,271400,ICT Office & Reprographics Equipment
South Lakeland District Council,http://opendatacommunities.org/id/district-council/south-lakeland,31/07/2014,Coronation Hall,Cultural Environmental Regulatory & Planning Services,http://opendatacommunities.org/def/concept/finance/sercop/objective/104,ULVERSTON OUTSIDERS DRAMATIC SOCIETY,,28-07-2014,0000042660,70,0,Full page advertisement in 'The,291300,Arts & Leisure Services Performing Arts
